{"text_format":"1","workbook":"xlsx","n_sheets":17,"sheets":["Template udgifter","Budget","Husholdning","Underhold, fest, øl","Ind Mobilepay","Ind Div","Ind TG","Ind MM","Ind AES","Mobil, data, internet, streamin","Gæld til banker","Fagforening-a_kasse-forsikringe","Afbetaling-Lån-kredit","Transport","Buegangen","Ark2","Ark3"],"not_rendered":{"charts":0,"images":0,"macros":1,"external_links":1,"defined_names":0,"comments":1,"pivot_tables":0},"unopened":[],"bounds":{"document_bytes":16777216,"sheet_cells":100000,"rows_first":2000,"rows_last":500,"rows_between":2000,"halvings":0,"cell_chars":16384,"cell_head_chars":4096},"cells_cut":0,"cells_raw":0,"read":"whole","date_system":"1900"}

{"sheet":"Template udgifter","index":0,"n_rows":39,"n_cols":136,"rows_kept":39,"cut":false,"hidden":false,"merged":[]}
["Home",null,"Januar '1","Januar '2","Januar '3","Januar '4","Januar '5","Januar '6","Januar '7","Januar '8","Januar '9","Januar '10","SUM","Februar '1","Februar '2","Februar '3","Februar '4","Februar '5","Februar '6","Februar '7","Februar '8","Februar '9","Februar '10","SUM","Marts '1","Marts '2","Marts '3","Marts '4","Marts '5","Marts '6","Marts '7","Marts '8","Marts '9","Marts '10","SUM","April '1","April '2","April '3","April '4","April '5","April '6","April '7","April '8","April '9","April '10","SUM","Maj '1","Maj '2","Maj '3","Maj '4","Maj '5","Maj '6","Maj '7","Maj '8","Maj '9","Maj '10","SUM","Juni '1","Juni '2","Juni '3","Juni '4","Juni '5","Juni '6","Juni '7","Juni '8","Juni '9","Juni '10","SUM","Juli '1","Juli '2","Juli '3","Juli '4","Juli '5","Juli '6","Juli '7","Juli '8","Juli '9","Juli '10","SUM","August '1","August '2","August '3","August '4","August '5","August '6","August '7","August '8","August '9","August '10","SUM","September '1","September '2","September '3","September '4","September '5","September '6","September '7","September '8","September '9","September '10","SUM","Oktober '1","Oktober '2","Oktober '3","Oktober '4","Oktober '5","Oktober '6","Oktober '7","Oktober '8","Oktober '9","Oktober '10","SUM","November '1","November '2","November '3","November '4","November '5","November '6","November '7","November '8","November '9","November '10","SUM","December '1","December '2","December '3","December '4","December '5","December '6","December '7","December '8","December '9","December '10","SUM",null,"Sum"]
[]
[1,null,null,null,null,null,null,null,null,null,null,null,{"$f":"SUM(C3:L3)","v":0},null,null,null,null,null,null,null,null,null,null,{"$f":"SUM(N3:W3)","v":0},null,null,null,null,null,null,null,null,null,null,{"$f":"SUM(Y3:AH3)","v":0},null,null,null,null,null,null,null,null,null,null,{"$f":"SUM(AJ3:AS3)","v":0},null,null,null,null,null,null,null,null,null,null,{"$f":"SUM(AU3:BD3)","v":0},null,null,null,null,null,null,null,null,null,null,{"$f":"SUM(BF3:BO3)","v":0},null,null,null,null,null,null,null,null,null,null,{"$f":"SUM(BQ3:BZ3)","v":0},null,null,null,null,null,null,null,null,null,null,{"$f":"SUM(CB3:CK3)","v":0},null,null,null,null,null,null,null,null,null,null,{"$f":"SUM(CM3:CV3)","v":0},null,null,null,null,null,null,null,null,null,null,{"$f":"SUM(CX3:DG3)","v":0},null,null,null,null,null,null,null,null,null,null,{"$f":"SUM(DI3:DR3)","v":0},null,null,null,null,null,null,null,null,null,null,{"$f":"SUM(DT3:EC3)","v":0},null,{"$f":"SUM(ED3,DS3,DH3,CW3,CL3,CA3,BP3,BE3,AT3,AI3,X3,M3)","v":0}]
[2,null,null,null,null,null,null,null,null,null,null,null,{"$f":"SUM(C4:L4)","v":0},null,null,null,null,null,null,null,null,null,null,{"$f":"SUM(N4:W4)","v":0},null,null,null,null,null,null,null,null,null,null,{"$f":"SUM(Y4:AH4)","v":0},null,null,null,null,null,null,null,null,null,null,{"$f":"SUM(AJ4:AS4)","v":0},null,null,null,null,null,null,null,null,null,null,{"$f":"SUM(AU4:BD4)","v":0},null,null,null,null,null,null,null,null,null,null,{"$f":"SUM(BF4:BO4)","v":0},null,null,null,null,null,null,null,null,null,null,{"$f":"SUM(BQ4:BZ4)","v":0},null,null,null,null,null,null,null,null,null,null,{"$f":"SUM(CB4:CK4)","v":0},null,null,null,null,null,null,null,null,null,null,{"$f":"SUM(CM4:CV4)","v":0},null,null,null,null,null,null,null,null,null,null,{"$f":"SUM(CX4:DG4)","v":0},null,null,null,null,null,null,null,null,null,null,{"$f":"SUM(DI4:DR4)","v":0},null,null,null,null,null,null,null,null,null,null,{"$f":"SUM(DT4:EC4)","v":0},null,{"$f":"SUM(ED4,DS4,DH4,CW4,CL4,CA4,BP4,BE4,AT4,AI4,X4,M4)","v":0}]
[3,null,null,null,null,null,null,null,null,null,null,null,0,null,null,null,null,null,null,null,null,null,null,0,null,null,null,null,null,null,null,null,null,null,0,null,null,null,null,null,null,null,null,null,null,0,null,null,null,null,null,null,null,null,null,null,0,null,null,null,null,null,null,null,null,null,null,0,null,null,null,null,null,null,null,null,null,null,0,null,null,null,null,null,null,null,null,null,null,0,null,null,null,null,null,null,null,null,null,null,0,null,null,null,null,null,null,null,null,null,null,0,null,null,null,null,null,null,null,null,null,null,0,null,null,null,null,null,null,null,null,null,null,0,null,0]
[4,null,null,null,null,null,null,null,null,null,null,null,0,null,null,null,null,null,null,null,null,null,null,0,null,null,null,null,null,null,null,null,null,null,0,null,null,null,null,null,null,null,null,null,null,0,null,null,null,null,null,null,null,null,null,null,0,null,null,null,null,null,null,null,null,null,null,0,null,null,null,null,null,null,null,null,null,null,0,null,null,null,null,null,null,null,null,null,null,0,null,null,null,null,null,null,null,null,null,null,0,null,null,null,null,null,null,null,null,null,null,0,null,null,null,null,null,null,null,null,null,null,0,null,null,null,null,null,null,null,null,null,null,0,null,0]
[5,null,null,null,null,null,null,null,null,null,null,null,0,null,null,null,null,null,null,null,null,null,null,0,null,null,null,null,null,null,null,null,null,null,0,null,null,null,null,null,null,null,null,null,null,0,null,null,null,null,null,null,null,null,null,null,0,null,null,null,null,null,null,null,null,null,null,0,null,null,null,null,null,null,null,null,null,null,0,null,null,null,null,null,null,null,null,null,null,0,null,null,null,null,null,null,null,null,null,null,0,null,null,null,null,null,null,null,null,null,null,0,null,null,null,null,null,null,null,null,null,null,0,null,null,null,null,null,null,null,null,null,null,0,null,0]
[6,null,null,null,null,null,null,null,null,null,null,null,0,null,null,null,null,null,null,null,null,null,null,0,null,null,null,null,null,null,null,null,null,null,0,null,null,null,null,null,null,null,null,null,null,0,null,null,null,null,null,null,null,null,null,null,0,null,null,null,null,null,null,null,null,null,null,0,null,null,null,null,null,null,null,null,null,null,0,null,null,null,null,null,null,null,null,null,null,0,null,null,null,null,null,null,null,null,null,null,0,null,null,null,null,null,null,null,null,null,null,0,null,null,null,null,null,null,null,null,null,null,0,null,null,null,null,null,null,null,null,null,null,0,null,0]
[7,null,null,null,null,null,null,null,null,null,null,null,0,null,null,null,null,null,null,null,null,null,null,0,null,null,null,null,null,null,null,null,null,null,0,null,null,null,null,null,null,null,null,null,null,0,null,null,null,null,null,null,null,null,null,null,0,null,null,null,null,null,null,null,null,null,null,0,null,null,null,null,null,null,null,null,null,null,0,null,null,null,null,null,null,null,null,null,null,0,null,null,null,null,null,null,null,null,null,null,0,null,null,null,null,null,null,null,null,null,null,0,null,null,null,null,null,null,null,null,null,null,0,null,null,null,null,null,null,null,null,null,null,0,null,0]
[8,null,null,null,null,null,null,null,null,null,null,null,0,null,null,null,null,null,null,null,null,null,null,0,null,null,null,null,null,null,null,null,null,null,0,null,null,null,null,null,null,null,null,null,null,0,null,null,null,null,null,null,null,null,null,null,0,null,null,null,null,null,null,null,null,null,null,0,null,null,null,null,null,null,null,null,null,null,0,null,null,null,null,null,null,null,null,null,null,0,null,null,null,null,null,null,null,null,null,null,0,null,null,null,null,null,null,null,null,null,null,0,null,null,null,null,null,null,null,null,null,null,0,null,null,null,null,null,null,null,null,null,null,0,null,0]
[9,null,null,null,null,null,null,null,null,null,null,null,0,null,null,null,null,null,null,null,null,null,null,0,null,null,null,null,null,null,null,null,null,null,0,null,null,null,null,null,null,null,null,null,null,0,null,null,null,null,null,null,null,null,null,null,0,null,null,null,null,null,null,null,null,null,null,0,null,null,null,null,null,null,null,null,null,null,0,null,null,null,null,null,null,null,null,null,null,0,null,null,null,null,null,null,null,null,null,null,0,null,null,null,null,null,null,null,null,null,null,0,null,null,null,null,null,null,null,null,null,null,0,null,null,null,null,null,null,null,null,null,null,0,null,0]
[10,null,null,null,null,null,null,null,null,null,null,null,0,null,null,null,null,null,null,null,null,null,null,0,null,null,null,null,null,null,null,null,null,null,0,null,null,null,null,null,null,null,null,null,null,0,null,null,null,null,null,null,null,null,null,null,0,null,null,null,null,null,null,null,null,null,null,0,null,null,null,null,null,null,null,null,null,null,0,null,null,null,null,null,null,null,null,null,null,0,null,null,null,null,null,null,null,null,null,null,0,null,null,null,null,null,null,null,null,null,null,0,null,null,null,null,null,null,null,null,null,null,0,null,null,null,null,null,null,null,null,null,null,0,null,0]
[11,null,null,null,null,null,null,null,null,null,null,null,0,null,null,null,null,null,null,null,null,null,null,0,null,null,null,null,null,null,null,null,null,null,0,null,null,null,null,null,null,null,null,null,null,0,null,null,null,null,null,null,null,null,null,null,0,null,null,null,null,null,null,null,null,null,null,0,null,null,null,null,null,null,null,null,null,null,0,null,null,null,null,null,null,null,null,null,null,0,null,null,null,null,null,null,null,null,null,null,0,null,null,null,null,null,null,null,null,null,null,0,null,null,null,null,null,null,null,null,null,null,0,null,null,null,null,null,null,null,null,null,null,0,null,0]
[12,null,null,null,null,null,null,null,null,null,null,null,0,null,null,null,null,null,null,null,null,null,null,0,null,null,null,null,null,null,null,null,null,null,0,null,null,null,null,null,null,null,null,null,null,0,null,null,null,null,null,null,null,null,null,null,0,null,null,null,null,null,null,null,null,null,null,0,null,null,null,null,null,null,null,null,null,null,0,null,null,null,null,null,null,null,null,null,null,0,null,null,null,null,null,null,null,null,null,null,0,null,null,null,null,null,null,null,null,null,null,0,null,null,null,null,null,null,null,null,null,null,0,null,null,null,null,null,null,null,null,null,null,0,null,0]
[13,null,null,null,null,null,null,null,null,null,null,null,0,null,null,null,null,null,null,null,null,null,null,0,null,null,null,null,null,null,null,null,null,null,0,null,null,null,null,null,null,null,null,null,null,0,null,null,null,null,null,null,null,null,null,null,0,null,null,null,null,null,null,null,null,null,null,0,null,null,null,null,null,null,null,null,null,null,0,null,null,null,null,null,null,null,null,null,null,0,null,null,null,null,null,null,null,null,null,null,0,null,null,null,null,null,null,null,null,null,null,0,null,null,null,null,null,null,null,null,null,null,0,null,null,null,null,null,null,null,null,null,null,0,null,0]
[14,null,null,null,null,null,null,null,null,null,null,null,0,null,null,null,null,null,null,null,null,null,null,0,null,null,null,null,null,null,null,null,null,null,0,null,null,null,null,null,null,null,null,null,null,0,null,null,null,null,null,null,null,null,null,null,0,null,null,null,null,null,null,null,null,null,null,0,null,null,null,null,null,null,null,null,null,null,0,null,null,null,null,null,null,null,null,null,null,0,null,null,null,null,null,null,null,null,null,null,0,null,null,null,null,null,null,null,null,null,null,0,null,null,null,null,null,null,null,null,null,null,0,null,null,null,null,null,null,null,null,null,null,0,null,0]
[15,null,null,null,null,null,null,null,null,null,null,null,0,null,null,null,null,null,null,null,null,null,null,0,null,null,null,null,null,null,null,null,null,null,0,null,null,null,null,null,null,null,null,null,null,0,null,null,null,null,null,null,null,null,null,null,0,null,null,null,null,null,null,null,null,null,null,0,null,null,null,null,null,null,null,null,null,null,0,null,null,null,null,null,null,null,null,null,null,0,null,null,null,null,null,null,null,null,null,null,0,null,null,null,null,null,null,null,null,null,null,0,null,null,null,null,null,null,null,null,null,null,0,null,null,null,null,null,null,null,null,null,null,0,null,0]
[16,null,null,null,null,null,null,null,null,null,null,null,0,null,null,null,null,null,null,null,null,null,null,0,null,null,null,null,null,null,null,null,null,null,0,null,null,null,null,null,null,null,null,null,null,0,null,null,null,null,null,null,null,null,null,null,0,null,null,null,null,null,null,null,null,null,null,0,null,null,null,null,null,null,null,null,null,null,0,null,null,null,null,null,null,null,null,null,null,0,null,null,null,null,null,null,null,null,null,null,0,null,null,null,null,null,null,null,null,null,null,0,null,null,null,null,null,null,null,null,null,null,0,null,null,null,null,null,null,null,null,null,null,0,null,0]
[17,null,null,null,null,null,null,null,null,null,null,null,0,null,null,null,null,null,null,null,null,null,null,0,null,null,null,null,null,null,null,null,null,null,0,null,null,null,null,null,null,null,null,null,null,0,null,null,null,null,null,null,null,null,null,null,0,null,null,null,null,null,null,null,null,null,null,0,null,null,null,null,null,null,null,null,null,null,0,null,null,null,null,null,null,null,null,null,null,0,null,null,null,null,null,null,null,null,null,null,0,null,null,null,null,null,null,null,null,null,null,0,null,null,null,null,null,null,null,null,null,null,0,null,null,null,null,null,null,null,null,null,null,0,null,0]
[18,null,null,null,null,null,null,null,null,null,null,null,0,null,null,null,null,null,null,null,null,null,null,0,null,null,null,null,null,null,null,null,null,null,0,null,null,null,null,null,null,null,null,null,null,0,null,null,null,null,null,null,null,null,null,null,0,null,null,null,null,null,null,null,null,null,null,0,null,null,null,null,null,null,null,null,null,null,0,null,null,null,null,null,null,null,null,null,null,0,null,null,null,null,null,null,null,null,null,null,0,null,null,null,null,null,null,null,null,null,null,0,null,null,null,null,null,null,null,null,null,null,0,null,null,null,null,null,null,null,null,null,null,0,null,0]
[19,null,null,null,null,null,null,null,null,null,null,null,0,null,null,null,null,null,null,null,null,null,null,0,null,null,null,null,null,null,null,null,null,null,0,null,null,null,null,null,null,null,null,null,null,0,null,null,null,null,null,null,null,null,null,null,0,null,null,null,null,null,null,null,null,null,null,0,null,null,null,null,null,null,null,null,null,null,0,null,null,null,null,null,null,null,null,null,null,0,null,null,null,null,null,null,null,null,null,null,0,null,null,null,null,null,null,null,null,null,null,0,null,null,null,null,null,null,null,null,null,null,0,null,null,null,null,null,null,null,null,null,null,0,null,0]
[20,null,null,null,null,null,null,null,null,null,null,null,0,null,null,null,null,null,null,null,null,null,null,0,null,null,null,null,null,null,null,null,null,null,0,null,null,null,null,null,null,null,null,null,null,0,null,null,null,null,null,null,null,null,null,null,0,null,null,null,null,null,null,null,null,null,null,0,null,null,null,null,null,null,null,null,null,null,0,null,null,null,null,null,null,null,null,null,null,0,null,null,null,null,null,null,null,null,null,null,0,null,null,null,null,null,null,null,null,null,null,0,null,null,null,null,null,null,null,null,null,null,0,null,null,null,null,null,null,null,null,null,null,0,null,0]
[21,null,null,null,null,null,null,null,null,null,null,null,0,null,null,null,null,null,null,null,null,null,null,0,null,null,null,null,null,null,null,null,null,null,0,null,null,null,null,null,null,null,null,null,null,0,null,null,null,null,null,null,null,null,null,null,0,null,null,null,null,null,null,null,null,null,null,0,null,null,null,null,null,null,null,null,null,null,0,null,null,null,null,null,null,null,null,null,null,0,null,null,null,null,null,null,null,null,null,null,0,null,null,null,null,null,null,null,null,null,null,0,null,null,null,null,null,null,null,null,null,null,0,null,null,null,null,null,null,null,null,null,null,0,null,0]
[22,null,null,null,null,null,null,null,null,null,null,null,0,null,null,null,null,null,null,null,null,null,null,0,null,null,null,null,null,null,null,null,null,null,0,null,null,null,null,null,null,null,null,null,null,0,null,null,null,null,null,null,null,null,null,null,0,null,null,null,null,null,null,null,null,null,null,0,null,null,null,null,null,null,null,null,null,null,0,null,null,null,null,null,null,null,null,null,null,0,null,null,null,null,null,null,null,null,null,null,0,null,null,null,null,null,null,null,null,null,null,0,null,null,null,null,null,null,null,null,null,null,0,null,null,null,null,null,null,null,null,null,null,0,null,0]
[23,null,null,null,null,null,null,null,null,null,null,null,0,null,null,null,null,null,null,null,null,null,null,0,null,null,null,null,null,null,null,null,null,null,0,null,null,null,null,null,null,null,null,null,null,0,null,null,null,null,null,null,null,null,null,null,0,null,null,null,null,null,null,null,null,null,null,0,null,null,null,null,null,null,null,null,null,null,0,null,null,null,null,null,null,null,null,null,null,0,null,null,null,null,null,null,null,null,null,null,0,null,null,null,null,null,null,null,null,null,null,0,null,null,null,null,null,null,null,null,null,null,0,null,null,null,null,null,null,null,null,null,null,0,null,0]
[24,null,null,null,null,null,null,null,null,null,null,null,0,null,null,null,null,null,null,null,null,null,null,0,null,null,null,null,null,null,null,null,null,null,0,null,null,null,null,null,null,null,null,null,null,0,null,null,null,null,null,null,null,null,null,null,0,null,null,null,null,null,null,null,null,null,null,0,null,null,null,null,null,null,null,null,null,null,0,null,null,null,null,null,null,null,null,null,null,0,null,null,null,null,null,null,null,null,null,null,0,null,null,null,null,null,null,null,null,null,null,0,null,null,null,null,null,null,null,null,null,null,0,null,null,null,null,null,null,null,null,null,null,0,null,0]
[25,null,null,null,null,null,null,null,null,null,null,null,0,null,null,null,null,null,null,null,null,null,null,0,null,null,null,null,null,null,null,null,null,null,0,null,null,null,null,null,null,null,null,null,null,0,null,null,null,null,null,null,null,null,null,null,0,null,null,null,null,null,null,null,null,null,null,0,null,null,null,null,null,null,null,null,null,null,0,null,null,null,null,null,null,null,null,null,null,0,null,null,null,null,null,null,null,null,null,null,0,null,null,null,null,null,null,null,null,null,null,0,null,null,null,null,null,null,null,null,null,null,0,null,null,null,null,null,null,null,null,null,null,0,null,0]
[26,null,null,null,null,null,null,null,null,null,null,null,0,null,null,null,null,null,null,null,null,null,null,0,null,null,null,null,null,null,null,null,null,null,0,null,null,null,null,null,null,null,null,null,null,0,null,null,null,null,null,null,null,null,null,null,0,null,null,null,null,null,null,null,null,null,null,0,null,null,null,null,null,null,null,null,null,null,0,null,null,null,null,null,null,null,null,null,null,0,null,null,null,null,null,null,null,null,null,null,0,null,null,null,null,null,null,null,null,null,null,0,null,null,null,null,null,null,null,null,null,null,0,null,null,null,null,null,null,null,null,null,null,0,null,0]
[27,null,null,null,null,null,null,null,null,null,null,null,0,null,null,null,null,null,null,null,null,null,null,0,null,null,null,null,null,null,null,null,null,null,0,null,null,null,null,null,null,null,null,null,null,0,null,null,null,null,null,null,null,null,null,null,0,null,null,null,null,null,null,null,null,null,null,0,null,null,null,null,null,null,null,null,null,null,0,null,null,null,null,null,null,null,null,null,null,0,null,null,null,null,null,null,null,null,null,null,0,null,null,null,null,null,null,null,null,null,null,0,null,null,null,null,null,null,null,null,null,null,0,null,null,null,null,null,null,null,null,null,null,0,null,0]
[28,null,null,null,null,null,null,null,null,null,null,null,0,null,null,null,null,null,null,null,null,null,null,0,null,null,null,null,null,null,null,null,null,null,0,null,null,null,null,null,null,null,null,null,null,0,null,null,null,null,null,null,null,null,null,null,0,null,null,null,null,null,null,null,null,null,null,0,null,null,null,null,null,null,null,null,null,null,0,null,null,null,null,null,null,null,null,null,null,0,null,null,null,null,null,null,null,null,null,null,0,null,null,null,null,null,null,null,null,null,null,0,null,null,null,null,null,null,null,null,null,null,0,null,null,null,null,null,null,null,null,null,null,0,null,0]
[29,null,null,null,null,null,null,null,null,null,null,null,0,null,null,null,null,null,null,null,null,null,null,0,null,null,null,null,null,null,null,null,null,null,0,null,null,null,null,null,null,null,null,null,null,0,null,null,null,null,null,null,null,null,null,null,0,null,null,null,null,null,null,null,null,null,null,0,null,null,null,null,null,null,null,null,null,null,0,null,null,null,null,null,null,null,null,null,null,0,null,null,null,null,null,null,null,null,null,null,0,null,null,null,null,null,null,null,null,null,null,0,null,null,null,null,null,null,null,null,null,null,0,null,null,null,null,null,null,null,null,null,null,0,null,0]
[30,null,null,null,null,null,null,null,null,null,null,null,0,null,null,null,null,null,null,null,null,null,null,0,null,null,null,null,null,null,null,null,null,null,0,null,null,null,null,null,null,null,null,null,null,0,null,null,null,null,null,null,null,null,null,null,0,null,null,null,null,null,null,null,null,null,null,0,null,null,null,null,null,null,null,null,null,null,0,null,null,null,null,null,null,null,null,null,null,0,null,null,null,null,null,null,null,null,null,null,0,null,null,null,null,null,null,null,null,null,null,0,null,null,null,null,null,null,null,null,null,null,0,null,null,null,null,null,null,null,null,null,null,0,null,0]
[31,null,null,null,null,null,null,null,null,null,null,null,0,null,null,null,null,null,null,null,null,null,null,0,null,null,null,null,null,null,null,null,null,null,0,null,null,null,null,null,null,null,null,null,null,0,null,null,null,null,null,null,null,null,null,null,0,null,null,null,null,null,null,null,null,null,null,0,null,null,null,null,null,null,null,null,null,null,0,null,null,null,null,null,null,null,null,null,null,0,null,null,null,null,null,null,null,null,null,null,0,null,null,null,null,null,null,null,null,null,null,0,null,null,null,null,null,null,null,null,null,null,0,null,null,null,null,null,null,null,null,null,null,0,null,0]
[]
["Sum",null,{"$f":"SUM(C3:C33)","v":0},{"$f":"SUM(D3:D33)","v":0},0,0,0,0,0,0,0,0,{"$f":"SUM(C35:L35)","v":0},{"$f":"SUM(N3:N33)","v":0},0,0,0,0,0,0,0,0,0,{"$f":"SUM(N35:W35)","v":0},0,0,0,0,0,0,0,0,0,0,{"$f":"SUM(Y35:AH35)","v":0},0,0,0,0,0,0,0,0,0,0,{"$f":"SUM(AJ35:AS35)","v":0},0,0,0,0,0,0,0,0,0,0,{"$f":"SUM(AU35:BD35)","v":0},0,0,0,0,0,0,0,0,0,0,{"$f":"SUM(BF35:BO35)","v":0},0,0,0,0,0,0,0,0,0,0,{"$f":"SUM(BQ35:BZ35)","v":0},0,0,0,0,0,0,0,0,0,0,{"$f":"SUM(CB35:CK35)","v":0},0,0,0,0,0,0,0,0,0,0,{"$f":"SUM(CM35:CV35)","v":0},0,0,0,0,0,0,0,0,0,0,{"$f":"SUM(CX35:DG35)","v":0},0,0,0,0,0,0,0,0,0,0,{"$f":"SUM(DI35:DR35)","v":0},0,0,{"$f":"SUM(DV3:DV33)","v":0},0,0,0,0,0,0,0,{"$f":"SUM(DT35:EC35)","v":0},null,{"$f":"SUM(EF3:EF34)","v":0}]
[]
[]
[null,null,"Januar","Februar","Marts","April","Maj","Juni","Juli","August","September","Oktober","November","December"]
[null,null,{"$f":"ABS(M35)","v":0},{"$f":"ABS(X35)","v":0},{"$f":"ABS(AI35)","v":0},{"$f":"ABS(AT35)","v":0},{"$f":"ABS(BE35)","v":0},{"$f":"ABS(BP35)","v":0},{"$f":"ABS(CA35)","v":0},{"$f":"ABS(CL35)","v":0},{"$f":"ABS(CW35)","v":0},{"$f":"ABS(DH35)","v":0},{"$f":"ABS(DS35)","v":0},{"$f":"ABS(ED35)","v":0}]

{"sheet":"Budget","index":1,"n_rows":48,"n_cols":21,"rows_kept":48,"cut":false,"hidden":false,"merged":[[1,18,2,21],[7,19,13,21],[14,19,15,21],[4,19,6,21],[18,19,19,19],[18,20,19,20],[4,2,4,5],[30,19,32,19],[30,20,32,20],[42,19,42,20],[5,6,5,11],[21,19,23,19],[21,20,23,20]]}
[]
[null,null,null,null,null,null,null,null,null,null,null,null,null,null,null,null,null,null,"Sådan gør du!"]
[]
[null,null,null,null,null,null,null,null,null,null,null,null,null,null,null,null,null,null,"1)","Indtast dine indtægter og udgifter"]
[null,null,"Budgetskemaet er udarbejdet af excelkursus.com",null,null,null,null,null,null,null,null,null,null,null,null,null,null,null,"2)","Hvis dine udgifter ikke er nævnt som en post, så skriv dem ved \"post 1\", \"post 2\" osv. Hvis du mangler plads så tryk på knappen til venstre"]
[null,null,null,null,null,null,"Privatbudget 2019"]
[null,null,"Indtægter","Januar","Februar","Marts","April","Maj","Juni","Juli","August","September","Oktober","November","December","Hele året"]
[null,null,"Løn efter skat Allan TG",{"$f":"'Ind TG'!C39","v":0},{"$f":"'Ind TG'!D39","v":0},{"$f":"'Ind TG'!E39","v":0},{"$f":"'Ind TG'!F39","v":0},{"$f":"'Ind TG'!G39","v":0},{"$f":"'Ind TG'!H39","v":0},{"$f":"'Ind TG'!I39","v":0},{"$f":"'Ind TG'!J39","v":0},{"$f":"'Ind TG'!K39","v":0},{"$f":"'Ind TG'!L39","v":0},{"$f":"'Ind TG'!M39","v":0},{"$f":"'Ind TG'!N39","v":0},{"$f":"SUM(D8:O8)","v":0},null,null,"3)","De celler der er grå skal du selv udfylde, de hvide udregner skemaet selv"]
[null,null,"Løn efter skat Allan MM",{"$f":"'Ind MM'!C39","v":0},{"$f":"'Ind MM'!D39","v":0},{"$f":"'Ind MM'!E39","v":0},{"$f":"'Ind MM'!F39","v":0},{"$f":"'Ind MM'!G39","v":0},{"$f":"'Ind MM'!H39","v":0},{"$f":"'Ind MM'!I39","v":0},{"$f":"'Ind MM'!J39","v":0},{"$f":"'Ind MM'!K39","v":0},{"$f":"'Ind MM'!L39","v":0},{"$f":"'Ind MM'!M39","v":0},{"$f":"'Ind MM'!N39","v":0},0]
[null,null,"Løn efter skat Karina AES",{"$f":"'Ind AES'!C39","v":0},{"$f":"'Ind AES'!D39","v":0},{"$f":"'Ind AES'!E39","v":0},{"$f":"'Ind AES'!F39","v":0},{"$f":"'Ind AES'!G39","v":0},{"$f":"'Ind AES'!H39","v":0},{"$f":"'Ind AES'!I39","v":0},{"$f":"'Ind AES'!J39","v":0},{"$f":"'Ind AES'!K39","v":0},{"$f":"'Ind AES'!L39","v":0},{"$f":"'Ind AES'!M39","v":0},{"$f":"'Ind AES'!N39","v":0},0]
[null,null,"Anden indtægt diverse",{"$f":"'Ind Div'!C39","v":0},{"$f":"'Ind Div'!D39","v":0},{"$f":"'Ind Div'!E39","v":0},{"$f":"'Ind Div'!F39","v":112.5},{"$f":"'Ind Div'!G39","v":0},{"$f":"'Ind Div'!H39","v":0},{"$f":"'Ind Div'!I39","v":0},{"$f":"'Ind Div'!J39","v":0},{"$f":"'Ind Div'!K39","v":0},{"$f":"'Ind Div'!L39","v":0},{"$f":"'Ind Div'!M39","v":0},{"$f":"'Ind Div'!N39","v":0},112.5]
[null,null,"Mobilpay",{"$f":"'Ind Mobilepay'!C39","v":0},{"$f":"'Ind Mobilepay'!D39","v":0},{"$f":"'Ind Mobilepay'!E39","v":0},{"$f":"'Ind Mobilepay'!F39","v":0},{"$f":"'Ind Mobilepay'!G39","v":0},{"$f":"'Ind Mobilepay'!H39","v":0},{"$f":"'Ind Mobilepay'!I39","v":0},{"$f":"'Ind Mobilepay'!J39","v":0},{"$f":"'Ind Mobilepay'!K39","v":0},{"$f":"'Ind Mobilepay'!L39","v":0},{"$f":"'Ind Mobilepay'!M39","v":0},{"$f":"'Ind Mobilepay'!N39","v":0},{"$f":"SUM(D12:O12)","v":0}]
[null,null,null,null,null,null,null,null,null,null,null,null,null,null,null,0]
[null,null,null,null,null,null,null,null,null,null,null,null,null,null,null,0]
[null,null,"Total",{"$f":"SUM(D8:D14)","v":0},0,0,112.5,0,0,0,0,0,0,0,0,112.5,null,null,"4)","Se hvor hurtigt du kan spare op til det du vil købe i modellen nedenfor!"]
[]
[null,null,"Udgifter","Januar","Februar","Marts","April","Maj","Juni","Juli","August","September","Oktober","November","December","Hele året"]
[null,null,"Husleje / El, vand, varme",{"$f":"Buegangen!C39","v":0},{"$f":"Buegangen!D39","v":0},{"$f":"Buegangen!E39","v":0},{"$f":"Buegangen!F39","v":0},{"$f":"Buegangen!G39","v":0},{"$f":"Buegangen!H39","v":0},{"$f":"Buegangen!I39","v":0},{"$f":"Buegangen!J39","v":0},{"$f":"Buegangen!K39","v":0},{"$f":"Buegangen!L39","v":0},{"$f":"Buegangen!M39","v":0},{"$f":"Buegangen!N39","v":0},{"$f":"SUM(D18:O18)","v":0}]
[null,null,"Transport",{"$f":"Transport!C39","v":0},{"$f":"Transport!D39","v":0},{"$f":"Transport!E39","v":0},{"$f":"Transport!F39","v":0},{"$f":"Transport!G39","v":0},{"$f":"Transport!H39","v":0},{"$f":"Transport!I39","v":0},{"$f":"Transport!J39","v":0},{"$f":"Transport!K39","v":0},{"$f":"Transport!L39","v":0},{"$f":"Transport!M39","v":0},{"$f":"Transport!N39","v":0},0,null,null,null,"Hvad sparer du op til?","Rejse"]
[null,null,"Afbetaling/lån/kredit",{"$f":"'Afbetaling-Lån-kredit'!C39","v":0},{"$f":"'Afbetaling-Lån-kredit'!D39","v":0},{"$f":"'Afbetaling-Lån-kredit'!E39","v":0},{"$f":"'Afbetaling-Lån-kredit'!F39","v":0},{"$f":"'Afbetaling-Lån-kredit'!G39","v":0},{"$f":"'Afbetaling-Lån-kredit'!H39","v":0},{"$f":"'Afbetaling-Lån-kredit'!I39","v":0},{"$f":"'Afbetaling-Lån-kredit'!J39","v":0},{"$f":"'Afbetaling-Lån-kredit'!K39","v":0},{"$f":"'Afbetaling-Lån-kredit'!L39","v":0},{"$f":"'Afbetaling-Lån-kredit'!M39","v":0},{"$f":"'Afbetaling-Lån-kredit'!N39","v":0},0]
[null,null,"Fagforening/a-kasse/forsikringer",{"$f":"'Fagforening-a_kasse-forsikringe'!C39","v":0},{"$f":"'Fagforening-a_kasse-forsikringe'!D39","v":0},{"$f":"'Fagforening-a_kasse-forsikringe'!E39","v":0},{"$f":"'Fagforening-a_kasse-forsikringe'!F39","v":0},{"$f":"'Fagforening-a_kasse-forsikringe'!G39","v":0},{"$f":"'Fagforening-a_kasse-forsikringe'!H39","v":0},{"$f":"'Fagforening-a_kasse-forsikringe'!I39","v":0},{"$f":"'Fagforening-a_kasse-forsikringe'!J39","v":0},{"$f":"'Fagforening-a_kasse-forsikringe'!K39","v":0},{"$f":"'Fagforening-a_kasse-forsikringe'!L39","v":0},{"$f":"'Fagforening-a_kasse-forsikringe'!M39","v":0},{"$f":"'Fagforening-a_kasse-forsikringe'!N39","v":0},0,null,null,null,"Hvad koster det?",10000]
[null,null,"Gæld til banker",{"$f":"'Gæld til banker'!C39","v":0},{"$f":"'Gæld til banker'!D39","v":0},{"$f":"'Gæld til banker'!E39","v":0},{"$f":"'Gæld til banker'!F39","v":2100},{"$f":"'Gæld til banker'!G39","v":0},{"$f":"'Gæld til banker'!H39","v":0},{"$f":"'Gæld til banker'!I39","v":0},{"$f":"'Gæld til banker'!J39","v":0},{"$f":"'Gæld til banker'!K39","v":0},{"$f":"'Gæld til banker'!L39","v":0},{"$f":"'Gæld til banker'!M39","v":0},{"$f":"'Gæld til banker'!N39","v":0},2100,null,null,null,"Gennemsnitlig opsparing pr. måned",{"$f":"+AVERAGE(D46:O46)","v":{"$error":"#DIV/0!"}}]
[null,null,"Mobil, data, internet, streaming",{"$f":"'Mobil, data, internet, streamin'!C39","v":0},{"$f":"'Mobil, data, internet, streamin'!D39","v":0},{"$f":"'Mobil, data, internet, streamin'!E39","v":0},{"$f":"'Mobil, data, internet, streamin'!F39","v":79},{"$f":"'Mobil, data, internet, streamin'!G39","v":0},{"$f":"'Mobil, data, internet, streamin'!H39","v":0},{"$f":"'Mobil, data, internet, streamin'!I39","v":0},{"$f":"'Mobil, data, internet, streamin'!J39","v":0},{"$f":"'Mobil, data, internet, streamin'!K39","v":0},{"$f":"'Mobil, data, internet, streamin'!L39","v":0},{"$f":"'Mobil, data, internet, streamin'!M39","v":0},{"$f":"'Mobil, data, internet, streamin'!N39","v":0},79]
[null,null,"Underholdning/fest/øl",{"$f":"'Underhold, fest, øl'!C39","v":0},{"$f":"'Underhold, fest, øl'!D39","v":0},{"$f":"'Underhold, fest, øl'!E39","v":0},{"$f":"'Underhold, fest, øl'!F39","v":96},{"$f":"'Underhold, fest, øl'!G39","v":0},{"$f":"'Underhold, fest, øl'!H39","v":0},{"$f":"'Underhold, fest, øl'!I39","v":0},{"$f":"'Underhold, fest, øl'!J39","v":0},{"$f":"'Underhold, fest, øl'!K39","v":0},{"$f":"'Underhold, fest, øl'!L39","v":0},{"$f":"'Underhold, fest, øl'!M39","v":0},{"$f":"'Underhold, fest, øl'!N39","v":0},96]
[null,null,"Husholdning",null,null,null,null,null,null,null,null,null,null,null,null,{"$f":"SUM(D25:O25)","v":0}]
[null,null,null,null,null,null,null,null,null,null,null,null,null,null,null,0]
[null,null,null,null,null,null,null,null,null,null,null,null,null,null,null,0]
[null,null,null,null,null,null,null,null,null,null,null,null,null,null,null,0]
[null,null,null,null,null,null,null,null,null,null,null,null,null,null,null,0]
[null,null,null,null,null,null,null,null,null,null,null,null,null,null,null,0]
[null,null,null,null,null,null,null,null,null,null,null,null,null,null,null,0,null,null,null,"Du har råd til den/det efter så mange måneder=",{"$f":"+ROUNDUP(U34,)","v":{"$error":"#DIV/0!"}}]
[null,null,null,null,null,null,null,null,null,null,null,null,null,null,null,{"$f":"SUM(D32:O32)","v":0}]
[null,null,null,null,null,null,null,null,null,null,null,null,null,null,null,0]
[null,null,null,null,null,null,null,null,null,null,null,null,null,null,null,{"$f":"SUM(D34:O34)","v":0},null,null,null,null,{"$f":"+U21/U22","v":{"$error":"#DIV/0!"}}]
[null,null,null,null,null,null,null,null,null,null,null,null,null,null,null,{"$f":"SUM(D35:O35)","v":0}]
[null,null,null,null,null,null,null,null,null,null,null,null,null,null,null,{"$f":"SUM(D36:O36)","v":0}]
[null,null,null,null,null,null,null,null,null,null,null,null,null,null,null,{"$f":"SUM(D37:O37)","v":0}]
[null,null,null,null,null,null,null,null,null,null,null,null,null,null,null,{"$f":"SUM(D38:O38)","v":0}]
[null,null,null,null,null,null,null,null,null,null,null,null,null,null,null,{"$f":"SUM(D39:O39)","v":0}]
[null,null,null,null,null,null,null,null,null,null,null,null,null,null,null,{"$f":"SUM(D40:O40)","v":0}]
[null,null,null,null,null,null,null,null,null,null,null,null,null,null,null,0]
[null,null,"Total",{"$f":"SUM(D18:D41)","v":0},0,0,2275,0,0,0,0,0,0,0,0,{"$f":"SUM(D42:O42)","v":2275}]
[]
[null,null,"Overblik","Januar","Februar","Marts","April","Maj","Juni","Juli","August","September","Oktober","November","December","Hele året"]
[null,null,"Overskud",{"$f":"+D15-D42","v":0},0,0,-2162.5,0,0,0,0,0,0,0,0,{"$f":"SUM(D45:O45)","v":-2162.5}]
[null,null,"Hvor meget af dette vil du opspare?",null,null,null,null,null,null,null,null,null,null,null,null,{"$f":"SUM(D46:O46)","v":0}]
[null,null,"Restbeløb",{"$f":"+D45-D46","v":0},0,0,-2162.5,0,0,0,0,0,0,0,0,{"$f":"SUM(D47:O47)","v":-2162.5}]
[null,null,"Samlet opsparing",{"$f":"+D46","v":0},{"$f":"+D48+E46","v":0},0,0,0,0,0,0,0,0,0,0,{"$f":"+O48","v":0}]

{"sheet":"Husholdning","index":2,"n_rows":40,"n_cols":136,"rows_kept":40,"cut":false,"hidden":false,"merged":[]}
[null,null,null,null,null,null,null,null,null,null,null,null,null,null,null,null,null,null,null,null,null,null,null,null,null,null,null,null,null,null,null,null,null,null,null,4]
["Home",null,"Januar '1","Januar '2","Januar '3","Januar '4","Januar '5","Januar '6","Januar '7","Januar '8","Januar '9","Januar '10","SUM","Februar '1","Februar '2","Februar '3","Februar '4","Februar '5","Februar '6","Februar '7","Februar '8","Februar '9","Februar '10","SUM","Marts '1","Marts '2","Marts '3","Marts '4","Marts '5","Marts '6","Marts '7","Marts '8","Marts '9","Marts '10","SUM","April '1","April '2","April '3","April '4","April '5","April '6","April '7","April '8","April '9","April '10","SUM","Maj '1","Maj '2","Maj '3","Maj '4","Maj '5","Maj '6","Maj '7","Maj '8","Maj '9","Maj '10","SUM","Juni '1","Juni '2","Juni '3","Juni '4","Juni '5","Juni '6","Juni '7","Juni '8","Juni '9","Juni '10","SUM","Juli '1","Juli '2","Juli '3","Juli '4","Juli '5","Juli '6","Juli '7","Juli '8","Juli '9","Juli '10","SUM","August '1","August '2","August '3","August '4","August '5","August '6","August '7","August '8","August '9","August '10","SUM","September '1","September '2","September '3","September '4","September '5","September '6","September '7","September '8","September '9","September '10","SUM","Oktober '1","Oktober '2","Oktober '3","Oktober '4","Oktober '5","Oktober '6","Oktober '7","Oktober '8","Oktober '9","Oktober '10","SUM","November '1","November '2","November '3","November '4","November '5","November '6","November '7","November '8","November '9","November '10","SUM","December '1","December '2","December '3","December '4","December '5","December '6","December '7","December '8","December '9","December '10","SUM",null,"Sum"]
[null,2019,"Allan","Karina",null,null,null,null,null,null,null,null,null,"Allan","Karina",null,null,null,null,null,null,null,null,null,"Allan","Karina",null,null,null,null,null,null,null,null,null,"Allan","Karina",null,null,null,null,null,null,null,null,null,"Allan","Karina",null,null,null,null,null,null,null,null,null,"Allan","Karina",null,null,null,null,null,null,null,null,null,"Allan","Karina",null,null,null,null,null,null,null,null,null,"Allan","Karina",null,null,null,null,null,null,null,null,null,"Allan","Karina",null,null,null,null,null,null,null,null,null,"Allan","Karina",null,null,null,null,null,null,null,null,null,"Allan","Karina",null,null,null,null,null,null,null,null,null,"Allan","Karina"]
[1,null,null,null,null,null,null,null,null,null,null,null,{"$f":"SUM(C4:L4)","v":0},null,null,null,null,null,null,null,null,null,null,{"$f":"SUM(N4:W4)","v":0},null,null,null,null,null,null,null,null,null,null,{"$f":"SUM(Y4:AH4)","v":0},null,null,null,null,null,null,null,null,null,null,{"$f":"SUM(AJ4:AS4)","v":0},null,null,null,null,null,null,null,null,null,null,{"$f":"SUM(AU4:BD4)","v":0},null,null,null,null,null,null,null,null,null,null,{"$f":"SUM(BF4:BO4)","v":0},null,null,null,null,null,null,null,null,null,null,{"$f":"SUM(BQ4:BZ4)","v":0},null,null,null,null,null,null,null,null,null,null,{"$f":"SUM(CB4:CK4)","v":0},null,null,null,null,null,null,null,null,null,null,{"$f":"SUM(CM4:CV4)","v":0},null,null,null,null,null,null,null,null,null,null,{"$f":"SUM(CX4:DG4)","v":0},null,null,null,null,null,null,null,null,null,null,{"$f":"SUM(DI4:DR4)","v":0},null,null,null,null,null,null,null,null,null,null,{"$f":"SUM(DT4:EC4)","v":0},null,{"$f":"SUM(ED4,DS4,DH4,CW4,CL4,CA4,BP4,BE4,AT4,AI4,X4,M4)","v":0}]
[2,null,null,null,null,null,null,null,null,null,null,null,{"$f":"SUM(C5:L5)","v":0},null,null,null,null,null,null,null,null,null,null,{"$f":"SUM(N5:W5)","v":0},null,null,null,null,null,null,null,null,null,null,{"$f":"SUM(Y5:AH5)","v":0},null,null,null,null,null,null,null,null,null,null,{"$f":"SUM(AJ5:AS5)","v":0},null,null,null,null,null,null,null,null,null,null,{"$f":"SUM(AU5:BD5)","v":0},null,null,null,null,null,null,null,null,null,null,{"$f":"SUM(BF5:BO5)","v":0},null,null,null,null,null,null,null,null,null,null,{"$f":"SUM(BQ5:BZ5)","v":0},null,null,null,null,null,null,null,null,null,null,{"$f":"SUM(CB5:CK5)","v":0},null,null,null,null,null,null,null,null,null,null,{"$f":"SUM(CM5:CV5)","v":0},null,null,null,null,null,null,null,null,null,null,{"$f":"SUM(CX5:DG5)","v":0},null,null,null,null,null,null,null,null,null,null,{"$f":"SUM(DI5:DR5)","v":0},null,null,null,null,null,null,null,null,null,null,{"$f":"SUM(DT5:EC5)","v":0},null,{"$f":"SUM(ED5,DS5,DH5,CW5,CL5,CA5,BP5,BE5,AT5,AI5,X5,M5)","v":0}]
[3,null,null,null,null,null,null,null,null,null,null,null,0,null,null,null,null,null,null,null,null,null,null,0,null,null,null,null,null,null,null,null,null,null,0,null,null,null,null,null,null,null,null,null,null,0,null,null,null,null,null,null,null,null,null,null,0,null,null,null,null,null,null,null,null,null,null,0,null,null,null,null,null,null,null,null,null,null,0,null,null,null,null,null,null,null,null,null,null,0,null,null,null,null,null,null,null,null,null,null,0,null,null,null,null,null,null,null,null,null,null,0,null,null,null,null,null,null,null,null,null,null,0,null,null,null,null,null,null,null,null,null,null,0,null,0]
[4,null,null,null,null,null,null,null,null,null,null,null,0,null,null,null,null,null,null,null,null,null,null,0,null,null,null,null,null,null,null,null,null,null,0,null,null,null,null,null,null,null,null,null,null,0,null,null,null,null,null,null,null,null,null,null,0,null,null,null,null,null,null,null,null,null,null,0,null,null,null,null,null,null,null,null,null,null,0,null,null,null,null,null,null,null,null,null,null,0,null,null,null,null,null,null,null,null,null,null,0,null,null,null,null,null,null,null,null,null,null,0,null,null,null,null,null,null,null,null,null,null,0,null,null,null,null,null,null,null,null,null,null,0,null,0]
[5,null,null,null,null,null,null,null,null,null,null,null,0,null,null,null,null,null,null,null,null,null,null,0,null,null,null,null,null,null,null,null,null,null,0,null,null,null,null,null,null,null,null,null,null,0,null,null,null,null,null,null,null,null,null,null,0,null,null,null,null,null,null,null,null,null,null,0,null,null,null,null,null,null,null,null,null,null,0,null,null,null,null,null,null,null,null,null,null,0,null,null,null,null,null,null,null,null,null,null,0,null,null,null,null,null,null,null,null,null,null,0,null,null,null,null,null,null,null,null,null,null,0,null,null,null,null,null,null,null,null,null,null,0,null,0]
[6,null,null,null,null,null,null,null,null,null,null,null,0,null,null,null,null,null,null,null,null,null,null,0,null,null,null,null,null,null,null,null,null,null,0,null,null,null,null,null,null,null,null,null,null,0,null,null,null,null,null,null,null,null,null,null,0,null,null,null,null,null,null,null,null,null,null,0,null,null,null,null,null,null,null,null,null,null,0,null,null,null,null,null,null,null,null,null,null,0,null,null,null,null,null,null,null,null,null,null,0,null,null,null,null,null,null,null,null,null,null,0,null,null,null,null,null,null,null,null,null,null,0,null,null,null,null,null,null,null,null,null,null,0,null,0]
[7,null,null,null,null,null,null,null,null,null,null,null,0,null,null,null,null,null,null,null,null,null,null,0,null,null,null,null,null,null,null,null,null,null,0,null,null,null,null,null,null,null,null,null,null,0,null,null,null,null,null,null,null,null,null,null,0,null,null,null,null,null,null,null,null,null,null,0,null,null,null,null,null,null,null,null,null,null,0,null,null,null,null,null,null,null,null,null,null,0,null,null,null,null,null,null,null,null,null,null,0,null,null,null,null,null,null,null,null,null,null,0,null,null,null,null,null,null,null,null,null,null,0,null,null,null,null,null,null,null,null,null,null,0,null,0]
[8,null,null,null,null,null,null,null,null,null,null,null,0,null,null,null,null,null,null,null,null,null,null,0,null,null,null,null,null,null,null,null,null,null,0,null,null,null,null,null,null,null,null,null,null,0,null,null,null,null,null,null,null,null,null,null,0,null,null,null,null,null,null,null,null,null,null,0,null,null,null,null,null,null,null,null,null,null,0,null,null,null,null,null,null,null,null,null,null,0,null,null,null,null,null,null,null,null,null,null,0,null,null,null,null,null,null,null,null,null,null,0,null,null,null,null,null,null,null,null,null,null,0,null,null,null,null,null,null,null,null,null,null,0,null,0]
[9,null,null,null,null,null,null,null,null,null,null,null,0,null,null,null,null,null,null,null,null,null,null,0,null,null,null,null,null,null,null,null,null,null,0,null,null,null,null,null,null,null,null,null,null,0,null,null,null,null,null,null,null,null,null,null,0,null,null,null,null,null,null,null,null,null,null,0,null,null,null,null,null,null,null,null,null,null,0,null,null,null,null,null,null,null,null,null,null,0,null,null,null,null,null,null,null,null,null,null,0,null,null,null,null,null,null,null,null,null,null,0,null,null,null,null,null,null,null,null,null,null,0,null,null,null,null,null,null,null,null,null,null,0,null,0]
[10,null,null,null,null,null,null,null,null,null,null,null,0,null,null,null,null,null,null,null,null,null,null,0,null,null,null,null,null,null,null,null,null,null,0,null,null,null,null,null,null,null,null,null,null,0,null,null,null,null,null,null,null,null,null,null,0,null,null,null,null,null,null,null,null,null,null,0,null,null,null,null,null,null,null,null,null,null,0,null,null,null,null,null,null,null,null,null,null,0,null,null,null,null,null,null,null,null,null,null,0,null,null,null,null,null,null,null,null,null,null,0,null,null,null,null,null,null,null,null,null,null,0,null,null,null,null,null,null,null,null,null,null,0,null,0]
[11,null,null,null,null,null,null,null,null,null,null,null,0,null,null,null,null,null,null,null,null,null,null,0,null,null,null,null,null,null,null,null,null,null,0,null,null,null,null,null,null,null,null,null,null,0,null,null,null,null,null,null,null,null,null,null,0,null,null,null,null,null,null,null,null,null,null,0,null,null,null,null,null,null,null,null,null,null,0,null,null,null,null,null,null,null,null,null,null,0,null,null,null,null,null,null,null,null,null,null,0,null,null,null,null,null,null,null,null,null,null,0,null,null,null,null,null,null,null,null,null,null,0,null,null,null,null,null,null,null,null,null,null,0,null,0]
[12,null,null,null,null,null,null,null,null,null,null,null,0,null,null,null,null,null,null,null,null,null,null,0,null,null,null,null,null,null,null,null,null,null,0,null,null,null,null,null,null,null,null,null,null,0,null,null,null,null,null,null,null,null,null,null,0,null,null,null,null,null,null,null,null,null,null,0,null,null,null,null,null,null,null,null,null,null,0,null,null,null,null,null,null,null,null,null,null,0,null,null,null,null,null,null,null,null,null,null,0,null,null,null,null,null,null,null,null,null,null,0,null,null,null,null,null,null,null,null,null,null,0,null,null,null,null,null,null,null,null,null,null,0,null,0]
[13,null,null,null,null,null,null,null,null,null,null,null,0,null,null,null,null,null,null,null,null,null,null,0,null,null,null,null,null,null,null,null,null,null,0,null,null,null,null,null,null,null,null,null,null,0,null,null,null,null,null,null,null,null,null,null,0,null,null,null,null,null,null,null,null,null,null,0,null,null,null,null,null,null,null,null,null,null,0,null,null,null,null,null,null,null,null,null,null,0,null,null,null,null,null,null,null,null,null,null,0,null,null,null,null,null,null,null,null,null,null,0,null,null,null,null,null,null,null,null,null,null,0,null,null,null,null,null,null,null,null,null,null,0,null,0]
[14,null,null,null,null,null,null,null,null,null,null,null,0,null,null,null,null,null,null,null,null,null,null,0,null,null,null,null,null,null,null,null,null,null,0,null,null,null,null,null,null,null,null,null,null,0,null,null,null,null,null,null,null,null,null,null,0,null,null,null,null,null,null,null,null,null,null,0,null,null,null,null,null,null,null,null,null,null,0,null,null,null,null,null,null,null,null,null,null,0,null,null,null,null,null,null,null,null,null,null,0,null,null,null,null,null,null,null,null,null,null,0,null,null,null,null,null,null,null,null,null,null,0,null,null,null,null,null,null,null,null,null,null,0,null,0]
[15,null,null,null,null,null,null,null,null,null,null,null,0,null,null,null,null,null,null,null,null,null,null,0,null,null,null,null,null,null,null,null,null,null,0,null,null,null,null,null,null,null,null,null,null,0,null,null,null,null,null,null,null,null,null,null,0,null,null,null,null,null,null,null,null,null,null,0,null,null,null,null,null,null,null,null,null,null,0,null,null,null,null,null,null,null,null,null,null,0,null,null,null,null,null,null,null,null,null,null,0,null,null,null,null,null,null,null,null,null,null,0,null,null,null,null,null,null,null,null,null,null,0,null,null,null,null,null,null,null,null,null,null,0,null,0]
[16,null,null,null,null,null,null,null,null,null,null,null,0,null,null,null,null,null,null,null,null,null,null,0,null,null,null,null,null,null,null,null,null,null,0,null,null,null,null,null,null,null,null,null,null,0,null,null,null,null,null,null,null,null,null,null,0,null,null,null,null,null,null,null,null,null,null,0,null,null,null,null,null,null,null,null,null,null,0,null,null,null,null,null,null,null,null,null,null,0,null,null,null,null,null,null,null,null,null,null,0,null,null,null,null,null,null,null,null,null,null,0,null,null,null,null,null,null,null,null,null,null,0,null,null,null,null,null,null,null,null,null,null,0,null,0]
[17,null,null,null,null,null,null,null,null,null,null,null,0,null,null,null,null,null,null,null,null,null,null,0,null,null,null,null,null,null,null,null,null,null,0,null,null,null,null,null,null,null,null,null,null,0,null,null,null,null,null,null,null,null,null,null,0,null,null,null,null,null,null,null,null,null,null,0,null,null,null,null,null,null,null,null,null,null,0,null,null,null,null,null,null,null,null,null,null,0,null,null,null,null,null,null,null,null,null,null,0,null,null,null,null,null,null,null,null,null,null,0,null,null,null,null,null,null,null,null,null,null,0,null,null,null,null,null,null,null,null,null,null,0,null,0]
[18,null,null,null,null,null,null,null,null,null,null,null,0,null,null,null,null,null,null,null,null,null,null,0,null,null,null,null,null,null,null,null,null,null,0,null,null,null,null,null,null,null,null,null,null,0,null,null,null,null,null,null,null,null,null,null,0,null,null,null,null,null,null,null,null,null,null,0,null,null,null,null,null,null,null,null,null,null,0,null,null,null,null,null,null,null,null,null,null,0,null,null,null,null,null,null,null,null,null,null,0,null,null,null,null,null,null,null,null,null,null,0,null,null,null,null,null,null,null,null,null,null,0,null,null,null,null,null,null,null,null,null,null,0,null,0]
[19,null,null,null,null,null,null,null,null,null,null,null,0,null,null,null,null,null,null,null,null,null,null,0,null,null,null,null,null,null,null,null,null,null,0,null,null,null,null,null,null,null,null,null,null,0,null,null,null,null,null,null,null,null,null,null,0,null,null,null,null,null,null,null,null,null,null,0,null,null,null,null,null,null,null,null,null,null,0,null,null,null,null,null,null,null,null,null,null,0,null,null,null,null,null,null,null,null,null,null,0,null,null,null,null,null,null,null,null,null,null,0,null,null,null,null,null,null,null,null,null,null,0,null,null,null,null,null,null,null,null,null,null,0,null,0]
[20,null,null,null,null,null,null,null,null,null,null,null,0,null,null,null,null,null,null,null,null,null,null,0,null,null,null,null,null,null,null,null,null,null,0,null,null,null,null,null,null,null,null,null,null,0,null,null,null,null,null,null,null,null,null,null,0,null,null,null,null,null,null,null,null,null,null,0,null,null,null,null,null,null,null,null,null,null,0,null,null,null,null,null,null,null,null,null,null,0,null,null,null,null,null,null,null,null,null,null,0,null,null,null,null,null,null,null,null,null,null,0,null,null,null,null,null,null,null,null,null,null,0,null,null,null,null,null,null,null,null,null,null,0,null,0]
[21,null,null,null,null,null,null,null,null,null,null,null,0,null,null,null,null,null,null,null,null,null,null,0,null,null,null,null,null,null,null,null,null,null,0,null,null,null,null,null,null,null,null,null,null,0,null,null,null,null,null,null,null,null,null,null,0,null,null,null,null,null,null,null,null,null,null,0,null,null,null,null,null,null,null,null,null,null,0,null,null,null,null,null,null,null,null,null,null,0,null,null,null,null,null,null,null,null,null,null,0,null,null,null,null,null,null,null,null,null,null,0,null,null,null,null,null,null,null,null,null,null,0,null,null,null,null,null,null,null,null,null,null,0,null,0]
[22,null,null,null,null,null,null,null,null,null,null,null,0,null,null,null,null,null,null,null,null,null,null,0,null,null,null,null,null,null,null,null,null,null,0,null,null,null,null,null,null,null,null,null,null,0,null,null,null,null,null,null,null,null,null,null,0,null,null,null,null,null,null,null,null,null,null,0,null,null,null,null,null,null,null,null,null,null,0,null,null,null,null,null,null,null,null,null,null,0,null,null,null,null,null,null,null,null,null,null,0,null,null,null,null,null,null,null,null,null,null,0,null,null,null,null,null,null,null,null,null,null,0,null,null,null,null,null,null,null,null,null,null,0,null,0]
[23,null,null,null,null,null,null,null,null,null,null,null,0,null,null,null,null,null,null,null,null,null,null,0,null,null,null,null,null,null,null,null,null,null,0,{"$f":"SUMIFS('[1]NK Allan'!$D$2:$D$25,'[1]NK Allan'!$A$2:$A$25,DATE(B3,AJ1,A26),'[1]NK Allan'!$H$2:$H$25,'[1]NK Allan'!$O$6)","v":-190.4},null,null,null,null,null,null,null,null,null,-190.4,null,null,null,null,null,null,null,null,null,null,0,null,null,null,null,null,null,null,null,null,null,0,null,null,null,null,null,null,null,null,null,null,0,null,null,null,null,null,null,null,null,null,null,0,null,null,null,null,null,null,null,null,null,null,0,null,null,null,null,null,null,null,null,null,null,0,null,null,null,null,null,null,null,null,null,null,0,null,null,null,null,null,null,null,null,null,null,0,null,-190.4]
[24,null,null,null,null,null,null,null,null,null,null,null,0,null,null,null,null,null,null,null,null,null,null,0,null,null,null,null,null,null,null,null,null,null,0,null,null,null,null,null,null,null,null,null,null,0,null,null,null,null,null,null,null,null,null,null,0,null,null,null,null,null,null,null,null,null,null,0,null,null,null,null,null,null,null,null,null,null,0,null,null,null,null,null,null,null,null,null,null,0,null,null,null,null,null,null,null,null,null,null,0,null,null,null,null,null,null,null,null,null,null,0,null,null,null,null,null,null,null,null,null,null,0,null,null,null,null,null,null,null,null,null,null,0,null,0]
[25,null,null,null,null,null,null,null,null,null,null,null,0,null,null,null,null,null,null,null,null,null,null,0,null,null,null,null,null,null,null,null,null,null,0,null,null,null,null,null,null,null,null,null,null,0,null,null,null,null,null,null,null,null,null,null,0,null,null,null,null,null,null,null,null,null,null,0,null,null,null,null,null,null,null,null,null,null,0,null,null,null,null,null,null,null,null,null,null,0,null,null,null,null,null,null,null,null,null,null,0,null,null,null,null,null,null,null,null,null,null,0,null,null,null,null,null,null,null,null,null,null,0,null,null,null,null,null,null,null,null,null,null,0,null,0]
[26,null,null,null,null,null,null,null,null,null,null,null,0,null,null,null,null,null,null,null,null,null,null,0,null,null,null,null,null,null,null,null,null,null,0,null,null,null,null,null,null,null,null,null,null,0,null,null,null,null,null,null,null,null,null,null,0,null,null,null,null,null,null,null,null,null,null,0,null,null,null,null,null,null,null,null,null,null,0,null,null,null,null,null,null,null,null,null,null,0,null,null,null,null,null,null,null,null,null,null,0,null,null,null,null,null,null,null,null,null,null,0,null,null,null,null,null,null,null,null,null,null,0,null,null,null,null,null,null,null,null,null,null,0,null,0]
[27,null,null,null,null,null,null,null,null,null,null,null,0,null,null,null,null,null,null,null,null,null,null,0,null,null,null,null,null,null,null,null,null,null,0,null,null,null,null,null,null,null,null,null,null,0,null,null,null,null,null,null,null,null,null,null,0,null,null,null,null,null,null,null,null,null,null,0,null,null,null,null,null,null,null,null,null,null,0,null,null,null,null,null,null,null,null,null,null,0,null,null,null,null,null,null,null,null,null,null,0,null,null,null,null,null,null,null,null,null,null,0,null,null,null,null,null,null,null,null,null,null,0,null,null,null,null,null,null,null,null,null,null,0,null,0]
[28,null,null,null,null,null,null,null,null,null,null,null,0,null,null,null,null,null,null,null,null,null,null,0,null,null,null,null,null,null,null,null,null,null,0,null,null,null,null,null,null,null,null,null,null,0,null,null,null,null,null,null,null,null,null,null,0,null,null,null,null,null,null,null,null,null,null,0,null,null,null,null,null,null,null,null,null,null,0,null,null,null,null,null,null,null,null,null,null,0,null,null,null,null,null,null,null,null,null,null,0,null,null,null,null,null,null,null,null,null,null,0,null,null,null,null,null,null,null,null,null,null,0,null,null,null,null,null,null,null,null,null,null,0,null,0]
[29,null,null,null,null,null,null,null,null,null,null,null,0,null,null,null,null,null,null,null,null,null,null,0,null,null,null,null,null,null,null,null,null,null,0,null,null,null,null,null,null,null,null,null,null,0,null,null,null,null,null,null,null,null,null,null,0,null,null,null,null,null,null,null,null,null,null,0,null,null,null,null,null,null,null,null,null,null,0,null,null,null,null,null,null,null,null,null,null,0,null,null,null,null,null,null,null,null,null,null,0,null,null,null,null,null,null,null,null,null,null,0,null,null,null,null,null,null,null,null,null,null,0,null,null,null,null,null,null,null,null,null,null,0,null,0]
[30,null,null,null,null,null,null,null,null,null,null,null,0,null,null,null,null,null,null,null,null,null,null,0,null,null,null,null,null,null,null,null,null,null,0,null,null,null,null,null,null,null,null,null,null,0,null,null,null,null,null,null,null,null,null,null,0,null,null,null,null,null,null,null,null,null,null,0,null,null,null,null,null,null,null,null,null,null,0,null,null,null,null,null,null,null,null,null,null,0,null,null,null,null,null,null,null,null,null,null,0,null,null,null,null,null,null,null,null,null,null,0,null,null,null,null,null,null,null,null,null,null,0,null,null,null,null,null,null,null,null,null,null,0,null,0]
[31,null,null,null,null,null,null,null,null,null,null,null,0,null,null,null,null,null,null,null,null,null,null,0,null,null,null,null,null,null,null,null,null,null,0,null,null,null,null,null,null,null,null,null,null,0,null,null,null,null,null,null,null,null,null,null,0,null,null,null,null,null,null,null,null,null,null,0,null,null,null,null,null,null,null,null,null,null,0,null,null,null,null,null,null,null,null,null,null,0,null,null,null,null,null,null,null,null,null,null,0,null,null,null,null,null,null,null,null,null,null,0,null,null,null,null,null,null,null,null,null,null,0,null,null,null,null,null,null,null,null,null,null,0,null,0]
[]
["Sum",null,{"$f":"SUM(C4:C34)","v":0},{"$f":"SUM(D4:D34)","v":0},0,0,0,0,0,0,0,0,{"$f":"SUM(C36:L36)","v":0},{"$f":"SUM(N4:N34)","v":0},0,0,0,0,0,0,0,0,0,{"$f":"SUM(N36:W36)","v":0},0,0,0,0,0,0,0,0,0,0,{"$f":"SUM(Y36:AH36)","v":0},-190.4,0,0,0,0,0,0,0,0,0,{"$f":"SUM(AJ36:AS36)","v":-190.4},0,0,0,0,0,0,0,0,0,0,{"$f":"SUM(AU36:BD36)","v":0},0,0,0,0,0,0,0,0,0,0,{"$f":"SUM(BF36:BO36)","v":0},0,0,0,0,0,0,0,0,0,0,{"$f":"SUM(BQ36:BZ36)","v":0},0,0,0,0,0,0,0,0,0,0,{"$f":"SUM(CB36:CK36)","v":0},0,0,0,0,0,0,0,0,0,0,{"$f":"SUM(CM36:CV36)","v":0},0,0,0,0,0,0,0,0,0,0,{"$f":"SUM(CX36:DG36)","v":0},0,0,0,0,0,0,0,0,0,0,{"$f":"SUM(DI36:DR36)","v":0},0,0,{"$f":"SUM(DV4:DV34)","v":0},0,0,0,0,0,0,0,{"$f":"SUM(DT36:EC36)","v":0},null,{"$f":"SUM(EF4:EF35)","v":-190.4}]
[]
[]
[null,null,"Januar","Februar","Marts","April","Maj","Juni","Juli","August","September","Oktober","November","December"]
[null,null,{"$f":"ABS(M36)","v":0},{"$f":"ABS(X36)","v":0},{"$f":"ABS(AI36)","v":0},{"$f":"ABS(AT36)","v":190.4},{"$f":"ABS(BE36)","v":0},{"$f":"ABS(BP36)","v":0},{"$f":"ABS(CA36)","v":0},{"$f":"ABS(CL36)","v":0},{"$f":"ABS(CW36)","v":0},{"$f":"ABS(DH36)","v":0},{"$f":"ABS(DS36)","v":0},{"$f":"ABS(ED36)","v":0}]

{"sheet":"Underhold, fest, øl","index":3,"n_rows":39,"n_cols":136,"rows_kept":39,"cut":false,"hidden":true,"merged":[]}
["Home",null,"Januar '1","Januar '2","Januar '3","Januar '4","Januar '5","Januar '6","Januar '7","Januar '8","Januar '9","Januar '10","SUM","Februar '1","Februar '2","Februar '3","Februar '4","Februar '5","Februar '6","Februar '7","Februar '8","Februar '9","Februar '10","SUM","Marts '1","Marts '2","Marts '3","Marts '4","Marts '5","Marts '6","Marts '7","Marts '8","Marts '9","Marts '10","SUM","April '1","April '2","April '3","April '4","April '5","April '6","April '7","April '8","April '9","April '10","SUM","Maj '1","Maj '2","Maj '3","Maj '4","Maj '5","Maj '6","Maj '7","Maj '8","Maj '9","Maj '10","SUM","Juni '1","Juni '2","Juni '3","Juni '4","Juni '5","Juni '6","Juni '7","Juni '8","Juni '9","Juni '10","SUM","Juli '1","Juli '2","Juli '3","Juli '4","Juli '5","Juli '6","Juli '7","Juli '8","Juli '9","Juli '10","SUM","August '1","August '2","August '3","August '4","August '5","August '6","August '7","August '8","August '9","August '10","SUM","September '1","September '2","September '3","September '4","September '5","September '6","September '7","September '8","September '9","September '10","SUM","Oktober '1","Oktober '2","Oktober '3","Oktober '4","Oktober '5","Oktober '6","Oktober '7","Oktober '8","Oktober '9","Oktober '10","SUM","November '1","November '2","November '3","November '4","November '5","November '6","November '7","November '8","November '9","November '10","SUM","December '1","December '2","December '3","December '4","December '5","December '6","December '7","December '8","December '9","December '10","SUM",null,"Sum"]
[null,null,"Øl Musicon","Specialøl",null,null,null,null,null,null,null,null,null,"Øl Musicon","Specialøl",null,null,null,null,null,null,null,null,null,"Øl Musicon","Specialøl",null,null,null,null,null,null,null,null,null,"Øl Musicon","Specialøl",null,null,null,null,null,null,null,null,null,"Øl Musicon","Specialøl",null,null,null,null,null,null,null,null,null,"Øl Musicon","Specialøl",null,null,null,null,null,null,null,null,null,"Øl Musicon","Specialøl",null,null,null,null,null,null,null,null,null,"Øl Musicon","Specialøl",null,null,null,null,null,null,null,null,null,"Øl Musicon","Specialøl",null,null,null,null,null,null,null,null,null,"Øl Musicon","Specialøl",null,null,null,null,null,null,null,null,null,"Øl Musicon","Specialøl",null,null,null,null,null,null,null,null,null,"Øl Musicon","Specialøl"]
[1,null,null,null,null,null,null,null,null,null,null,null,{"$f":"SUM(C3:L3)","v":0},null,null,null,null,null,null,null,null,null,null,{"$f":"SUM(N3:W3)","v":0},null,null,null,null,null,null,null,null,null,null,{"$f":"SUM(Y3:AH3)","v":0},null,null,null,null,null,null,null,null,null,null,{"$f":"SUM(AJ3:AS3)","v":0},null,null,null,null,null,null,null,null,null,null,{"$f":"SUM(AU3:BD3)","v":0},null,null,null,null,null,null,null,null,null,null,{"$f":"SUM(BF3:BO3)","v":0},null,null,null,null,null,null,null,null,null,null,{"$f":"SUM(BQ3:BZ3)","v":0},null,null,null,null,null,null,null,null,null,null,{"$f":"SUM(CB3:CK3)","v":0},null,null,null,null,null,null,null,null,null,null,{"$f":"SUM(CM3:CV3)","v":0},null,null,null,null,null,null,null,null,null,null,{"$f":"SUM(CX3:DG3)","v":0},null,null,null,null,null,null,null,null,null,null,{"$f":"SUM(DI3:DR3)","v":0},null,null,null,null,null,null,null,null,null,null,{"$f":"SUM(DT3:EC3)","v":0},null,{"$f":"SUM(ED3,DS3,DH3,CW3,CL3,CA3,BP3,BE3,AT3,AI3,X3,M3)","v":0}]
[2,null,null,null,null,null,null,null,null,null,null,null,{"$f":"SUM(C4:L4)","v":0},null,null,null,null,null,null,null,null,null,null,{"$f":"SUM(N4:W4)","v":0},null,null,null,null,null,null,null,null,null,null,{"$f":"SUM(Y4:AH4)","v":0},null,null,null,null,null,null,null,null,null,null,{"$f":"SUM(AJ4:AS4)","v":0},null,null,null,null,null,null,null,null,null,null,{"$f":"SUM(AU4:BD4)","v":0},null,null,null,null,null,null,null,null,null,null,{"$f":"SUM(BF4:BO4)","v":0},null,null,null,null,null,null,null,null,null,null,{"$f":"SUM(BQ4:BZ4)","v":0},null,null,null,null,null,null,null,null,null,null,{"$f":"SUM(CB4:CK4)","v":0},null,null,null,null,null,null,null,null,null,null,{"$f":"SUM(CM4:CV4)","v":0},null,null,null,null,null,null,null,null,null,null,{"$f":"SUM(CX4:DG4)","v":0},null,null,null,null,null,null,null,null,null,null,{"$f":"SUM(DI4:DR4)","v":0},null,null,null,null,null,null,null,null,null,null,{"$f":"SUM(DT4:EC4)","v":0},null,{"$f":"SUM(ED4,DS4,DH4,CW4,CL4,CA4,BP4,BE4,AT4,AI4,X4,M4)","v":0}]
[3,null,null,null,null,null,null,null,null,null,null,null,0,null,null,null,null,null,null,null,null,null,null,0,null,null,null,null,null,null,null,null,null,null,0,null,null,null,null,null,null,null,null,null,null,0,null,null,null,null,null,null,null,null,null,null,0,null,null,null,null,null,null,null,null,null,null,0,null,null,null,null,null,null,null,null,null,null,0,null,null,null,null,null,null,null,null,null,null,0,null,null,null,null,null,null,null,null,null,null,0,null,null,null,null,null,null,null,null,null,null,0,null,null,null,null,null,null,null,null,null,null,0,null,null,null,null,null,null,null,null,null,null,0,null,0]
[4,null,null,null,null,null,null,null,null,null,null,null,0,null,null,null,null,null,null,null,null,null,null,0,null,null,null,null,null,null,null,null,null,null,0,null,null,null,null,null,null,null,null,null,null,0,null,null,null,null,null,null,null,null,null,null,0,null,null,null,null,null,null,null,null,null,null,0,null,null,null,null,null,null,null,null,null,null,0,null,null,null,null,null,null,null,null,null,null,0,null,null,null,null,null,null,null,null,null,null,0,null,null,null,null,null,null,null,null,null,null,0,null,null,null,null,null,null,null,null,null,null,0,null,null,null,null,null,null,null,null,null,null,0,null,0]
[5,null,null,null,null,null,null,null,null,null,null,null,0,null,null,null,null,null,null,null,null,null,null,0,null,null,null,null,null,null,null,null,null,null,0,null,null,null,null,null,null,null,null,null,null,0,null,null,null,null,null,null,null,null,null,null,0,null,null,null,null,null,null,null,null,null,null,0,null,null,null,null,null,null,null,null,null,null,0,null,null,null,null,null,null,null,null,null,null,0,null,null,null,null,null,null,null,null,null,null,0,null,null,null,null,null,null,null,null,null,null,0,null,null,null,null,null,null,null,null,null,null,0,null,null,null,null,null,null,null,null,null,null,0,null,0]
[6,null,null,null,null,null,null,null,null,null,null,null,0,null,null,null,null,null,null,null,null,null,null,0,null,null,null,null,null,null,null,null,null,null,0,null,null,null,null,null,null,null,null,null,null,0,null,null,null,null,null,null,null,null,null,null,0,null,null,null,null,null,null,null,null,null,null,0,null,null,null,null,null,null,null,null,null,null,0,null,null,null,null,null,null,null,null,null,null,0,null,null,null,null,null,null,null,null,null,null,0,null,null,null,null,null,null,null,null,null,null,0,null,null,null,null,null,null,null,null,null,null,0,null,null,null,null,null,null,null,null,null,null,0,null,0]
[7,null,null,null,null,null,null,null,null,null,null,null,0,null,null,null,null,null,null,null,null,null,null,0,null,null,null,null,null,null,null,null,null,null,0,null,null,null,null,null,null,null,null,null,null,0,null,null,null,null,null,null,null,null,null,null,0,null,null,null,null,null,null,null,null,null,null,0,null,null,null,null,null,null,null,null,null,null,0,null,null,null,null,null,null,null,null,null,null,0,null,null,null,null,null,null,null,null,null,null,0,null,null,null,null,null,null,null,null,null,null,0,null,null,null,null,null,null,null,null,null,null,0,null,null,null,null,null,null,null,null,null,null,0,null,0]
[8,null,null,null,null,null,null,null,null,null,null,null,0,null,null,null,null,null,null,null,null,null,null,0,null,null,null,null,null,null,null,null,null,null,0,null,null,null,null,null,null,null,null,null,null,0,null,null,null,null,null,null,null,null,null,null,0,null,null,null,null,null,null,null,null,null,null,0,null,null,null,null,null,null,null,null,null,null,0,null,null,null,null,null,null,null,null,null,null,0,null,null,null,null,null,null,null,null,null,null,0,null,null,null,null,null,null,null,null,null,null,0,null,null,null,null,null,null,null,null,null,null,0,null,null,null,null,null,null,null,null,null,null,0,null,0]
[9,null,null,null,null,null,null,null,null,null,null,null,0,null,null,null,null,null,null,null,null,null,null,0,null,null,null,null,null,null,null,null,null,null,0,null,null,null,null,null,null,null,null,null,null,0,null,null,null,null,null,null,null,null,null,null,0,null,null,null,null,null,null,null,null,null,null,0,null,null,null,null,null,null,null,null,null,null,0,null,null,null,null,null,null,null,null,null,null,0,null,null,null,null,null,null,null,null,null,null,0,null,null,null,null,null,null,null,null,null,null,0,null,null,null,null,null,null,null,null,null,null,0,null,null,null,null,null,null,null,null,null,null,0,null,0]
[10,null,null,null,null,null,null,null,null,null,null,null,0,null,null,null,null,null,null,null,null,null,null,0,null,null,null,null,null,null,null,null,null,null,0,null,null,null,null,null,null,null,null,null,null,0,null,null,null,null,null,null,null,null,null,null,0,null,null,null,null,null,null,null,null,null,null,0,null,null,null,null,null,null,null,null,null,null,0,null,null,null,null,null,null,null,null,null,null,0,null,null,null,null,null,null,null,null,null,null,0,null,null,null,null,null,null,null,null,null,null,0,null,null,null,null,null,null,null,null,null,null,0,null,null,null,null,null,null,null,null,null,null,0,null,0]
[11,null,null,null,null,null,null,null,null,null,null,null,0,null,null,null,null,null,null,null,null,null,null,0,null,null,null,null,null,null,null,null,null,null,0,null,null,null,null,null,null,null,null,null,null,0,null,null,null,null,null,null,null,null,null,null,0,null,null,null,null,null,null,null,null,null,null,0,null,null,null,null,null,null,null,null,null,null,0,null,null,null,null,null,null,null,null,null,null,0,null,null,null,null,null,null,null,null,null,null,0,null,null,null,null,null,null,null,null,null,null,0,null,null,null,null,null,null,null,null,null,null,0,null,null,null,null,null,null,null,null,null,null,0,null,0]
[12,null,null,null,null,null,null,null,null,null,null,null,0,null,null,null,null,null,null,null,null,null,null,0,null,null,null,null,null,null,null,null,null,null,0,null,null,null,null,null,null,null,null,null,null,0,null,null,null,null,null,null,null,null,null,null,0,null,null,null,null,null,null,null,null,null,null,0,null,null,null,null,null,null,null,null,null,null,0,null,null,null,null,null,null,null,null,null,null,0,null,null,null,null,null,null,null,null,null,null,0,null,null,null,null,null,null,null,null,null,null,0,null,null,null,null,null,null,null,null,null,null,0,null,null,null,null,null,null,null,null,null,null,0,null,0]
[13,null,null,null,null,null,null,null,null,null,null,null,0,null,null,null,null,null,null,null,null,null,null,0,null,null,null,null,null,null,null,null,null,null,0,null,null,null,null,null,null,null,null,null,null,0,null,null,null,null,null,null,null,null,null,null,0,null,null,null,null,null,null,null,null,null,null,0,null,null,null,null,null,null,null,null,null,null,0,null,null,null,null,null,null,null,null,null,null,0,null,null,null,null,null,null,null,null,null,null,0,null,null,null,null,null,null,null,null,null,null,0,null,null,null,null,null,null,null,null,null,null,0,null,null,null,null,null,null,null,null,null,null,0,null,0]
[14,null,null,null,null,null,null,null,null,null,null,null,0,null,null,null,null,null,null,null,null,null,null,0,null,null,null,null,null,null,null,null,null,null,0,null,null,null,null,null,null,null,null,null,null,0,null,null,null,null,null,null,null,null,null,null,0,null,null,null,null,null,null,null,null,null,null,0,null,null,null,null,null,null,null,null,null,null,0,null,null,null,null,null,null,null,null,null,null,0,null,null,null,null,null,null,null,null,null,null,0,null,null,null,null,null,null,null,null,null,null,0,null,null,null,null,null,null,null,null,null,null,0,null,null,null,null,null,null,null,null,null,null,0,null,0]
[15,null,null,null,null,null,null,null,null,null,null,null,0,null,null,null,null,null,null,null,null,null,null,0,null,null,null,null,null,null,null,null,null,null,0,null,null,null,null,null,null,null,null,null,null,0,null,null,null,null,null,null,null,null,null,null,0,null,null,null,null,null,null,null,null,null,null,0,null,null,null,null,null,null,null,null,null,null,0,null,null,null,null,null,null,null,null,null,null,0,null,null,null,null,null,null,null,null,null,null,0,null,null,null,null,null,null,null,null,null,null,0,null,null,null,null,null,null,null,null,null,null,0,null,null,null,null,null,null,null,null,null,null,0,null,0]
[16,null,null,null,null,null,null,null,null,null,null,null,0,null,null,null,null,null,null,null,null,null,null,0,null,null,null,null,null,null,null,null,null,null,0,null,null,null,null,null,null,null,null,null,null,0,null,null,null,null,null,null,null,null,null,null,0,null,null,null,null,null,null,null,null,null,null,0,null,null,null,null,null,null,null,null,null,null,0,null,null,null,null,null,null,null,null,null,null,0,null,null,null,null,null,null,null,null,null,null,0,null,null,null,null,null,null,null,null,null,null,0,null,null,null,null,null,null,null,null,null,null,0,null,null,null,null,null,null,null,null,null,null,0,null,0]
[17,null,null,null,null,null,null,null,null,null,null,null,0,null,null,null,null,null,null,null,null,null,null,0,null,null,null,null,null,null,null,null,null,null,0,null,null,null,null,null,null,null,null,null,null,0,null,null,null,null,null,null,null,null,null,null,0,null,null,null,null,null,null,null,null,null,null,0,null,null,null,null,null,null,null,null,null,null,0,null,null,null,null,null,null,null,null,null,null,0,null,null,null,null,null,null,null,null,null,null,0,null,null,null,null,null,null,null,null,null,null,0,null,null,null,null,null,null,null,null,null,null,0,null,null,null,null,null,null,null,null,null,null,0,null,0]
[18,null,null,null,null,null,null,null,null,null,null,null,0,null,null,null,null,null,null,null,null,null,null,0,null,null,null,null,null,null,null,null,null,null,0,null,null,null,null,null,null,null,null,null,null,0,null,null,null,null,null,null,null,null,null,null,0,null,null,null,null,null,null,null,null,null,null,0,null,null,null,null,null,null,null,null,null,null,0,null,null,null,null,null,null,null,null,null,null,0,null,null,null,null,null,null,null,null,null,null,0,null,null,null,null,null,null,null,null,null,null,0,null,null,null,null,null,null,null,null,null,null,0,null,null,null,null,null,null,null,null,null,null,0,null,0]
[19,null,null,null,null,null,null,null,null,null,null,null,0,null,null,null,null,null,null,null,null,null,null,0,null,null,null,null,null,null,null,null,null,null,0,null,null,null,null,null,null,null,null,null,null,0,null,null,null,null,null,null,null,null,null,null,0,null,null,null,null,null,null,null,null,null,null,0,null,null,null,null,null,null,null,null,null,null,0,null,null,null,null,null,null,null,null,null,null,0,null,null,null,null,null,null,null,null,null,null,0,null,null,null,null,null,null,null,null,null,null,0,null,null,null,null,null,null,null,null,null,null,0,null,null,null,null,null,null,null,null,null,null,0,null,0]
[20,null,null,null,null,null,null,null,null,null,null,null,0,null,null,null,null,null,null,null,null,null,null,0,null,null,null,null,null,null,null,null,null,null,0,null,null,null,null,null,null,null,null,null,null,0,null,null,null,null,null,null,null,null,null,null,0,null,null,null,null,null,null,null,null,null,null,0,null,null,null,null,null,null,null,null,null,null,0,null,null,null,null,null,null,null,null,null,null,0,null,null,null,null,null,null,null,null,null,null,0,null,null,null,null,null,null,null,null,null,null,0,null,null,null,null,null,null,null,null,null,null,0,null,null,null,null,null,null,null,null,null,null,0,null,0]
[21,null,null,null,null,null,null,null,null,null,null,null,0,null,null,null,null,null,null,null,null,null,null,0,null,null,null,null,null,null,null,null,null,null,0,null,null,null,null,null,null,null,null,null,null,0,null,null,null,null,null,null,null,null,null,null,0,null,null,null,null,null,null,null,null,null,null,0,null,null,null,null,null,null,null,null,null,null,0,null,null,null,null,null,null,null,null,null,null,0,null,null,null,null,null,null,null,null,null,null,0,null,null,null,null,null,null,null,null,null,null,0,null,null,null,null,null,null,null,null,null,null,0,null,null,null,null,null,null,null,null,null,null,0,null,0]
[22,null,null,null,null,null,null,null,null,null,null,null,0,null,null,null,null,null,null,null,null,null,null,0,null,null,null,null,null,null,null,null,null,null,0,null,null,null,null,null,null,null,null,null,null,0,null,null,null,null,null,null,null,null,null,null,0,null,null,null,null,null,null,null,null,null,null,0,null,null,null,null,null,null,null,null,null,null,0,null,null,null,null,null,null,null,null,null,null,0,null,null,null,null,null,null,null,null,null,null,0,null,null,null,null,null,null,null,null,null,null,0,null,null,null,null,null,null,null,null,null,null,0,null,null,null,null,null,null,null,null,null,null,0,null,0]
[23,null,null,null,null,null,null,null,null,null,null,null,0,null,null,null,null,null,null,null,null,null,null,0,null,null,null,null,null,null,null,null,null,null,0,null,null,null,null,null,null,null,null,null,null,0,null,null,null,null,null,null,null,null,null,null,0,null,null,null,null,null,null,null,null,null,null,0,null,null,null,null,null,null,null,null,null,null,0,null,null,null,null,null,null,null,null,null,null,0,null,null,null,null,null,null,null,null,null,null,0,null,null,null,null,null,null,null,null,null,null,0,null,null,null,null,null,null,null,null,null,null,0,null,null,null,null,null,null,null,null,null,null,0,null,0]
[24,null,null,null,null,null,null,null,null,null,null,null,0,null,null,null,null,null,null,null,null,null,null,0,null,null,null,null,null,null,null,null,null,null,0,null,null,null,null,null,null,null,null,null,null,0,null,null,null,null,null,null,null,null,null,null,0,null,null,null,null,null,null,null,null,null,null,0,null,null,null,null,null,null,null,null,null,null,0,null,null,null,null,null,null,null,null,null,null,0,null,null,null,null,null,null,null,null,null,null,0,null,null,null,null,null,null,null,null,null,null,0,null,null,null,null,null,null,null,null,null,null,0,null,null,null,null,null,null,null,null,null,null,0,null,0]
[25,null,null,null,null,null,null,null,null,null,null,null,0,null,null,null,null,null,null,null,null,null,null,0,null,null,null,null,null,null,null,null,null,null,0,null,null,null,null,null,null,null,null,null,null,0,null,null,null,null,null,null,null,null,null,null,0,null,null,null,null,null,null,null,null,null,null,0,null,null,null,null,null,null,null,null,null,null,0,null,null,null,null,null,null,null,null,null,null,0,null,null,null,null,null,null,null,null,null,null,0,null,null,null,null,null,null,null,null,null,null,0,null,null,null,null,null,null,null,null,null,null,0,null,null,null,null,null,null,null,null,null,null,0,null,0]
[26,null,null,null,null,null,null,null,null,null,null,null,0,null,null,null,null,null,null,null,null,null,null,0,null,null,null,null,null,null,null,null,null,null,0,null,null,null,null,null,null,null,null,null,null,0,null,null,null,null,null,null,null,null,null,null,0,null,null,null,null,null,null,null,null,null,null,0,null,null,null,null,null,null,null,null,null,null,0,null,null,null,null,null,null,null,null,null,null,0,null,null,null,null,null,null,null,null,null,null,0,null,null,null,null,null,null,null,null,null,null,0,null,null,null,null,null,null,null,null,null,null,0,null,null,null,null,null,null,null,null,null,null,0,null,0]
[27,null,null,null,null,null,null,null,null,null,null,null,0,null,null,null,null,null,null,null,null,null,null,0,null,null,null,null,null,null,null,null,null,null,0,null,null,null,null,null,null,null,null,null,null,0,null,null,null,null,null,null,null,null,null,null,0,null,null,null,null,null,null,null,null,null,null,0,null,null,null,null,null,null,null,null,null,null,0,null,null,null,null,null,null,null,null,null,null,0,null,null,null,null,null,null,null,null,null,null,0,null,null,null,null,null,null,null,null,null,null,0,null,null,null,null,null,null,null,null,null,null,0,null,null,null,null,null,null,null,null,null,null,0,null,0]
[28,null,null,null,null,null,null,null,null,null,null,null,0,null,null,null,null,null,null,null,null,null,null,0,null,null,null,null,null,null,null,null,null,null,0,null,null,null,null,null,null,null,null,null,null,0,null,null,null,null,null,null,null,null,null,null,0,null,null,null,null,null,null,null,null,null,null,0,null,null,null,null,null,null,null,null,null,null,0,null,null,null,null,null,null,null,null,null,null,0,null,null,null,null,null,null,null,null,null,null,0,null,null,null,null,null,null,null,null,null,null,0,null,null,null,null,null,null,null,null,null,null,0,null,null,null,null,null,null,null,null,null,null,0,null,0]
[29,null,null,null,null,null,null,null,null,null,null,null,0,null,null,null,null,null,null,null,null,null,null,0,null,null,null,null,null,null,null,null,null,null,0,null,null,null,null,null,null,null,null,null,null,0,null,null,null,null,null,null,null,null,null,null,0,null,null,null,null,null,null,null,null,null,null,0,null,null,null,null,null,null,null,null,null,null,0,null,null,null,null,null,null,null,null,null,null,0,null,null,null,null,null,null,null,null,null,null,0,null,null,null,null,null,null,null,null,null,null,0,null,null,null,null,null,null,null,null,null,null,0,null,null,null,null,null,null,null,null,null,null,0,null,0]
[30,null,null,null,null,null,null,null,null,null,null,null,0,null,null,null,null,null,null,null,null,null,null,0,null,null,null,null,null,null,null,null,null,null,0,-96,null,null,null,null,null,null,null,null,null,-96,null,null,null,null,null,null,null,null,null,null,0,null,null,null,null,null,null,null,null,null,null,0,null,null,null,null,null,null,null,null,null,null,0,null,null,null,null,null,null,null,null,null,null,0,null,null,null,null,null,null,null,null,null,null,0,null,null,null,null,null,null,null,null,null,null,0,null,null,null,null,null,null,null,null,null,null,0,null,null,null,null,null,null,null,null,null,null,0,null,-96]
[31,null,null,null,null,null,null,null,null,null,null,null,0,null,null,null,null,null,null,null,null,null,null,0,null,null,null,null,null,null,null,null,null,null,0,null,null,null,null,null,null,null,null,null,null,0,null,null,null,null,null,null,null,null,null,null,0,null,null,null,null,null,null,null,null,null,null,0,null,null,null,null,null,null,null,null,null,null,0,null,null,null,null,null,null,null,null,null,null,0,null,null,null,null,null,null,null,null,null,null,0,null,null,null,null,null,null,null,null,null,null,0,null,null,null,null,null,null,null,null,null,null,0,null,null,null,null,null,null,null,null,null,null,0,null,0]
[]
["Sum",null,{"$f":"SUM(C3:C33)","v":0},{"$f":"SUM(D3:D33)","v":0},0,0,0,0,0,0,0,0,{"$f":"SUM(C35:L35)","v":0},{"$f":"SUM(N3:N33)","v":0},0,0,0,0,0,0,0,0,0,{"$f":"SUM(N35:W35)","v":0},0,0,0,0,0,0,0,0,0,0,{"$f":"SUM(Y35:AH35)","v":0},-96,0,0,0,0,0,0,0,0,0,{"$f":"SUM(AJ35:AS35)","v":-96},0,0,0,0,0,0,0,0,0,0,{"$f":"SUM(AU35:BD35)","v":0},0,0,0,0,0,0,0,0,0,0,{"$f":"SUM(BF35:BO35)","v":0},0,0,0,0,0,0,0,0,0,0,{"$f":"SUM(BQ35:BZ35)","v":0},0,0,0,0,0,0,0,0,0,0,{"$f":"SUM(CB35:CK35)","v":0},0,0,0,0,0,0,0,0,0,0,{"$f":"SUM(CM35:CV35)","v":0},0,0,0,0,0,0,0,0,0,0,{"$f":"SUM(CX35:DG35)","v":0},0,0,0,0,0,0,0,0,0,0,{"$f":"SUM(DI35:DR35)","v":0},0,0,{"$f":"SUM(DV3:DV33)","v":0},0,0,0,0,0,0,0,{"$f":"SUM(DT35:EC35)","v":0},null,{"$f":"SUM(EF3:EF34)","v":-96}]
[]
[]
[null,null,"Januar","Februar","Marts","April","Maj","Juni","Juli","August","September","Oktober","November","December"]
[null,null,{"$f":"ABS(M35)","v":0},{"$f":"ABS(X35)","v":0},{"$f":"ABS(AI35)","v":0},{"$f":"ABS(AT35)","v":96},{"$f":"ABS(BE35)","v":0},{"$f":"ABS(BP35)","v":0},{"$f":"ABS(CA35)","v":0},{"$f":"ABS(CL35)","v":0},{"$f":"ABS(CW35)","v":0},{"$f":"ABS(DH35)","v":0},{"$f":"ABS(DS35)","v":0},{"$f":"ABS(ED35)","v":0}]

{"sheet":"Ind Mobilepay","index":4,"n_rows":39,"n_cols":136,"rows_kept":39,"cut":false,"hidden":true,"merged":[]}
["Home",null,"Januar '1","Januar '2","Januar '3","Januar '4","Januar '5","Januar '6","Januar '7","Januar '8","Januar '9","Januar '10","SUM","Februar '1","Februar '2","Februar '3","Februar '4","Februar '5","Februar '6","Februar '7","Februar '8","Februar '9","Februar '10","SUM","Marts '1","Marts '2","Marts '3","Marts '4","Marts '5","Marts '6","Marts '7","Marts '8","Marts '9","Marts '10","SUM","April '1","April '2","April '3","April '4","April '5","April '6","April '7","April '8","April '9","April '10","SUM","Maj '1","Maj '2","Maj '3","Maj '4","Maj '5","Maj '6","Maj '7","Maj '8","Maj '9","Maj '10","SUM","Juni '1","Juni '2","Juni '3","Juni '4","Juni '5","Juni '6","Juni '7","Juni '8","Juni '9","Juni '10","SUM","Juli '1","Juli '2","Juli '3","Juli '4","Juli '5","Juli '6","Juli '7","Juli '8","Juli '9","Juli '10","SUM","August '1","August '2","August '3","August '4","August '5","August '6","August '7","August '8","August '9","August '10","SUM","September '1","September '2","September '3","September '4","September '5","September '6","September '7","September '8","September '9","September '10","SUM","Oktober '1","Oktober '2","Oktober '3","Oktober '4","Oktober '5","Oktober '6","Oktober '7","Oktober '8","Oktober '9","Oktober '10","SUM","November '1","November '2","November '3","November '4","November '5","November '6","November '7","November '8","November '9","November '10","SUM","December '1","December '2","December '3","December '4","December '5","December '6","December '7","December '8","December '9","December '10","SUM",null,"Sum"]
[null,null,"Kenneth"]
[1,null,null,null,null,null,null,null,null,null,null,null,{"$f":"SUM(C3:L3)","v":0},null,null,null,null,null,null,null,null,null,null,{"$f":"SUM(N3:W3)","v":0},null,null,null,null,null,null,null,null,null,null,{"$f":"SUM(Y3:AH3)","v":0},null,null,null,null,null,null,null,null,null,null,{"$f":"SUM(AJ3:AS3)","v":0},null,null,null,null,null,null,null,null,null,null,{"$f":"SUM(AU3:BD3)","v":0},null,null,null,null,null,null,null,null,null,null,{"$f":"SUM(BF3:BO3)","v":0},null,null,null,null,null,null,null,null,null,null,{"$f":"SUM(BQ3:BZ3)","v":0},null,null,null,null,null,null,null,null,null,null,{"$f":"SUM(CB3:CK3)","v":0},null,null,null,null,null,null,null,null,null,null,{"$f":"SUM(CM3:CV3)","v":0},null,null,null,null,null,null,null,null,null,null,{"$f":"SUM(CX3:DG3)","v":0},null,null,null,null,null,null,null,null,null,null,{"$f":"SUM(DI3:DR3)","v":0},null,null,null,null,null,null,null,null,null,null,{"$f":"SUM(DT3:EC3)","v":0},null,{"$f":"SUM(ED3,DS3,DH3,CW3,CL3,CA3,BP3,BE3,AT3,AI3,X3,M3)","v":0}]
[2,null,null,null,null,null,null,null,null,null,null,null,{"$f":"SUM(C4:L4)","v":0},null,null,null,null,null,null,null,null,null,null,{"$f":"SUM(N4:W4)","v":0},null,null,null,null,null,null,null,null,null,null,{"$f":"SUM(Y4:AH4)","v":0},null,null,null,null,null,null,null,null,null,null,{"$f":"SUM(AJ4:AS4)","v":0},null,null,null,null,null,null,null,null,null,null,{"$f":"SUM(AU4:BD4)","v":0},null,null,null,null,null,null,null,null,null,null,{"$f":"SUM(BF4:BO4)","v":0},null,null,null,null,null,null,null,null,null,null,{"$f":"SUM(BQ4:BZ4)","v":0},null,null,null,null,null,null,null,null,null,null,{"$f":"SUM(CB4:CK4)","v":0},null,null,null,null,null,null,null,null,null,null,{"$f":"SUM(CM4:CV4)","v":0},null,null,null,null,null,null,null,null,null,null,{"$f":"SUM(CX4:DG4)","v":0},null,null,null,null,null,null,null,null,null,null,{"$f":"SUM(DI4:DR4)","v":0},null,null,null,null,null,null,null,null,null,null,{"$f":"SUM(DT4:EC4)","v":0},null,{"$f":"SUM(ED4,DS4,DH4,CW4,CL4,CA4,BP4,BE4,AT4,AI4,X4,M4)","v":0}]
[3,null,null,null,null,null,null,null,null,null,null,null,0,null,null,null,null,null,null,null,null,null,null,0,null,null,null,null,null,null,null,null,null,null,0,null,null,null,null,null,null,null,null,null,null,0,null,null,null,null,null,null,null,null,null,null,0,null,null,null,null,null,null,null,null,null,null,0,null,null,null,null,null,null,null,null,null,null,0,null,null,null,null,null,null,null,null,null,null,0,null,null,null,null,null,null,null,null,null,null,0,null,null,null,null,null,null,null,null,null,null,0,null,null,null,null,null,null,null,null,null,null,0,null,null,null,null,null,null,null,null,null,null,0,null,0]
[4,null,null,null,null,null,null,null,null,null,null,null,0,null,null,null,null,null,null,null,null,null,null,0,null,null,null,null,null,null,null,null,null,null,0,null,null,null,null,null,null,null,null,null,null,0,null,null,null,null,null,null,null,null,null,null,0,null,null,null,null,null,null,null,null,null,null,0,null,null,null,null,null,null,null,null,null,null,0,null,null,null,null,null,null,null,null,null,null,0,null,null,null,null,null,null,null,null,null,null,0,null,null,null,null,null,null,null,null,null,null,0,null,null,null,null,null,null,null,null,null,null,0,null,null,null,null,null,null,null,null,null,null,0,null,0]
[5,null,null,null,null,null,null,null,null,null,null,null,0,null,null,null,null,null,null,null,null,null,null,0,null,null,null,null,null,null,null,null,null,null,0,null,null,null,null,null,null,null,null,null,null,0,null,null,null,null,null,null,null,null,null,null,0,null,null,null,null,null,null,null,null,null,null,0,null,null,null,null,null,null,null,null,null,null,0,null,null,null,null,null,null,null,null,null,null,0,null,null,null,null,null,null,null,null,null,null,0,null,null,null,null,null,null,null,null,null,null,0,null,null,null,null,null,null,null,null,null,null,0,null,null,null,null,null,null,null,null,null,null,0,null,0]
[6,null,null,null,null,null,null,null,null,null,null,null,0,null,null,null,null,null,null,null,null,null,null,0,null,null,null,null,null,null,null,null,null,null,0,null,null,null,null,null,null,null,null,null,null,0,null,null,null,null,null,null,null,null,null,null,0,null,null,null,null,null,null,null,null,null,null,0,null,null,null,null,null,null,null,null,null,null,0,null,null,null,null,null,null,null,null,null,null,0,null,null,null,null,null,null,null,null,null,null,0,null,null,null,null,null,null,null,null,null,null,0,null,null,null,null,null,null,null,null,null,null,0,null,null,null,null,null,null,null,null,null,null,0,null,0]
[7,null,null,null,null,null,null,null,null,null,null,null,0,null,null,null,null,null,null,null,null,null,null,0,null,null,null,null,null,null,null,null,null,null,0,null,null,null,null,null,null,null,null,null,null,0,null,null,null,null,null,null,null,null,null,null,0,null,null,null,null,null,null,null,null,null,null,0,null,null,null,null,null,null,null,null,null,null,0,null,null,null,null,null,null,null,null,null,null,0,null,null,null,null,null,null,null,null,null,null,0,null,null,null,null,null,null,null,null,null,null,0,null,null,null,null,null,null,null,null,null,null,0,null,null,null,null,null,null,null,null,null,null,0,null,0]
[8,null,null,null,null,null,null,null,null,null,null,null,0,null,null,null,null,null,null,null,null,null,null,0,null,null,null,null,null,null,null,null,null,null,0,null,null,null,null,null,null,null,null,null,null,0,null,null,null,null,null,null,null,null,null,null,0,null,null,null,null,null,null,null,null,null,null,0,null,null,null,null,null,null,null,null,null,null,0,null,null,null,null,null,null,null,null,null,null,0,null,null,null,null,null,null,null,null,null,null,0,null,null,null,null,null,null,null,null,null,null,0,null,null,null,null,null,null,null,null,null,null,0,null,null,null,null,null,null,null,null,null,null,0,null,0]
[9,null,null,null,null,null,null,null,null,null,null,null,0,null,null,null,null,null,null,null,null,null,null,0,null,null,null,null,null,null,null,null,null,null,0,null,null,null,null,null,null,null,null,null,null,0,null,null,null,null,null,null,null,null,null,null,0,null,null,null,null,null,null,null,null,null,null,0,null,null,null,null,null,null,null,null,null,null,0,null,null,null,null,null,null,null,null,null,null,0,null,null,null,null,null,null,null,null,null,null,0,null,null,null,null,null,null,null,null,null,null,0,null,null,null,null,null,null,null,null,null,null,0,null,null,null,null,null,null,null,null,null,null,0,null,0]
[10,null,null,null,null,null,null,null,null,null,null,null,0,null,null,null,null,null,null,null,null,null,null,0,null,null,null,null,null,null,null,null,null,null,0,null,null,null,null,null,null,null,null,null,null,0,null,null,null,null,null,null,null,null,null,null,0,null,null,null,null,null,null,null,null,null,null,0,null,null,null,null,null,null,null,null,null,null,0,null,null,null,null,null,null,null,null,null,null,0,null,null,null,null,null,null,null,null,null,null,0,null,null,null,null,null,null,null,null,null,null,0,null,null,null,null,null,null,null,null,null,null,0,null,null,null,null,null,null,null,null,null,null,0,null,0]
[11,null,null,null,null,null,null,null,null,null,null,null,0,null,null,null,null,null,null,null,null,null,null,0,null,null,null,null,null,null,null,null,null,null,0,null,null,null,null,null,null,null,null,null,null,0,null,null,null,null,null,null,null,null,null,null,0,null,null,null,null,null,null,null,null,null,null,0,null,null,null,null,null,null,null,null,null,null,0,null,null,null,null,null,null,null,null,null,null,0,null,null,null,null,null,null,null,null,null,null,0,null,null,null,null,null,null,null,null,null,null,0,null,null,null,null,null,null,null,null,null,null,0,null,null,null,null,null,null,null,null,null,null,0,null,0]
[12,null,null,null,null,null,null,null,null,null,null,null,0,null,null,null,null,null,null,null,null,null,null,0,null,null,null,null,null,null,null,null,null,null,0,null,null,null,null,null,null,null,null,null,null,0,null,null,null,null,null,null,null,null,null,null,0,null,null,null,null,null,null,null,null,null,null,0,null,null,null,null,null,null,null,null,null,null,0,null,null,null,null,null,null,null,null,null,null,0,null,null,null,null,null,null,null,null,null,null,0,null,null,null,null,null,null,null,null,null,null,0,null,null,null,null,null,null,null,null,null,null,0,null,null,null,null,null,null,null,null,null,null,0,null,0]
[13,null,null,null,null,null,null,null,null,null,null,null,0,null,null,null,null,null,null,null,null,null,null,0,null,null,null,null,null,null,null,null,null,null,0,null,null,null,null,null,null,null,null,null,null,0,null,null,null,null,null,null,null,null,null,null,0,null,null,null,null,null,null,null,null,null,null,0,null,null,null,null,null,null,null,null,null,null,0,null,null,null,null,null,null,null,null,null,null,0,null,null,null,null,null,null,null,null,null,null,0,null,null,null,null,null,null,null,null,null,null,0,null,null,null,null,null,null,null,null,null,null,0,null,null,null,null,null,null,null,null,null,null,0,null,0]
[14,null,null,null,null,null,null,null,null,null,null,null,0,null,null,null,null,null,null,null,null,null,null,0,null,null,null,null,null,null,null,null,null,null,0,null,null,null,null,null,null,null,null,null,null,0,null,null,null,null,null,null,null,null,null,null,0,null,null,null,null,null,null,null,null,null,null,0,null,null,null,null,null,null,null,null,null,null,0,null,null,null,null,null,null,null,null,null,null,0,null,null,null,null,null,null,null,null,null,null,0,null,null,null,null,null,null,null,null,null,null,0,null,null,null,null,null,null,null,null,null,null,0,null,null,null,null,null,null,null,null,null,null,0,null,0]
[15,null,null,null,null,null,null,null,null,null,null,null,0,null,null,null,null,null,null,null,null,null,null,0,null,null,null,null,null,null,null,null,null,null,0,null,null,null,null,null,null,null,null,null,null,0,null,null,null,null,null,null,null,null,null,null,0,null,null,null,null,null,null,null,null,null,null,0,null,null,null,null,null,null,null,null,null,null,0,null,null,null,null,null,null,null,null,null,null,0,null,null,null,null,null,null,null,null,null,null,0,null,null,null,null,null,null,null,null,null,null,0,null,null,null,null,null,null,null,null,null,null,0,null,null,null,null,null,null,null,null,null,null,0,null,0]
[16,null,null,null,null,null,null,null,null,null,null,null,0,null,null,null,null,null,null,null,null,null,null,0,null,null,null,null,null,null,null,null,null,null,0,null,null,null,null,null,null,null,null,null,null,0,null,null,null,null,null,null,null,null,null,null,0,null,null,null,null,null,null,null,null,null,null,0,null,null,null,null,null,null,null,null,null,null,0,null,null,null,null,null,null,null,null,null,null,0,null,null,null,null,null,null,null,null,null,null,0,null,null,null,null,null,null,null,null,null,null,0,null,null,null,null,null,null,null,null,null,null,0,null,null,null,null,null,null,null,null,null,null,0,null,0]
[17,null,null,null,null,null,null,null,null,null,null,null,0,null,null,null,null,null,null,null,null,null,null,0,null,null,null,null,null,null,null,null,null,null,0,null,null,null,null,null,null,null,null,null,null,0,null,null,null,null,null,null,null,null,null,null,0,null,null,null,null,null,null,null,null,null,null,0,null,null,null,null,null,null,null,null,null,null,0,null,null,null,null,null,null,null,null,null,null,0,null,null,null,null,null,null,null,null,null,null,0,null,null,null,null,null,null,null,null,null,null,0,null,null,null,null,null,null,null,null,null,null,0,null,null,null,null,null,null,null,null,null,null,0,null,0]
[18,null,null,null,null,null,null,null,null,null,null,null,0,null,null,null,null,null,null,null,null,null,null,0,null,null,null,null,null,null,null,null,null,null,0,null,null,null,null,null,null,null,null,null,null,0,null,null,null,null,null,null,null,null,null,null,0,null,null,null,null,null,null,null,null,null,null,0,null,null,null,null,null,null,null,null,null,null,0,null,null,null,null,null,null,null,null,null,null,0,null,null,null,null,null,null,null,null,null,null,0,null,null,null,null,null,null,null,null,null,null,0,null,null,null,null,null,null,null,null,null,null,0,null,null,null,null,null,null,null,null,null,null,0,null,0]
[19,null,null,null,null,null,null,null,null,null,null,null,0,null,null,null,null,null,null,null,null,null,null,0,null,null,null,null,null,null,null,null,null,null,0,null,null,null,null,null,null,null,null,null,null,0,null,null,null,null,null,null,null,null,null,null,0,null,null,null,null,null,null,null,null,null,null,0,null,null,null,null,null,null,null,null,null,null,0,null,null,null,null,null,null,null,null,null,null,0,null,null,null,null,null,null,null,null,null,null,0,null,null,null,null,null,null,null,null,null,null,0,null,null,null,null,null,null,null,null,null,null,0,null,null,null,null,null,null,null,null,null,null,0,null,0]
[20,null,null,null,null,null,null,null,null,null,null,null,0,null,null,null,null,null,null,null,null,null,null,0,null,null,null,null,null,null,null,null,null,null,0,null,null,null,null,null,null,null,null,null,null,0,null,null,null,null,null,null,null,null,null,null,0,null,null,null,null,null,null,null,null,null,null,0,null,null,null,null,null,null,null,null,null,null,0,null,null,null,null,null,null,null,null,null,null,0,null,null,null,null,null,null,null,null,null,null,0,null,null,null,null,null,null,null,null,null,null,0,null,null,null,null,null,null,null,null,null,null,0,null,null,null,null,null,null,null,null,null,null,0,null,0]
[21,null,null,null,null,null,null,null,null,null,null,null,0,null,null,null,null,null,null,null,null,null,null,0,null,null,null,null,null,null,null,null,null,null,0,null,null,null,null,null,null,null,null,null,null,0,null,null,null,null,null,null,null,null,null,null,0,null,null,null,null,null,null,null,null,null,null,0,null,null,null,null,null,null,null,null,null,null,0,null,null,null,null,null,null,null,null,null,null,0,null,null,null,null,null,null,null,null,null,null,0,null,null,null,null,null,null,null,null,null,null,0,null,null,null,null,null,null,null,null,null,null,0,null,null,null,null,null,null,null,null,null,null,0,null,0]
[22,null,null,null,null,null,null,null,null,null,null,null,0,null,null,null,null,null,null,null,null,null,null,0,null,null,null,null,null,null,null,null,null,null,0,null,null,null,null,null,null,null,null,null,null,0,null,null,null,null,null,null,null,null,null,null,0,null,null,null,null,null,null,null,null,null,null,0,null,null,null,null,null,null,null,null,null,null,0,null,null,null,null,null,null,null,null,null,null,0,null,null,null,null,null,null,null,null,null,null,0,null,null,null,null,null,null,null,null,null,null,0,null,null,null,null,null,null,null,null,null,null,0,null,null,null,null,null,null,null,null,null,null,0,null,0]
[23,null,null,null,null,null,null,null,null,null,null,null,0,null,null,null,null,null,null,null,null,null,null,0,null,null,null,null,null,null,null,null,null,null,0,null,null,null,null,null,null,null,null,null,null,0,null,null,null,null,null,null,null,null,null,null,0,null,null,null,null,null,null,null,null,null,null,0,null,null,null,null,null,null,null,null,null,null,0,null,null,null,null,null,null,null,null,null,null,0,null,null,null,null,null,null,null,null,null,null,0,null,null,null,null,null,null,null,null,null,null,0,null,null,null,null,null,null,null,null,null,null,0,null,null,null,null,null,null,null,null,null,null,0,null,0]
[24,null,null,null,null,null,null,null,null,null,null,null,0,null,null,null,null,null,null,null,null,null,null,0,null,null,null,null,null,null,null,null,null,null,0,null,null,null,null,null,null,null,null,null,null,0,null,null,null,null,null,null,null,null,null,null,0,null,null,null,null,null,null,null,null,null,null,0,null,null,null,null,null,null,null,null,null,null,0,null,null,null,null,null,null,null,null,null,null,0,null,null,null,null,null,null,null,null,null,null,0,null,null,null,null,null,null,null,null,null,null,0,null,null,null,null,null,null,null,null,null,null,0,null,null,null,null,null,null,null,null,null,null,0,null,0]
[25,null,null,null,null,null,null,null,null,null,null,null,0,null,null,null,null,null,null,null,null,null,null,0,null,null,null,null,null,null,null,null,null,null,0,null,null,null,null,null,null,null,null,null,null,0,null,null,null,null,null,null,null,null,null,null,0,null,null,null,null,null,null,null,null,null,null,0,null,null,null,null,null,null,null,null,null,null,0,null,null,null,null,null,null,null,null,null,null,0,null,null,null,null,null,null,null,null,null,null,0,null,null,null,null,null,null,null,null,null,null,0,null,null,null,null,null,null,null,null,null,null,0,null,null,null,null,null,null,null,null,null,null,0,null,0]
[26,null,null,null,null,null,null,null,null,null,null,null,0,null,null,null,null,null,null,null,null,null,null,0,null,null,null,null,null,null,null,null,null,null,0,null,null,null,null,null,null,null,null,null,null,0,null,null,null,null,null,null,null,null,null,null,0,null,null,null,null,null,null,null,null,null,null,0,null,null,null,null,null,null,null,null,null,null,0,null,null,null,null,null,null,null,null,null,null,0,null,null,null,null,null,null,null,null,null,null,0,null,null,null,null,null,null,null,null,null,null,0,null,null,null,null,null,null,null,null,null,null,0,null,null,null,null,null,null,null,null,null,null,0,null,0]
[27,null,null,null,null,null,null,null,null,null,null,null,0,null,null,null,null,null,null,null,null,null,null,0,null,null,null,null,null,null,null,null,null,null,0,null,null,null,null,null,null,null,null,null,null,0,null,null,null,null,null,null,null,null,null,null,0,null,null,null,null,null,null,null,null,null,null,0,null,null,null,null,null,null,null,null,null,null,0,null,null,null,null,null,null,null,null,null,null,0,null,null,null,null,null,null,null,null,null,null,0,null,null,null,null,null,null,null,null,null,null,0,null,null,null,null,null,null,null,null,null,null,0,null,null,null,null,null,null,null,null,null,null,0,null,0]
[28,null,null,null,null,null,null,null,null,null,null,null,0,null,null,null,null,null,null,null,null,null,null,0,null,null,null,null,null,null,null,null,null,null,0,null,null,null,null,null,null,null,null,null,null,0,null,null,null,null,null,null,null,null,null,null,0,null,null,null,null,null,null,null,null,null,null,0,null,null,null,null,null,null,null,null,null,null,0,null,null,null,null,null,null,null,null,null,null,0,null,null,null,null,null,null,null,null,null,null,0,null,null,null,null,null,null,null,null,null,null,0,null,null,null,null,null,null,null,null,null,null,0,null,null,null,null,null,null,null,null,null,null,0,null,0]
[29,null,null,null,null,null,null,null,null,null,null,null,0,null,null,null,null,null,null,null,null,null,null,0,null,null,null,null,null,null,null,null,null,null,0,null,null,null,null,null,null,null,null,null,null,0,null,null,null,null,null,null,null,null,null,null,0,null,null,null,null,null,null,null,null,null,null,0,null,null,null,null,null,null,null,null,null,null,0,null,null,null,null,null,null,null,null,null,null,0,null,null,null,null,null,null,null,null,null,null,0,null,null,null,null,null,null,null,null,null,null,0,null,null,null,null,null,null,null,null,null,null,0,null,null,null,null,null,null,null,null,null,null,0,null,0]
[30,null,null,null,null,null,null,null,null,null,null,null,0,null,null,null,null,null,null,null,null,null,null,0,null,null,null,null,null,null,null,null,null,null,0,null,null,null,null,null,null,null,null,null,null,0,null,null,null,null,null,null,null,null,null,null,0,null,null,null,null,null,null,null,null,null,null,0,null,null,null,null,null,null,null,null,null,null,0,null,null,null,null,null,null,null,null,null,null,0,null,null,null,null,null,null,null,null,null,null,0,null,null,null,null,null,null,null,null,null,null,0,null,null,null,null,null,null,null,null,null,null,0,null,null,null,null,null,null,null,null,null,null,0,null,0]
[31,null,null,null,null,null,null,null,null,null,null,null,0,null,null,null,null,null,null,null,null,null,null,0,null,null,null,null,null,null,null,null,null,null,0,null,null,null,null,null,null,null,null,null,null,0,null,null,null,null,null,null,null,null,null,null,0,null,null,null,null,null,null,null,null,null,null,0,null,null,null,null,null,null,null,null,null,null,0,null,null,null,null,null,null,null,null,null,null,0,null,null,null,null,null,null,null,null,null,null,0,null,null,null,null,null,null,null,null,null,null,0,null,null,null,null,null,null,null,null,null,null,0,null,null,null,null,null,null,null,null,null,null,0,null,0]
[]
["Sum",null,{"$f":"SUM(C3:C33)","v":0},{"$f":"SUM(D3:D33)","v":0},0,0,0,0,0,0,0,0,{"$f":"SUM(C35:L35)","v":0},{"$f":"SUM(N3:N33)","v":0},0,0,0,0,0,0,0,0,0,{"$f":"SUM(N35:W35)","v":0},0,0,0,0,0,0,0,0,0,0,{"$f":"SUM(Y35:AH35)","v":0},0,0,0,0,0,0,0,0,0,0,{"$f":"SUM(AJ35:AS35)","v":0},0,0,0,0,0,0,0,0,0,0,{"$f":"SUM(AU35:BD35)","v":0},0,0,0,0,0,0,0,0,0,0,{"$f":"SUM(BF35:BO35)","v":0},0,0,0,0,0,0,0,0,0,0,{"$f":"SUM(BQ35:BZ35)","v":0},0,0,0,0,0,0,0,0,0,0,{"$f":"SUM(CB35:CK35)","v":0},0,0,0,0,0,0,0,0,0,0,{"$f":"SUM(CM35:CV35)","v":0},0,0,0,0,0,0,0,0,0,0,{"$f":"SUM(CX35:DG35)","v":0},0,0,0,0,0,0,0,0,0,0,{"$f":"SUM(DI35:DR35)","v":0},0,0,{"$f":"SUM(DV3:DV33)","v":0},0,0,0,0,0,0,0,{"$f":"SUM(DT35:EC35)","v":0},null,{"$f":"SUM(EF3:EF34)","v":0}]
[]
[]
[null,null,"Januar","Februar","Marts","April","Maj","Juni","Juli","August","September","Oktober","November","December"]
[null,null,{"$f":"ABS(M35)","v":0},{"$f":"ABS(X35)","v":0},{"$f":"ABS(AI35)","v":0},{"$f":"ABS(AT35)","v":0},{"$f":"ABS(BE35)","v":0},{"$f":"ABS(BP35)","v":0},{"$f":"ABS(CA35)","v":0},{"$f":"ABS(CL35)","v":0},{"$f":"ABS(CW35)","v":0},{"$f":"ABS(DH35)","v":0},{"$f":"ABS(DS35)","v":0},{"$f":"ABS(ED35)","v":0}]

{"sheet":"Ind Div","index":5,"n_rows":39,"n_cols":136,"rows_kept":39,"cut":false,"hidden":true,"merged":[]}
["Home",null,"Januar '1","Januar '2","Januar '3","Januar '4","Januar '5","Januar '6","Januar '7","Januar '8","Januar '9","Januar '10","SUM","Februar '1","Februar '2","Februar '3","Februar '4","Februar '5","Februar '6","Februar '7","Februar '8","Februar '9","Februar '10","SUM","Marts '1","Marts '2","Marts '3","Marts '4","Marts '5","Marts '6","Marts '7","Marts '8","Marts '9","Marts '10","SUM","April '1","April '2","April '3","April '4","April '5","April '6","April '7","April '8","April '9","April '10","SUM","Maj '1","Maj '2","Maj '3","Maj '4","Maj '5","Maj '6","Maj '7","Maj '8","Maj '9","Maj '10","SUM","Juni '1","Juni '2","Juni '3","Juni '4","Juni '5","Juni '6","Juni '7","Juni '8","Juni '9","Juni '10","SUM","Juli '1","Juli '2","Juli '3","Juli '4","Juli '5","Juli '6","Juli '7","Juli '8","Juli '9","Juli '10","SUM","August '1","August '2","August '3","August '4","August '5","August '6","August '7","August '8","August '9","August '10","SUM","September '1","September '2","September '3","September '4","September '5","September '6","September '7","September '8","September '9","September '10","SUM","Oktober '1","Oktober '2","Oktober '3","Oktober '4","Oktober '5","Oktober '6","Oktober '7","Oktober '8","Oktober '9","Oktober '10","SUM","November '1","November '2","November '3","November '4","November '5","November '6","November '7","November '8","November '9","November '10","SUM","December '1","December '2","December '3","December '4","December '5","December '6","December '7","December '8","December '9","December '10","SUM",null,"Sum"]
[null,null,"Boxer Ishøj",null,null,null,null,null,null,null,null,null,null,"Boxer Ishøj",null,null,null,null,null,null,null,null,null,null,"Boxer Ishøj",null,null,null,null,null,null,null,null,null,null,"Boxer Ishøj","Dansk retursystem",null,null,null,null,null,null,null,null,null,"Boxer Ishøj",null,null,null,null,null,null,null,null,null,null,"Boxer Ishøj",null,null,null,null,null,null,null,null,null,null,"Boxer Ishøj",null,null,null,null,null,null,null,null,null,null,"Boxer Ishøj",null,null,null,null,null,null,null,null,null,null,"Boxer Ishøj",null,null,null,null,null,null,null,null,null,null,"Boxer Ishøj",null,null,null,null,null,null,null,null,null,null,"Boxer Ishøj",null,null,null,null,null,null,null,null,null,null,"Boxer Ishøj"]
[1,null,null,null,null,null,null,null,null,null,null,null,{"$f":"SUM(C3:L3)","v":0},null,null,null,null,null,null,null,null,null,null,{"$f":"SUM(N3:W3)","v":0},null,null,null,null,null,null,null,null,null,null,{"$f":"SUM(Y3:AH3)","v":0},null,null,null,null,null,null,null,null,null,null,{"$f":"SUM(AJ3:AS3)","v":0},null,null,null,null,null,null,null,null,null,null,{"$f":"SUM(AU3:BD3)","v":0},null,null,null,null,null,null,null,null,null,null,{"$f":"SUM(BF3:BO3)","v":0},null,null,null,null,null,null,null,null,null,null,{"$f":"SUM(BQ3:BZ3)","v":0},null,null,null,null,null,null,null,null,null,null,{"$f":"SUM(CB3:CK3)","v":0},null,null,null,null,null,null,null,null,null,null,{"$f":"SUM(CM3:CV3)","v":0},null,null,null,null,null,null,null,null,null,null,{"$f":"SUM(CX3:DG3)","v":0},null,null,null,null,null,null,null,null,null,null,{"$f":"SUM(DI3:DR3)","v":0},null,null,null,null,null,null,null,null,null,null,{"$f":"SUM(DT3:EC3)","v":0},null,{"$f":"SUM(ED3,DS3,DH3,CW3,CL3,CA3,BP3,BE3,AT3,AI3,X3,M3)","v":0}]
[2,null,null,null,null,null,null,null,null,null,null,null,{"$f":"SUM(C4:L4)","v":0},null,null,null,null,null,null,null,null,null,null,{"$f":"SUM(N4:W4)","v":0},null,null,null,null,null,null,null,null,null,null,{"$f":"SUM(Y4:AH4)","v":0},null,null,null,null,null,null,null,null,null,null,{"$f":"SUM(AJ4:AS4)","v":0},null,null,null,null,null,null,null,null,null,null,{"$f":"SUM(AU4:BD4)","v":0},null,null,null,null,null,null,null,null,null,null,{"$f":"SUM(BF4:BO4)","v":0},null,null,null,null,null,null,null,null,null,null,{"$f":"SUM(BQ4:BZ4)","v":0},null,null,null,null,null,null,null,null,null,null,{"$f":"SUM(CB4:CK4)","v":0},null,null,null,null,null,null,null,null,null,null,{"$f":"SUM(CM4:CV4)","v":0},null,null,null,null,null,null,null,null,null,null,{"$f":"SUM(CX4:DG4)","v":0},null,null,null,null,null,null,null,null,null,null,{"$f":"SUM(DI4:DR4)","v":0},null,null,null,null,null,null,null,null,null,null,{"$f":"SUM(DT4:EC4)","v":0},null,{"$f":"SUM(ED4,DS4,DH4,CW4,CL4,CA4,BP4,BE4,AT4,AI4,X4,M4)","v":0}]
[3,null,null,null,null,null,null,null,null,null,null,null,0,null,null,null,null,null,null,null,null,null,null,0,null,null,null,null,null,null,null,null,null,null,0,null,null,null,null,null,null,null,null,null,null,0,null,null,null,null,null,null,null,null,null,null,0,null,null,null,null,null,null,null,null,null,null,0,null,null,null,null,null,null,null,null,null,null,0,null,null,null,null,null,null,null,null,null,null,0,null,null,null,null,null,null,null,null,null,null,0,null,null,null,null,null,null,null,null,null,null,0,null,null,null,null,null,null,null,null,null,null,0,null,null,null,null,null,null,null,null,null,null,0,null,0]
[4,null,null,null,null,null,null,null,null,null,null,null,0,null,null,null,null,null,null,null,null,null,null,0,null,null,null,null,null,null,null,null,null,null,0,null,null,null,null,null,null,null,null,null,null,0,null,null,null,null,null,null,null,null,null,null,0,null,null,null,null,null,null,null,null,null,null,0,null,null,null,null,null,null,null,null,null,null,0,null,null,null,null,null,null,null,null,null,null,0,null,null,null,null,null,null,null,null,null,null,0,null,null,null,null,null,null,null,null,null,null,0,null,null,null,null,null,null,null,null,null,null,0,null,null,null,null,null,null,null,null,null,null,0,null,0]
[5,null,null,null,null,null,null,null,null,null,null,null,0,null,null,null,null,null,null,null,null,null,null,0,null,null,null,null,null,null,null,null,null,null,0,null,null,null,null,null,null,null,null,null,null,0,null,null,null,null,null,null,null,null,null,null,0,null,null,null,null,null,null,null,null,null,null,0,null,null,null,null,null,null,null,null,null,null,0,null,null,null,null,null,null,null,null,null,null,0,null,null,null,null,null,null,null,null,null,null,0,null,null,null,null,null,null,null,null,null,null,0,null,null,null,null,null,null,null,null,null,null,0,null,null,null,null,null,null,null,null,null,null,0,null,0]
[6,null,null,null,null,null,null,null,null,null,null,null,0,null,null,null,null,null,null,null,null,null,null,0,null,null,null,null,null,null,null,null,null,null,0,null,null,null,null,null,null,null,null,null,null,0,null,null,null,null,null,null,null,null,null,null,0,null,null,null,null,null,null,null,null,null,null,0,null,null,null,null,null,null,null,null,null,null,0,null,null,null,null,null,null,null,null,null,null,0,null,null,null,null,null,null,null,null,null,null,0,null,null,null,null,null,null,null,null,null,null,0,null,null,null,null,null,null,null,null,null,null,0,null,null,null,null,null,null,null,null,null,null,0,null,0]
[7,null,null,null,null,null,null,null,null,null,null,null,0,null,null,null,null,null,null,null,null,null,null,0,null,null,null,null,null,null,null,null,null,null,0,null,null,null,null,null,null,null,null,null,null,0,null,null,null,null,null,null,null,null,null,null,0,null,null,null,null,null,null,null,null,null,null,0,null,null,null,null,null,null,null,null,null,null,0,null,null,null,null,null,null,null,null,null,null,0,null,null,null,null,null,null,null,null,null,null,0,null,null,null,null,null,null,null,null,null,null,0,null,null,null,null,null,null,null,null,null,null,0,null,null,null,null,null,null,null,null,null,null,0,null,0]
[8,null,null,null,null,null,null,null,null,null,null,null,0,null,null,null,null,null,null,null,null,null,null,0,null,null,null,null,null,null,null,null,null,null,0,null,null,null,null,null,null,null,null,null,null,0,null,null,null,null,null,null,null,null,null,null,0,null,null,null,null,null,null,null,null,null,null,0,null,null,null,null,null,null,null,null,null,null,0,null,null,null,null,null,null,null,null,null,null,0,null,null,null,null,null,null,null,null,null,null,0,null,null,null,null,null,null,null,null,null,null,0,null,null,null,null,null,null,null,null,null,null,0,null,null,null,null,null,null,null,null,null,null,0,null,0]
[9,null,null,null,null,null,null,null,null,null,null,null,0,null,null,null,null,null,null,null,null,null,null,0,null,null,null,null,null,null,null,null,null,null,0,null,null,null,null,null,null,null,null,null,null,0,null,null,null,null,null,null,null,null,null,null,0,null,null,null,null,null,null,null,null,null,null,0,null,null,null,null,null,null,null,null,null,null,0,null,null,null,null,null,null,null,null,null,null,0,null,null,null,null,null,null,null,null,null,null,0,null,null,null,null,null,null,null,null,null,null,0,null,null,null,null,null,null,null,null,null,null,0,null,null,null,null,null,null,null,null,null,null,0,null,0]
[10,null,null,null,null,null,null,null,null,null,null,null,0,null,null,null,null,null,null,null,null,null,null,0,null,null,null,null,null,null,null,null,null,null,0,null,null,null,null,null,null,null,null,null,null,0,null,null,null,null,null,null,null,null,null,null,0,null,null,null,null,null,null,null,null,null,null,0,null,null,null,null,null,null,null,null,null,null,0,null,null,null,null,null,null,null,null,null,null,0,null,null,null,null,null,null,null,null,null,null,0,null,null,null,null,null,null,null,null,null,null,0,null,null,null,null,null,null,null,null,null,null,0,null,null,null,null,null,null,null,null,null,null,0,null,0]
[11,null,null,null,null,null,null,null,null,null,null,null,0,null,null,null,null,null,null,null,null,null,null,0,null,null,null,null,null,null,null,null,null,null,0,null,null,null,null,null,null,null,null,null,null,0,null,null,null,null,null,null,null,null,null,null,0,null,null,null,null,null,null,null,null,null,null,0,null,null,null,null,null,null,null,null,null,null,0,null,null,null,null,null,null,null,null,null,null,0,null,null,null,null,null,null,null,null,null,null,0,null,null,null,null,null,null,null,null,null,null,0,null,null,null,null,null,null,null,null,null,null,0,null,null,null,null,null,null,null,null,null,null,0,null,0]
[12,null,null,null,null,null,null,null,null,null,null,null,0,null,null,null,null,null,null,null,null,null,null,0,null,null,null,null,null,null,null,null,null,null,0,null,null,null,null,null,null,null,null,null,null,0,null,null,null,null,null,null,null,null,null,null,0,null,null,null,null,null,null,null,null,null,null,0,null,null,null,null,null,null,null,null,null,null,0,null,null,null,null,null,null,null,null,null,null,0,null,null,null,null,null,null,null,null,null,null,0,null,null,null,null,null,null,null,null,null,null,0,null,null,null,null,null,null,null,null,null,null,0,null,null,null,null,null,null,null,null,null,null,0,null,0]
[13,null,null,null,null,null,null,null,null,null,null,null,0,null,null,null,null,null,null,null,null,null,null,0,null,null,null,null,null,null,null,null,null,null,0,null,null,null,null,null,null,null,null,null,null,0,null,null,null,null,null,null,null,null,null,null,0,null,null,null,null,null,null,null,null,null,null,0,null,null,null,null,null,null,null,null,null,null,0,null,null,null,null,null,null,null,null,null,null,0,null,null,null,null,null,null,null,null,null,null,0,null,null,null,null,null,null,null,null,null,null,0,null,null,null,null,null,null,null,null,null,null,0,null,null,null,null,null,null,null,null,null,null,0,null,0]
[14,null,null,null,null,null,null,null,null,null,null,null,0,null,null,null,null,null,null,null,null,null,null,0,null,null,null,null,null,null,null,null,null,null,0,null,null,null,null,null,null,null,null,null,null,0,null,null,null,null,null,null,null,null,null,null,0,null,null,null,null,null,null,null,null,null,null,0,null,null,null,null,null,null,null,null,null,null,0,null,null,null,null,null,null,null,null,null,null,0,null,null,null,null,null,null,null,null,null,null,0,null,null,null,null,null,null,null,null,null,null,0,null,null,null,null,null,null,null,null,null,null,0,null,null,null,null,null,null,null,null,null,null,0,null,0]
[15,null,null,null,null,null,null,null,null,null,null,null,0,null,null,null,null,null,null,null,null,null,null,0,null,null,null,null,null,null,null,null,null,null,0,null,null,null,null,null,null,null,null,null,null,0,null,null,null,null,null,null,null,null,null,null,0,null,null,null,null,null,null,null,null,null,null,0,null,null,null,null,null,null,null,null,null,null,0,null,null,null,null,null,null,null,null,null,null,0,null,null,null,null,null,null,null,null,null,null,0,null,null,null,null,null,null,null,null,null,null,0,null,null,null,null,null,null,null,null,null,null,0,null,null,null,null,null,null,null,null,null,null,0,null,0]
[16,null,null,null,null,null,null,null,null,null,null,null,0,null,null,null,null,null,null,null,null,null,null,0,null,null,null,null,null,null,null,null,null,null,0,null,null,null,null,null,null,null,null,null,null,0,null,null,null,null,null,null,null,null,null,null,0,null,null,null,null,null,null,null,null,null,null,0,null,null,null,null,null,null,null,null,null,null,0,null,null,null,null,null,null,null,null,null,null,0,null,null,null,null,null,null,null,null,null,null,0,null,null,null,null,null,null,null,null,null,null,0,null,null,null,null,null,null,null,null,null,null,0,null,null,null,null,null,null,null,null,null,null,0,null,0]
[17,null,null,null,null,null,null,null,null,null,null,null,0,null,null,null,null,null,null,null,null,null,null,0,null,null,null,null,null,null,null,null,null,null,0,null,null,null,null,null,null,null,null,null,null,0,null,null,null,null,null,null,null,null,null,null,0,null,null,null,null,null,null,null,null,null,null,0,null,null,null,null,null,null,null,null,null,null,0,null,null,null,null,null,null,null,null,null,null,0,null,null,null,null,null,null,null,null,null,null,0,null,null,null,null,null,null,null,null,null,null,0,null,null,null,null,null,null,null,null,null,null,0,null,null,null,null,null,null,null,null,null,null,0,null,0]
[18,null,null,null,null,null,null,null,null,null,null,null,0,null,null,null,null,null,null,null,null,null,null,0,null,null,null,null,null,null,null,null,null,null,0,null,null,null,null,null,null,null,null,null,null,0,null,null,null,null,null,null,null,null,null,null,0,null,null,null,null,null,null,null,null,null,null,0,null,null,null,null,null,null,null,null,null,null,0,null,null,null,null,null,null,null,null,null,null,0,null,null,null,null,null,null,null,null,null,null,0,null,null,null,null,null,null,null,null,null,null,0,null,null,null,null,null,null,null,null,null,null,0,null,null,null,null,null,null,null,null,null,null,0,null,0]
[19,null,null,null,null,null,null,null,null,null,null,null,0,null,null,null,null,null,null,null,null,null,null,0,null,null,null,null,null,null,null,null,null,null,0,null,null,null,null,null,null,null,null,null,null,0,null,null,null,null,null,null,null,null,null,null,0,null,null,null,null,null,null,null,null,null,null,0,null,null,null,null,null,null,null,null,null,null,0,null,null,null,null,null,null,null,null,null,null,0,null,null,null,null,null,null,null,null,null,null,0,null,null,null,null,null,null,null,null,null,null,0,null,null,null,null,null,null,null,null,null,null,0,null,null,null,null,null,null,null,null,null,null,0,null,0]
[20,null,null,null,null,null,null,null,null,null,null,null,0,null,null,null,null,null,null,null,null,null,null,0,null,null,null,null,null,null,null,null,null,null,0,null,null,null,null,null,null,null,null,null,null,0,null,null,null,null,null,null,null,null,null,null,0,null,null,null,null,null,null,null,null,null,null,0,null,null,null,null,null,null,null,null,null,null,0,null,null,null,null,null,null,null,null,null,null,0,null,null,null,null,null,null,null,null,null,null,0,null,null,null,null,null,null,null,null,null,null,0,null,null,null,null,null,null,null,null,null,null,0,null,null,null,null,null,null,null,null,null,null,0,null,0]
[21,null,null,null,null,null,null,null,null,null,null,null,0,null,null,null,null,null,null,null,null,null,null,0,null,null,null,null,null,null,null,null,null,null,0,null,null,null,null,null,null,null,null,null,null,0,null,null,null,null,null,null,null,null,null,null,0,null,null,null,null,null,null,null,null,null,null,0,null,null,null,null,null,null,null,null,null,null,0,null,null,null,null,null,null,null,null,null,null,0,null,null,null,null,null,null,null,null,null,null,0,null,null,null,null,null,null,null,null,null,null,0,null,null,null,null,null,null,null,null,null,null,0,null,null,null,null,null,null,null,null,null,null,0,null,0]
[22,null,null,null,null,null,null,null,null,null,null,null,0,null,null,null,null,null,null,null,null,null,null,0,null,null,null,null,null,null,null,null,null,null,0,null,null,null,null,null,null,null,null,null,null,0,null,null,null,null,null,null,null,null,null,null,0,null,null,null,null,null,null,null,null,null,null,0,null,null,null,null,null,null,null,null,null,null,0,null,null,null,null,null,null,null,null,null,null,0,null,null,null,null,null,null,null,null,null,null,0,null,null,null,null,null,null,null,null,null,null,0,null,null,null,null,null,null,null,null,null,null,0,null,null,null,null,null,null,null,null,null,null,0,null,0]
[23,null,null,null,null,null,null,null,null,null,null,null,0,null,null,null,null,null,null,null,null,null,null,0,null,null,null,null,null,null,null,null,null,null,0,null,null,null,null,null,null,null,null,null,null,0,null,null,null,null,null,null,null,null,null,null,0,null,null,null,null,null,null,null,null,null,null,0,null,null,null,null,null,null,null,null,null,null,0,null,null,null,null,null,null,null,null,null,null,0,null,null,null,null,null,null,null,null,null,null,0,null,null,null,null,null,null,null,null,null,null,0,null,null,null,null,null,null,null,null,null,null,0,null,null,null,null,null,null,null,null,null,null,0,null,0]
[24,null,null,null,null,null,null,null,null,null,null,null,0,null,null,null,null,null,null,null,null,null,null,0,null,null,null,null,null,null,null,null,null,null,0,null,null,null,null,null,null,null,null,null,null,0,null,null,null,null,null,null,null,null,null,null,0,null,null,null,null,null,null,null,null,null,null,0,null,null,null,null,null,null,null,null,null,null,0,null,null,null,null,null,null,null,null,null,null,0,null,null,null,null,null,null,null,null,null,null,0,null,null,null,null,null,null,null,null,null,null,0,null,null,null,null,null,null,null,null,null,null,0,null,null,null,null,null,null,null,null,null,null,0,null,0]
[25,null,null,null,null,null,null,null,null,null,null,null,0,null,null,null,null,null,null,null,null,null,null,0,null,null,null,null,null,null,null,null,null,null,0,null,null,null,null,null,null,null,null,null,null,0,null,null,null,null,null,null,null,null,null,null,0,null,null,null,null,null,null,null,null,null,null,0,null,null,null,null,null,null,null,null,null,null,0,null,null,null,null,null,null,null,null,null,null,0,null,null,null,null,null,null,null,null,null,null,0,null,null,null,null,null,null,null,null,null,null,0,null,null,null,null,null,null,null,null,null,null,0,null,null,null,null,null,null,null,null,null,null,0,null,0]
[26,null,null,null,null,null,null,null,null,null,null,null,0,null,null,null,null,null,null,null,null,null,null,0,null,null,null,null,null,null,null,null,null,null,0,null,null,null,null,null,null,null,null,null,null,0,null,null,null,null,null,null,null,null,null,null,0,null,null,null,null,null,null,null,null,null,null,0,null,null,null,null,null,null,null,null,null,null,0,null,null,null,null,null,null,null,null,null,null,0,null,null,null,null,null,null,null,null,null,null,0,null,null,null,null,null,null,null,null,null,null,0,null,null,null,null,null,null,null,null,null,null,0,null,null,null,null,null,null,null,null,null,null,0,null,0]
[27,null,null,null,null,null,null,null,null,null,null,null,0,null,null,null,null,null,null,null,null,null,null,0,null,null,null,null,null,null,null,null,null,null,0,null,null,null,null,null,null,null,null,null,null,0,null,null,null,null,null,null,null,null,null,null,0,null,null,null,null,null,null,null,null,null,null,0,null,null,null,null,null,null,null,null,null,null,0,null,null,null,null,null,null,null,null,null,null,0,null,null,null,null,null,null,null,null,null,null,0,null,null,null,null,null,null,null,null,null,null,0,null,null,null,null,null,null,null,null,null,null,0,null,null,null,null,null,null,null,null,null,null,0,null,0]
[28,null,null,null,null,null,null,null,null,null,null,null,0,null,null,null,null,null,null,null,null,null,null,0,null,null,null,null,null,null,null,null,null,null,0,null,null,null,null,null,null,null,null,null,null,0,null,null,null,null,null,null,null,null,null,null,0,null,null,null,null,null,null,null,null,null,null,0,null,null,null,null,null,null,null,null,null,null,0,null,null,null,null,null,null,null,null,null,null,0,null,null,null,null,null,null,null,null,null,null,0,null,null,null,null,null,null,null,null,null,null,0,null,null,null,null,null,null,null,null,null,null,0,null,null,null,null,null,null,null,null,null,null,0,null,0]
[29,null,null,null,null,null,null,null,null,null,null,null,0,null,null,null,null,null,null,null,null,null,null,0,null,null,null,null,null,null,null,null,null,null,0,null,112.5,null,null,null,null,null,null,null,null,112.5,null,null,null,null,null,null,null,null,null,null,0,null,null,null,null,null,null,null,null,null,null,0,null,null,null,null,null,null,null,null,null,null,0,null,null,null,null,null,null,null,null,null,null,0,null,null,null,null,null,null,null,null,null,null,0,null,null,null,null,null,null,null,null,null,null,0,null,null,null,null,null,null,null,null,null,null,0,null,null,null,null,null,null,null,null,null,null,0,null,112.5]
[30,null,null,null,null,null,null,null,null,null,null,null,0,null,null,null,null,null,null,null,null,null,null,0,null,null,null,null,null,null,null,null,null,null,0,null,null,null,null,null,null,null,null,null,null,0,null,null,null,null,null,null,null,null,null,null,0,null,null,null,null,null,null,null,null,null,null,0,null,null,null,null,null,null,null,null,null,null,0,null,null,null,null,null,null,null,null,null,null,0,null,null,null,null,null,null,null,null,null,null,0,null,null,null,null,null,null,null,null,null,null,0,null,null,null,null,null,null,null,null,null,null,0,null,null,null,null,null,null,null,null,null,null,0,null,0]
[31,null,null,null,null,null,null,null,null,null,null,null,0,null,null,null,null,null,null,null,null,null,null,0,null,null,null,null,null,null,null,null,null,null,0,null,null,null,null,null,null,null,null,null,null,0,null,null,null,null,null,null,null,null,null,null,0,null,null,null,null,null,null,null,null,null,null,0,null,null,null,null,null,null,null,null,null,null,0,null,null,null,null,null,null,null,null,null,null,0,null,null,null,null,null,null,null,null,null,null,0,null,null,null,null,null,null,null,null,null,null,0,null,null,null,null,null,null,null,null,null,null,0,null,null,null,null,null,null,null,null,null,null,0,null,0]
[]
["Sum",null,{"$f":"SUM(C3:C33)","v":0},{"$f":"SUM(D3:D33)","v":0},0,0,0,0,0,0,0,0,{"$f":"SUM(C35:L35)","v":0},{"$f":"SUM(N3:N33)","v":0},0,0,0,0,0,0,0,0,0,{"$f":"SUM(N35:W35)","v":0},0,0,0,0,0,0,0,0,0,0,{"$f":"SUM(Y35:AH35)","v":0},0,112.5,0,0,0,0,0,0,0,0,{"$f":"SUM(AJ35:AS35)","v":112.5},0,0,0,0,0,0,0,0,0,0,{"$f":"SUM(AU35:BD35)","v":0},0,0,0,0,0,0,0,0,0,0,{"$f":"SUM(BF35:BO35)","v":0},0,0,0,0,0,0,0,0,0,0,{"$f":"SUM(BQ35:BZ35)","v":0},0,0,0,0,0,0,0,0,0,0,{"$f":"SUM(CB35:CK35)","v":0},0,0,0,0,0,0,0,0,0,0,{"$f":"SUM(CM35:CV35)","v":0},0,0,0,0,0,0,0,0,0,0,{"$f":"SUM(CX35:DG35)","v":0},0,0,0,0,0,0,0,0,0,0,{"$f":"SUM(DI35:DR35)","v":0},0,0,{"$f":"SUM(DV3:DV33)","v":0},0,0,0,0,0,0,0,{"$f":"SUM(DT35:EC35)","v":0},null,{"$f":"SUM(EF3:EF34)","v":112.5}]
[]
[]
[null,null,"Januar","Februar","Marts","April","Maj","Juni","Juli","August","September","Oktober","November","December"]
[null,null,{"$f":"ABS(M35)","v":0},{"$f":"ABS(X35)","v":0},{"$f":"ABS(AI35)","v":0},{"$f":"ABS(AT35)","v":112.5},{"$f":"ABS(BE35)","v":0},{"$f":"ABS(BP35)","v":0},{"$f":"ABS(CA35)","v":0},{"$f":"ABS(CL35)","v":0},{"$f":"ABS(CW35)","v":0},{"$f":"ABS(DH35)","v":0},{"$f":"ABS(DS35)","v":0},{"$f":"ABS(ED35)","v":0}]

{"sheet":"Ind TG","index":6,"n_rows":39,"n_cols":136,"rows_kept":39,"cut":false,"hidden":true,"merged":[]}
["Home",null,"Januar '1","Januar '2","Januar '3","Januar '4","Januar '5","Januar '6","Januar '7","Januar '8","Januar '9","Januar '10","SUM","Februar '1","Februar '2","Februar '3","Februar '4","Februar '5","Februar '6","Februar '7","Februar '8","Februar '9","Februar '10","SUM","Marts '1","Marts '2","Marts '3","Marts '4","Marts '5","Marts '6","Marts '7","Marts '8","Marts '9","Marts '10","SUM","April '1","April '2","April '3","April '4","April '5","April '6","April '7","April '8","April '9","April '10","SUM","Maj '1","Maj '2","Maj '3","Maj '4","Maj '5","Maj '6","Maj '7","Maj '8","Maj '9","Maj '10","SUM","Juni '1","Juni '2","Juni '3","Juni '4","Juni '5","Juni '6","Juni '7","Juni '8","Juni '9","Juni '10","SUM","Juli '1","Juli '2","Juli '3","Juli '4","Juli '5","Juli '6","Juli '7","Juli '8","Juli '9","Juli '10","SUM","August '1","August '2","August '3","August '4","August '5","August '6","August '7","August '8","August '9","August '10","SUM","September '1","September '2","September '3","September '4","September '5","September '6","September '7","September '8","September '9","September '10","SUM","Oktober '1","Oktober '2","Oktober '3","Oktober '4","Oktober '5","Oktober '6","Oktober '7","Oktober '8","Oktober '9","Oktober '10","SUM","November '1","November '2","November '3","November '4","November '5","November '6","November '7","November '8","November '9","November '10","SUM","December '1","December '2","December '3","December '4","December '5","December '6","December '7","December '8","December '9","December '10","SUM",null,"Sum"]
[]
[1,null,null,null,null,null,null,null,null,null,null,null,{"$f":"SUM(C3:L3)","v":0},null,null,null,null,null,null,null,null,null,null,{"$f":"SUM(N3:W3)","v":0},null,null,null,null,null,null,null,null,null,null,{"$f":"SUM(Y3:AH3)","v":0},null,null,null,null,null,null,null,null,null,null,{"$f":"SUM(AJ3:AS3)","v":0},null,null,null,null,null,null,null,null,null,null,{"$f":"SUM(AU3:BD3)","v":0},null,null,null,null,null,null,null,null,null,null,{"$f":"SUM(BF3:BO3)","v":0},null,null,null,null,null,null,null,null,null,null,{"$f":"SUM(BQ3:BZ3)","v":0},null,null,null,null,null,null,null,null,null,null,{"$f":"SUM(CB3:CK3)","v":0},null,null,null,null,null,null,null,null,null,null,{"$f":"SUM(CM3:CV3)","v":0},null,null,null,null,null,null,null,null,null,null,{"$f":"SUM(CX3:DG3)","v":0},null,null,null,null,null,null,null,null,null,null,{"$f":"SUM(DI3:DR3)","v":0},null,null,null,null,null,null,null,null,null,null,{"$f":"SUM(DT3:EC3)","v":0},null,{"$f":"SUM(ED3,DS3,DH3,CW3,CL3,CA3,BP3,BE3,AT3,AI3,X3,M3)","v":0}]
[2,null,null,null,null,null,null,null,null,null,null,null,{"$f":"SUM(C4:L4)","v":0},null,null,null,null,null,null,null,null,null,null,{"$f":"SUM(N4:W4)","v":0},null,null,null,null,null,null,null,null,null,null,{"$f":"SUM(Y4:AH4)","v":0},null,null,null,null,null,null,null,null,null,null,{"$f":"SUM(AJ4:AS4)","v":0},null,null,null,null,null,null,null,null,null,null,{"$f":"SUM(AU4:BD4)","v":0},null,null,null,null,null,null,null,null,null,null,{"$f":"SUM(BF4:BO4)","v":0},null,null,null,null,null,null,null,null,null,null,{"$f":"SUM(BQ4:BZ4)","v":0},null,null,null,null,null,null,null,null,null,null,{"$f":"SUM(CB4:CK4)","v":0},null,null,null,null,null,null,null,null,null,null,{"$f":"SUM(CM4:CV4)","v":0},null,null,null,null,null,null,null,null,null,null,{"$f":"SUM(CX4:DG4)","v":0},null,null,null,null,null,null,null,null,null,null,{"$f":"SUM(DI4:DR4)","v":0},null,null,null,null,null,null,null,null,null,null,{"$f":"SUM(DT4:EC4)","v":0},null,{"$f":"SUM(ED4,DS4,DH4,CW4,CL4,CA4,BP4,BE4,AT4,AI4,X4,M4)","v":0}]
[3,null,null,null,null,null,null,null,null,null,null,null,0,null,null,null,null,null,null,null,null,null,null,0,null,null,null,null,null,null,null,null,null,null,0,null,null,null,null,null,null,null,null,null,null,0,null,null,null,null,null,null,null,null,null,null,0,null,null,null,null,null,null,null,null,null,null,0,null,null,null,null,null,null,null,null,null,null,0,null,null,null,null,null,null,null,null,null,null,0,null,null,null,null,null,null,null,null,null,null,0,null,null,null,null,null,null,null,null,null,null,0,null,null,null,null,null,null,null,null,null,null,0,null,null,null,null,null,null,null,null,null,null,0,null,0]
[4,null,null,null,null,null,null,null,null,null,null,null,0,null,null,null,null,null,null,null,null,null,null,0,null,null,null,null,null,null,null,null,null,null,0,null,null,null,null,null,null,null,null,null,null,0,null,null,null,null,null,null,null,null,null,null,0,null,null,null,null,null,null,null,null,null,null,0,null,null,null,null,null,null,null,null,null,null,0,null,null,null,null,null,null,null,null,null,null,0,null,null,null,null,null,null,null,null,null,null,0,null,null,null,null,null,null,null,null,null,null,0,null,null,null,null,null,null,null,null,null,null,0,null,null,null,null,null,null,null,null,null,null,0,null,0]
[5,null,null,null,null,null,null,null,null,null,null,null,0,null,null,null,null,null,null,null,null,null,null,0,null,null,null,null,null,null,null,null,null,null,0,null,null,null,null,null,null,null,null,null,null,0,null,null,null,null,null,null,null,null,null,null,0,null,null,null,null,null,null,null,null,null,null,0,null,null,null,null,null,null,null,null,null,null,0,null,null,null,null,null,null,null,null,null,null,0,null,null,null,null,null,null,null,null,null,null,0,null,null,null,null,null,null,null,null,null,null,0,null,null,null,null,null,null,null,null,null,null,0,null,null,null,null,null,null,null,null,null,null,0,null,0]
[6,null,null,null,null,null,null,null,null,null,null,null,0,null,null,null,null,null,null,null,null,null,null,0,null,null,null,null,null,null,null,null,null,null,0,null,null,null,null,null,null,null,null,null,null,0,null,null,null,null,null,null,null,null,null,null,0,null,null,null,null,null,null,null,null,null,null,0,null,null,null,null,null,null,null,null,null,null,0,null,null,null,null,null,null,null,null,null,null,0,null,null,null,null,null,null,null,null,null,null,0,null,null,null,null,null,null,null,null,null,null,0,null,null,null,null,null,null,null,null,null,null,0,null,null,null,null,null,null,null,null,null,null,0,null,0]
[7,null,null,null,null,null,null,null,null,null,null,null,0,null,null,null,null,null,null,null,null,null,null,0,null,null,null,null,null,null,null,null,null,null,0,null,null,null,null,null,null,null,null,null,null,0,null,null,null,null,null,null,null,null,null,null,0,null,null,null,null,null,null,null,null,null,null,0,null,null,null,null,null,null,null,null,null,null,0,null,null,null,null,null,null,null,null,null,null,0,null,null,null,null,null,null,null,null,null,null,0,null,null,null,null,null,null,null,null,null,null,0,null,null,null,null,null,null,null,null,null,null,0,null,null,null,null,null,null,null,null,null,null,0,null,0]
[8,null,null,null,null,null,null,null,null,null,null,null,0,null,null,null,null,null,null,null,null,null,null,0,null,null,null,null,null,null,null,null,null,null,0,null,null,null,null,null,null,null,null,null,null,0,null,null,null,null,null,null,null,null,null,null,0,null,null,null,null,null,null,null,null,null,null,0,null,null,null,null,null,null,null,null,null,null,0,null,null,null,null,null,null,null,null,null,null,0,null,null,null,null,null,null,null,null,null,null,0,null,null,null,null,null,null,null,null,null,null,0,null,null,null,null,null,null,null,null,null,null,0,null,null,null,null,null,null,null,null,null,null,0,null,0]
[9,null,null,null,null,null,null,null,null,null,null,null,0,null,null,null,null,null,null,null,null,null,null,0,null,null,null,null,null,null,null,null,null,null,0,null,null,null,null,null,null,null,null,null,null,0,null,null,null,null,null,null,null,null,null,null,0,null,null,null,null,null,null,null,null,null,null,0,null,null,null,null,null,null,null,null,null,null,0,null,null,null,null,null,null,null,null,null,null,0,null,null,null,null,null,null,null,null,null,null,0,null,null,null,null,null,null,null,null,null,null,0,null,null,null,null,null,null,null,null,null,null,0,null,null,null,null,null,null,null,null,null,null,0,null,0]
[10,null,null,null,null,null,null,null,null,null,null,null,0,null,null,null,null,null,null,null,null,null,null,0,null,null,null,null,null,null,null,null,null,null,0,null,null,null,null,null,null,null,null,null,null,0,null,null,null,null,null,null,null,null,null,null,0,null,null,null,null,null,null,null,null,null,null,0,null,null,null,null,null,null,null,null,null,null,0,null,null,null,null,null,null,null,null,null,null,0,null,null,null,null,null,null,null,null,null,null,0,null,null,null,null,null,null,null,null,null,null,0,null,null,null,null,null,null,null,null,null,null,0,null,null,null,null,null,null,null,null,null,null,0,null,0]
[11,null,null,null,null,null,null,null,null,null,null,null,0,null,null,null,null,null,null,null,null,null,null,0,null,null,null,null,null,null,null,null,null,null,0,null,null,null,null,null,null,null,null,null,null,0,null,null,null,null,null,null,null,null,null,null,0,null,null,null,null,null,null,null,null,null,null,0,null,null,null,null,null,null,null,null,null,null,0,null,null,null,null,null,null,null,null,null,null,0,null,null,null,null,null,null,null,null,null,null,0,null,null,null,null,null,null,null,null,null,null,0,null,null,null,null,null,null,null,null,null,null,0,null,null,null,null,null,null,null,null,null,null,0,null,0]
[12,null,null,null,null,null,null,null,null,null,null,null,0,null,null,null,null,null,null,null,null,null,null,0,null,null,null,null,null,null,null,null,null,null,0,null,null,null,null,null,null,null,null,null,null,0,null,null,null,null,null,null,null,null,null,null,0,null,null,null,null,null,null,null,null,null,null,0,null,null,null,null,null,null,null,null,null,null,0,null,null,null,null,null,null,null,null,null,null,0,null,null,null,null,null,null,null,null,null,null,0,null,null,null,null,null,null,null,null,null,null,0,null,null,null,null,null,null,null,null,null,null,0,null,null,null,null,null,null,null,null,null,null,0,null,0]
[13,null,null,null,null,null,null,null,null,null,null,null,0,null,null,null,null,null,null,null,null,null,null,0,null,null,null,null,null,null,null,null,null,null,0,null,null,null,null,null,null,null,null,null,null,0,null,null,null,null,null,null,null,null,null,null,0,null,null,null,null,null,null,null,null,null,null,0,null,null,null,null,null,null,null,null,null,null,0,null,null,null,null,null,null,null,null,null,null,0,null,null,null,null,null,null,null,null,null,null,0,null,null,null,null,null,null,null,null,null,null,0,null,null,null,null,null,null,null,null,null,null,0,null,null,null,null,null,null,null,null,null,null,0,null,0]
[14,null,null,null,null,null,null,null,null,null,null,null,0,null,null,null,null,null,null,null,null,null,null,0,null,null,null,null,null,null,null,null,null,null,0,null,null,null,null,null,null,null,null,null,null,0,null,null,null,null,null,null,null,null,null,null,0,null,null,null,null,null,null,null,null,null,null,0,null,null,null,null,null,null,null,null,null,null,0,null,null,null,null,null,null,null,null,null,null,0,null,null,null,null,null,null,null,null,null,null,0,null,null,null,null,null,null,null,null,null,null,0,null,null,null,null,null,null,null,null,null,null,0,null,null,null,null,null,null,null,null,null,null,0,null,0]
[15,null,null,null,null,null,null,null,null,null,null,null,0,null,null,null,null,null,null,null,null,null,null,0,null,null,null,null,null,null,null,null,null,null,0,null,null,null,null,null,null,null,null,null,null,0,null,null,null,null,null,null,null,null,null,null,0,null,null,null,null,null,null,null,null,null,null,0,null,null,null,null,null,null,null,null,null,null,0,null,null,null,null,null,null,null,null,null,null,0,null,null,null,null,null,null,null,null,null,null,0,null,null,null,null,null,null,null,null,null,null,0,null,null,null,null,null,null,null,null,null,null,0,null,null,null,null,null,null,null,null,null,null,0,null,0]
[16,null,null,null,null,null,null,null,null,null,null,null,0,null,null,null,null,null,null,null,null,null,null,0,null,null,null,null,null,null,null,null,null,null,0,null,null,null,null,null,null,null,null,null,null,0,null,null,null,null,null,null,null,null,null,null,0,null,null,null,null,null,null,null,null,null,null,0,null,null,null,null,null,null,null,null,null,null,0,null,null,null,null,null,null,null,null,null,null,0,null,null,null,null,null,null,null,null,null,null,0,null,null,null,null,null,null,null,null,null,null,0,null,null,null,null,null,null,null,null,null,null,0,null,null,null,null,null,null,null,null,null,null,0,null,0]
[17,null,null,null,null,null,null,null,null,null,null,null,0,null,null,null,null,null,null,null,null,null,null,0,null,null,null,null,null,null,null,null,null,null,0,null,null,null,null,null,null,null,null,null,null,0,null,null,null,null,null,null,null,null,null,null,0,null,null,null,null,null,null,null,null,null,null,0,null,null,null,null,null,null,null,null,null,null,0,null,null,null,null,null,null,null,null,null,null,0,null,null,null,null,null,null,null,null,null,null,0,null,null,null,null,null,null,null,null,null,null,0,null,null,null,null,null,null,null,null,null,null,0,null,null,null,null,null,null,null,null,null,null,0,null,0]
[18,null,null,null,null,null,null,null,null,null,null,null,0,null,null,null,null,null,null,null,null,null,null,0,null,null,null,null,null,null,null,null,null,null,0,null,null,null,null,null,null,null,null,null,null,0,null,null,null,null,null,null,null,null,null,null,0,null,null,null,null,null,null,null,null,null,null,0,null,null,null,null,null,null,null,null,null,null,0,null,null,null,null,null,null,null,null,null,null,0,null,null,null,null,null,null,null,null,null,null,0,null,null,null,null,null,null,null,null,null,null,0,null,null,null,null,null,null,null,null,null,null,0,null,null,null,null,null,null,null,null,null,null,0,null,0]
[19,null,null,null,null,null,null,null,null,null,null,null,0,null,null,null,null,null,null,null,null,null,null,0,null,null,null,null,null,null,null,null,null,null,0,null,null,null,null,null,null,null,null,null,null,0,null,null,null,null,null,null,null,null,null,null,0,null,null,null,null,null,null,null,null,null,null,0,null,null,null,null,null,null,null,null,null,null,0,null,null,null,null,null,null,null,null,null,null,0,null,null,null,null,null,null,null,null,null,null,0,null,null,null,null,null,null,null,null,null,null,0,null,null,null,null,null,null,null,null,null,null,0,null,null,null,null,null,null,null,null,null,null,0,null,0]
[20,null,null,null,null,null,null,null,null,null,null,null,0,null,null,null,null,null,null,null,null,null,null,0,null,null,null,null,null,null,null,null,null,null,0,null,null,null,null,null,null,null,null,null,null,0,null,null,null,null,null,null,null,null,null,null,0,null,null,null,null,null,null,null,null,null,null,0,null,null,null,null,null,null,null,null,null,null,0,null,null,null,null,null,null,null,null,null,null,0,null,null,null,null,null,null,null,null,null,null,0,null,null,null,null,null,null,null,null,null,null,0,null,null,null,null,null,null,null,null,null,null,0,null,null,null,null,null,null,null,null,null,null,0,null,0]
[21,null,null,null,null,null,null,null,null,null,null,null,0,null,null,null,null,null,null,null,null,null,null,0,null,null,null,null,null,null,null,null,null,null,0,null,null,null,null,null,null,null,null,null,null,0,null,null,null,null,null,null,null,null,null,null,0,null,null,null,null,null,null,null,null,null,null,0,null,null,null,null,null,null,null,null,null,null,0,null,null,null,null,null,null,null,null,null,null,0,null,null,null,null,null,null,null,null,null,null,0,null,null,null,null,null,null,null,null,null,null,0,null,null,null,null,null,null,null,null,null,null,0,null,null,null,null,null,null,null,null,null,null,0,null,0]
[22,null,null,null,null,null,null,null,null,null,null,null,0,null,null,null,null,null,null,null,null,null,null,0,null,null,null,null,null,null,null,null,null,null,0,null,null,null,null,null,null,null,null,null,null,0,null,null,null,null,null,null,null,null,null,null,0,null,null,null,null,null,null,null,null,null,null,0,null,null,null,null,null,null,null,null,null,null,0,null,null,null,null,null,null,null,null,null,null,0,null,null,null,null,null,null,null,null,null,null,0,null,null,null,null,null,null,null,null,null,null,0,null,null,null,null,null,null,null,null,null,null,0,null,null,null,null,null,null,null,null,null,null,0,null,0]
[23,null,null,null,null,null,null,null,null,null,null,null,0,null,null,null,null,null,null,null,null,null,null,0,null,null,null,null,null,null,null,null,null,null,0,null,null,null,null,null,null,null,null,null,null,0,null,null,null,null,null,null,null,null,null,null,0,null,null,null,null,null,null,null,null,null,null,0,null,null,null,null,null,null,null,null,null,null,0,null,null,null,null,null,null,null,null,null,null,0,null,null,null,null,null,null,null,null,null,null,0,null,null,null,null,null,null,null,null,null,null,0,null,null,null,null,null,null,null,null,null,null,0,null,null,null,null,null,null,null,null,null,null,0,null,0]
[24,null,null,null,null,null,null,null,null,null,null,null,0,null,null,null,null,null,null,null,null,null,null,0,null,null,null,null,null,null,null,null,null,null,0,null,null,null,null,null,null,null,null,null,null,0,null,null,null,null,null,null,null,null,null,null,0,null,null,null,null,null,null,null,null,null,null,0,null,null,null,null,null,null,null,null,null,null,0,null,null,null,null,null,null,null,null,null,null,0,null,null,null,null,null,null,null,null,null,null,0,null,null,null,null,null,null,null,null,null,null,0,null,null,null,null,null,null,null,null,null,null,0,null,null,null,null,null,null,null,null,null,null,0,null,0]
[25,null,null,null,null,null,null,null,null,null,null,null,0,null,null,null,null,null,null,null,null,null,null,0,null,null,null,null,null,null,null,null,null,null,0,null,null,null,null,null,null,null,null,null,null,0,null,null,null,null,null,null,null,null,null,null,0,null,null,null,null,null,null,null,null,null,null,0,null,null,null,null,null,null,null,null,null,null,0,null,null,null,null,null,null,null,null,null,null,0,null,null,null,null,null,null,null,null,null,null,0,null,null,null,null,null,null,null,null,null,null,0,null,null,null,null,null,null,null,null,null,null,0,null,null,null,null,null,null,null,null,null,null,0,null,0]
[26,null,null,null,null,null,null,null,null,null,null,null,0,null,null,null,null,null,null,null,null,null,null,0,null,null,null,null,null,null,null,null,null,null,0,null,null,null,null,null,null,null,null,null,null,0,null,null,null,null,null,null,null,null,null,null,0,null,null,null,null,null,null,null,null,null,null,0,null,null,null,null,null,null,null,null,null,null,0,null,null,null,null,null,null,null,null,null,null,0,null,null,null,null,null,null,null,null,null,null,0,null,null,null,null,null,null,null,null,null,null,0,null,null,null,null,null,null,null,null,null,null,0,null,null,null,null,null,null,null,null,null,null,0,null,0]
[27,null,null,null,null,null,null,null,null,null,null,null,0,null,null,null,null,null,null,null,null,null,null,0,null,null,null,null,null,null,null,null,null,null,0,null,null,null,null,null,null,null,null,null,null,0,null,null,null,null,null,null,null,null,null,null,0,null,null,null,null,null,null,null,null,null,null,0,null,null,null,null,null,null,null,null,null,null,0,null,null,null,null,null,null,null,null,null,null,0,null,null,null,null,null,null,null,null,null,null,0,null,null,null,null,null,null,null,null,null,null,0,null,null,null,null,null,null,null,null,null,null,0,null,null,null,null,null,null,null,null,null,null,0,null,0]
[28,null,null,null,null,null,null,null,null,null,null,null,0,null,null,null,null,null,null,null,null,null,null,0,null,null,null,null,null,null,null,null,null,null,0,null,null,null,null,null,null,null,null,null,null,0,null,null,null,null,null,null,null,null,null,null,0,null,null,null,null,null,null,null,null,null,null,0,null,null,null,null,null,null,null,null,null,null,0,null,null,null,null,null,null,null,null,null,null,0,null,null,null,null,null,null,null,null,null,null,0,null,null,null,null,null,null,null,null,null,null,0,null,null,null,null,null,null,null,null,null,null,0,null,null,null,null,null,null,null,null,null,null,0,null,0]
[29,null,null,null,null,null,null,null,null,null,null,null,0,null,null,null,null,null,null,null,null,null,null,0,null,null,null,null,null,null,null,null,null,null,0,null,null,null,null,null,null,null,null,null,null,0,null,null,null,null,null,null,null,null,null,null,0,null,null,null,null,null,null,null,null,null,null,0,null,null,null,null,null,null,null,null,null,null,0,null,null,null,null,null,null,null,null,null,null,0,null,null,null,null,null,null,null,null,null,null,0,null,null,null,null,null,null,null,null,null,null,0,null,null,null,null,null,null,null,null,null,null,0,null,null,null,null,null,null,null,null,null,null,0,null,0]
[30,null,null,null,null,null,null,null,null,null,null,null,0,null,null,null,null,null,null,null,null,null,null,0,null,null,null,null,null,null,null,null,null,null,0,null,null,null,null,null,null,null,null,null,null,0,null,null,null,null,null,null,null,null,null,null,0,null,null,null,null,null,null,null,null,null,null,0,null,null,null,null,null,null,null,null,null,null,0,null,null,null,null,null,null,null,null,null,null,0,null,null,null,null,null,null,null,null,null,null,0,null,null,null,null,null,null,null,null,null,null,0,null,null,null,null,null,null,null,null,null,null,0,null,null,null,null,null,null,null,null,null,null,0,null,0]
[31,null,null,null,null,null,null,null,null,null,null,null,0,null,null,null,null,null,null,null,null,null,null,0,null,null,null,null,null,null,null,null,null,null,0,null,null,null,null,null,null,null,null,null,null,0,null,null,null,null,null,null,null,null,null,null,0,null,null,null,null,null,null,null,null,null,null,0,null,null,null,null,null,null,null,null,null,null,0,null,null,null,null,null,null,null,null,null,null,0,null,null,null,null,null,null,null,null,null,null,0,null,null,null,null,null,null,null,null,null,null,0,null,null,null,null,null,null,null,null,null,null,0,null,null,null,null,null,null,null,null,null,null,0,null,0]
[]
["Sum",null,{"$f":"SUM(C3:C33)","v":0},{"$f":"SUM(D3:D33)","v":0},0,0,0,0,0,0,0,0,{"$f":"SUM(C35:L35)","v":0},{"$f":"SUM(N3:N33)","v":0},0,0,0,0,0,0,0,0,0,{"$f":"SUM(N35:W35)","v":0},0,0,0,0,0,0,0,0,0,0,{"$f":"SUM(Y35:AH35)","v":0},0,0,0,0,0,0,0,0,0,0,{"$f":"SUM(AJ35:AS35)","v":0},0,0,0,0,0,0,0,0,0,0,{"$f":"SUM(AU35:BD35)","v":0},0,0,0,0,0,0,0,0,0,0,{"$f":"SUM(BF35:BO35)","v":0},0,0,0,0,0,0,0,0,0,0,{"$f":"SUM(BQ35:BZ35)","v":0},0,0,0,0,0,0,0,0,0,0,{"$f":"SUM(CB35:CK35)","v":0},0,0,0,0,0,0,0,0,0,0,{"$f":"SUM(CM35:CV35)","v":0},0,0,0,0,0,0,0,0,0,0,{"$f":"SUM(CX35:DG35)","v":0},0,0,0,0,0,0,0,0,0,0,{"$f":"SUM(DI35:DR35)","v":0},0,0,{"$f":"SUM(DV3:DV33)","v":0},0,0,0,0,0,0,0,{"$f":"SUM(DT35:EC35)","v":0},null,{"$f":"SUM(EF3:EF34)","v":0}]
[]
[]
[null,null,"Januar","Februar","Marts","April","Maj","Juni","Juli","August","September","Oktober","November","December"]
[null,null,{"$f":"ABS(M35)","v":0},{"$f":"ABS(X35)","v":0},{"$f":"ABS(AI35)","v":0},{"$f":"ABS(AT35)","v":0},{"$f":"ABS(BE35)","v":0},{"$f":"ABS(BP35)","v":0},{"$f":"ABS(CA35)","v":0},{"$f":"ABS(CL35)","v":0},{"$f":"ABS(CW35)","v":0},{"$f":"ABS(DH35)","v":0},{"$f":"ABS(DS35)","v":0},{"$f":"ABS(ED35)","v":0}]

{"sheet":"Ind MM","index":7,"n_rows":39,"n_cols":136,"rows_kept":39,"cut":false,"hidden":true,"merged":[]}
["Home",null,"Januar '1","Januar '2","Januar '3","Januar '4","Januar '5","Januar '6","Januar '7","Januar '8","Januar '9","Januar '10","SUM","Februar '1","Februar '2","Februar '3","Februar '4","Februar '5","Februar '6","Februar '7","Februar '8","Februar '9","Februar '10","SUM","Marts '1","Marts '2","Marts '3","Marts '4","Marts '5","Marts '6","Marts '7","Marts '8","Marts '9","Marts '10","SUM","April '1","April '2","April '3","April '4","April '5","April '6","April '7","April '8","April '9","April '10","SUM","Maj '1","Maj '2","Maj '3","Maj '4","Maj '5","Maj '6","Maj '7","Maj '8","Maj '9","Maj '10","SUM","Juni '1","Juni '2","Juni '3","Juni '4","Juni '5","Juni '6","Juni '7","Juni '8","Juni '9","Juni '10","SUM","Juli '1","Juli '2","Juli '3","Juli '4","Juli '5","Juli '6","Juli '7","Juli '8","Juli '9","Juli '10","SUM","August '1","August '2","August '3","August '4","August '5","August '6","August '7","August '8","August '9","August '10","SUM","September '1","September '2","September '3","September '4","September '5","September '6","September '7","September '8","September '9","September '10","SUM","Oktober '1","Oktober '2","Oktober '3","Oktober '4","Oktober '5","Oktober '6","Oktober '7","Oktober '8","Oktober '9","Oktober '10","SUM","November '1","November '2","November '3","November '4","November '5","November '6","November '7","November '8","November '9","November '10","SUM","December '1","December '2","December '3","December '4","December '5","December '6","December '7","December '8","December '9","December '10","SUM",null,"Sum"]
[]
[1,null,null,null,null,null,null,null,null,null,null,null,{"$f":"SUM(C3:L3)","v":0},null,null,null,null,null,null,null,null,null,null,{"$f":"SUM(N3:W3)","v":0},null,null,null,null,null,null,null,null,null,null,{"$f":"SUM(Y3:AH3)","v":0},null,null,null,null,null,null,null,null,null,null,{"$f":"SUM(AJ3:AS3)","v":0},null,null,null,null,null,null,null,null,null,null,{"$f":"SUM(AU3:BD3)","v":0},null,null,null,null,null,null,null,null,null,null,{"$f":"SUM(BF3:BO3)","v":0},null,null,null,null,null,null,null,null,null,null,{"$f":"SUM(BQ3:BZ3)","v":0},null,null,null,null,null,null,null,null,null,null,{"$f":"SUM(CB3:CK3)","v":0},null,null,null,null,null,null,null,null,null,null,{"$f":"SUM(CM3:CV3)","v":0},null,null,null,null,null,null,null,null,null,null,{"$f":"SUM(CX3:DG3)","v":0},null,null,null,null,null,null,null,null,null,null,{"$f":"SUM(DI3:DR3)","v":0},null,null,null,null,null,null,null,null,null,null,{"$f":"SUM(DT3:EC3)","v":0},null,{"$f":"SUM(ED3,DS3,DH3,CW3,CL3,CA3,BP3,BE3,AT3,AI3,X3,M3)","v":0}]
[2,null,null,null,null,null,null,null,null,null,null,null,{"$f":"SUM(C4:L4)","v":0},null,null,null,null,null,null,null,null,null,null,{"$f":"SUM(N4:W4)","v":0},null,null,null,null,null,null,null,null,null,null,{"$f":"SUM(Y4:AH4)","v":0},null,null,null,null,null,null,null,null,null,null,{"$f":"SUM(AJ4:AS4)","v":0},null,null,null,null,null,null,null,null,null,null,{"$f":"SUM(AU4:BD4)","v":0},null,null,null,null,null,null,null,null,null,null,{"$f":"SUM(BF4:BO4)","v":0},null,null,null,null,null,null,null,null,null,null,{"$f":"SUM(BQ4:BZ4)","v":0},null,null,null,null,null,null,null,null,null,null,{"$f":"SUM(CB4:CK4)","v":0},null,null,null,null,null,null,null,null,null,null,{"$f":"SUM(CM4:CV4)","v":0},null,null,null,null,null,null,null,null,null,null,{"$f":"SUM(CX4:DG4)","v":0},null,null,null,null,null,null,null,null,null,null,{"$f":"SUM(DI4:DR4)","v":0},null,null,null,null,null,null,null,null,null,null,{"$f":"SUM(DT4:EC4)","v":0},null,{"$f":"SUM(ED4,DS4,DH4,CW4,CL4,CA4,BP4,BE4,AT4,AI4,X4,M4)","v":0}]
[3,null,null,null,null,null,null,null,null,null,null,null,0,null,null,null,null,null,null,null,null,null,null,0,null,null,null,null,null,null,null,null,null,null,0,null,null,null,null,null,null,null,null,null,null,0,null,null,null,null,null,null,null,null,null,null,0,null,null,null,null,null,null,null,null,null,null,0,null,null,null,null,null,null,null,null,null,null,0,null,null,null,null,null,null,null,null,null,null,0,null,null,null,null,null,null,null,null,null,null,0,null,null,null,null,null,null,null,null,null,null,0,null,null,null,null,null,null,null,null,null,null,0,null,null,null,null,null,null,null,null,null,null,0,null,0]
[4,null,null,null,null,null,null,null,null,null,null,null,0,null,null,null,null,null,null,null,null,null,null,0,null,null,null,null,null,null,null,null,null,null,0,null,null,null,null,null,null,null,null,null,null,0,null,null,null,null,null,null,null,null,null,null,0,null,null,null,null,null,null,null,null,null,null,0,null,null,null,null,null,null,null,null,null,null,0,null,null,null,null,null,null,null,null,null,null,0,null,null,null,null,null,null,null,null,null,null,0,null,null,null,null,null,null,null,null,null,null,0,null,null,null,null,null,null,null,null,null,null,0,null,null,null,null,null,null,null,null,null,null,0,null,0]
[5,null,null,null,null,null,null,null,null,null,null,null,0,null,null,null,null,null,null,null,null,null,null,0,null,null,null,null,null,null,null,null,null,null,0,null,null,null,null,null,null,null,null,null,null,0,null,null,null,null,null,null,null,null,null,null,0,null,null,null,null,null,null,null,null,null,null,0,null,null,null,null,null,null,null,null,null,null,0,null,null,null,null,null,null,null,null,null,null,0,null,null,null,null,null,null,null,null,null,null,0,null,null,null,null,null,null,null,null,null,null,0,null,null,null,null,null,null,null,null,null,null,0,null,null,null,null,null,null,null,null,null,null,0,null,0]
[6,null,null,null,null,null,null,null,null,null,null,null,0,null,null,null,null,null,null,null,null,null,null,0,null,null,null,null,null,null,null,null,null,null,0,null,null,null,null,null,null,null,null,null,null,0,null,null,null,null,null,null,null,null,null,null,0,null,null,null,null,null,null,null,null,null,null,0,null,null,null,null,null,null,null,null,null,null,0,null,null,null,null,null,null,null,null,null,null,0,null,null,null,null,null,null,null,null,null,null,0,null,null,null,null,null,null,null,null,null,null,0,null,null,null,null,null,null,null,null,null,null,0,null,null,null,null,null,null,null,null,null,null,0,null,0]
[7,null,null,null,null,null,null,null,null,null,null,null,0,null,null,null,null,null,null,null,null,null,null,0,null,null,null,null,null,null,null,null,null,null,0,null,null,null,null,null,null,null,null,null,null,0,null,null,null,null,null,null,null,null,null,null,0,null,null,null,null,null,null,null,null,null,null,0,null,null,null,null,null,null,null,null,null,null,0,null,null,null,null,null,null,null,null,null,null,0,null,null,null,null,null,null,null,null,null,null,0,null,null,null,null,null,null,null,null,null,null,0,null,null,null,null,null,null,null,null,null,null,0,null,null,null,null,null,null,null,null,null,null,0,null,0]
[8,null,null,null,null,null,null,null,null,null,null,null,0,null,null,null,null,null,null,null,null,null,null,0,null,null,null,null,null,null,null,null,null,null,0,null,null,null,null,null,null,null,null,null,null,0,null,null,null,null,null,null,null,null,null,null,0,null,null,null,null,null,null,null,null,null,null,0,null,null,null,null,null,null,null,null,null,null,0,null,null,null,null,null,null,null,null,null,null,0,null,null,null,null,null,null,null,null,null,null,0,null,null,null,null,null,null,null,null,null,null,0,null,null,null,null,null,null,null,null,null,null,0,null,null,null,null,null,null,null,null,null,null,0,null,0]
[9,null,null,null,null,null,null,null,null,null,null,null,0,null,null,null,null,null,null,null,null,null,null,0,null,null,null,null,null,null,null,null,null,null,0,null,null,null,null,null,null,null,null,null,null,0,null,null,null,null,null,null,null,null,null,null,0,null,null,null,null,null,null,null,null,null,null,0,null,null,null,null,null,null,null,null,null,null,0,null,null,null,null,null,null,null,null,null,null,0,null,null,null,null,null,null,null,null,null,null,0,null,null,null,null,null,null,null,null,null,null,0,null,null,null,null,null,null,null,null,null,null,0,null,null,null,null,null,null,null,null,null,null,0,null,0]
[10,null,null,null,null,null,null,null,null,null,null,null,0,null,null,null,null,null,null,null,null,null,null,0,null,null,null,null,null,null,null,null,null,null,0,null,null,null,null,null,null,null,null,null,null,0,null,null,null,null,null,null,null,null,null,null,0,null,null,null,null,null,null,null,null,null,null,0,null,null,null,null,null,null,null,null,null,null,0,null,null,null,null,null,null,null,null,null,null,0,null,null,null,null,null,null,null,null,null,null,0,null,null,null,null,null,null,null,null,null,null,0,null,null,null,null,null,null,null,null,null,null,0,null,null,null,null,null,null,null,null,null,null,0,null,0]
[11,null,null,null,null,null,null,null,null,null,null,null,0,null,null,null,null,null,null,null,null,null,null,0,null,null,null,null,null,null,null,null,null,null,0,null,null,null,null,null,null,null,null,null,null,0,null,null,null,null,null,null,null,null,null,null,0,null,null,null,null,null,null,null,null,null,null,0,null,null,null,null,null,null,null,null,null,null,0,null,null,null,null,null,null,null,null,null,null,0,null,null,null,null,null,null,null,null,null,null,0,null,null,null,null,null,null,null,null,null,null,0,null,null,null,null,null,null,null,null,null,null,0,null,null,null,null,null,null,null,null,null,null,0,null,0]
[12,null,null,null,null,null,null,null,null,null,null,null,0,null,null,null,null,null,null,null,null,null,null,0,null,null,null,null,null,null,null,null,null,null,0,null,null,null,null,null,null,null,null,null,null,0,null,null,null,null,null,null,null,null,null,null,0,null,null,null,null,null,null,null,null,null,null,0,null,null,null,null,null,null,null,null,null,null,0,null,null,null,null,null,null,null,null,null,null,0,null,null,null,null,null,null,null,null,null,null,0,null,null,null,null,null,null,null,null,null,null,0,null,null,null,null,null,null,null,null,null,null,0,null,null,null,null,null,null,null,null,null,null,0,null,0]
[13,null,null,null,null,null,null,null,null,null,null,null,0,null,null,null,null,null,null,null,null,null,null,0,null,null,null,null,null,null,null,null,null,null,0,null,null,null,null,null,null,null,null,null,null,0,null,null,null,null,null,null,null,null,null,null,0,null,null,null,null,null,null,null,null,null,null,0,null,null,null,null,null,null,null,null,null,null,0,null,null,null,null,null,null,null,null,null,null,0,null,null,null,null,null,null,null,null,null,null,0,null,null,null,null,null,null,null,null,null,null,0,null,null,null,null,null,null,null,null,null,null,0,null,null,null,null,null,null,null,null,null,null,0,null,0]
[14,null,null,null,null,null,null,null,null,null,null,null,0,null,null,null,null,null,null,null,null,null,null,0,null,null,null,null,null,null,null,null,null,null,0,null,null,null,null,null,null,null,null,null,null,0,null,null,null,null,null,null,null,null,null,null,0,null,null,null,null,null,null,null,null,null,null,0,null,null,null,null,null,null,null,null,null,null,0,null,null,null,null,null,null,null,null,null,null,0,null,null,null,null,null,null,null,null,null,null,0,null,null,null,null,null,null,null,null,null,null,0,null,null,null,null,null,null,null,null,null,null,0,null,null,null,null,null,null,null,null,null,null,0,null,0]
[15,null,null,null,null,null,null,null,null,null,null,null,0,null,null,null,null,null,null,null,null,null,null,0,null,null,null,null,null,null,null,null,null,null,0,null,null,null,null,null,null,null,null,null,null,0,null,null,null,null,null,null,null,null,null,null,0,null,null,null,null,null,null,null,null,null,null,0,null,null,null,null,null,null,null,null,null,null,0,null,null,null,null,null,null,null,null,null,null,0,null,null,null,null,null,null,null,null,null,null,0,null,null,null,null,null,null,null,null,null,null,0,null,null,null,null,null,null,null,null,null,null,0,null,null,null,null,null,null,null,null,null,null,0,null,0]
[16,null,null,null,null,null,null,null,null,null,null,null,0,null,null,null,null,null,null,null,null,null,null,0,null,null,null,null,null,null,null,null,null,null,0,null,null,null,null,null,null,null,null,null,null,0,null,null,null,null,null,null,null,null,null,null,0,null,null,null,null,null,null,null,null,null,null,0,null,null,null,null,null,null,null,null,null,null,0,null,null,null,null,null,null,null,null,null,null,0,null,null,null,null,null,null,null,null,null,null,0,null,null,null,null,null,null,null,null,null,null,0,null,null,null,null,null,null,null,null,null,null,0,null,null,null,null,null,null,null,null,null,null,0,null,0]
[17,null,null,null,null,null,null,null,null,null,null,null,0,null,null,null,null,null,null,null,null,null,null,0,null,null,null,null,null,null,null,null,null,null,0,null,null,null,null,null,null,null,null,null,null,0,null,null,null,null,null,null,null,null,null,null,0,null,null,null,null,null,null,null,null,null,null,0,null,null,null,null,null,null,null,null,null,null,0,null,null,null,null,null,null,null,null,null,null,0,null,null,null,null,null,null,null,null,null,null,0,null,null,null,null,null,null,null,null,null,null,0,null,null,null,null,null,null,null,null,null,null,0,null,null,null,null,null,null,null,null,null,null,0,null,0]
[18,null,null,null,null,null,null,null,null,null,null,null,0,null,null,null,null,null,null,null,null,null,null,0,null,null,null,null,null,null,null,null,null,null,0,null,null,null,null,null,null,null,null,null,null,0,null,null,null,null,null,null,null,null,null,null,0,null,null,null,null,null,null,null,null,null,null,0,null,null,null,null,null,null,null,null,null,null,0,null,null,null,null,null,null,null,null,null,null,0,null,null,null,null,null,null,null,null,null,null,0,null,null,null,null,null,null,null,null,null,null,0,null,null,null,null,null,null,null,null,null,null,0,null,null,null,null,null,null,null,null,null,null,0,null,0]
[19,null,null,null,null,null,null,null,null,null,null,null,0,null,null,null,null,null,null,null,null,null,null,0,null,null,null,null,null,null,null,null,null,null,0,null,null,null,null,null,null,null,null,null,null,0,null,null,null,null,null,null,null,null,null,null,0,null,null,null,null,null,null,null,null,null,null,0,null,null,null,null,null,null,null,null,null,null,0,null,null,null,null,null,null,null,null,null,null,0,null,null,null,null,null,null,null,null,null,null,0,null,null,null,null,null,null,null,null,null,null,0,null,null,null,null,null,null,null,null,null,null,0,null,null,null,null,null,null,null,null,null,null,0,null,0]
[20,null,null,null,null,null,null,null,null,null,null,null,0,null,null,null,null,null,null,null,null,null,null,0,null,null,null,null,null,null,null,null,null,null,0,null,null,null,null,null,null,null,null,null,null,0,null,null,null,null,null,null,null,null,null,null,0,null,null,null,null,null,null,null,null,null,null,0,null,null,null,null,null,null,null,null,null,null,0,null,null,null,null,null,null,null,null,null,null,0,null,null,null,null,null,null,null,null,null,null,0,null,null,null,null,null,null,null,null,null,null,0,null,null,null,null,null,null,null,null,null,null,0,null,null,null,null,null,null,null,null,null,null,0,null,0]
[21,null,null,null,null,null,null,null,null,null,null,null,0,null,null,null,null,null,null,null,null,null,null,0,null,null,null,null,null,null,null,null,null,null,0,null,null,null,null,null,null,null,null,null,null,0,null,null,null,null,null,null,null,null,null,null,0,null,null,null,null,null,null,null,null,null,null,0,null,null,null,null,null,null,null,null,null,null,0,null,null,null,null,null,null,null,null,null,null,0,null,null,null,null,null,null,null,null,null,null,0,null,null,null,null,null,null,null,null,null,null,0,null,null,null,null,null,null,null,null,null,null,0,null,null,null,null,null,null,null,null,null,null,0,null,0]
[22,null,null,null,null,null,null,null,null,null,null,null,0,null,null,null,null,null,null,null,null,null,null,0,null,null,null,null,null,null,null,null,null,null,0,null,null,null,null,null,null,null,null,null,null,0,null,null,null,null,null,null,null,null,null,null,0,null,null,null,null,null,null,null,null,null,null,0,null,null,null,null,null,null,null,null,null,null,0,null,null,null,null,null,null,null,null,null,null,0,null,null,null,null,null,null,null,null,null,null,0,null,null,null,null,null,null,null,null,null,null,0,null,null,null,null,null,null,null,null,null,null,0,null,null,null,null,null,null,null,null,null,null,0,null,0]
[23,null,null,null,null,null,null,null,null,null,null,null,0,null,null,null,null,null,null,null,null,null,null,0,null,null,null,null,null,null,null,null,null,null,0,null,null,null,null,null,null,null,null,null,null,0,null,null,null,null,null,null,null,null,null,null,0,null,null,null,null,null,null,null,null,null,null,0,null,null,null,null,null,null,null,null,null,null,0,null,null,null,null,null,null,null,null,null,null,0,null,null,null,null,null,null,null,null,null,null,0,null,null,null,null,null,null,null,null,null,null,0,null,null,null,null,null,null,null,null,null,null,0,null,null,null,null,null,null,null,null,null,null,0,null,0]
[24,null,null,null,null,null,null,null,null,null,null,null,0,null,null,null,null,null,null,null,null,null,null,0,null,null,null,null,null,null,null,null,null,null,0,null,null,null,null,null,null,null,null,null,null,0,null,null,null,null,null,null,null,null,null,null,0,null,null,null,null,null,null,null,null,null,null,0,null,null,null,null,null,null,null,null,null,null,0,null,null,null,null,null,null,null,null,null,null,0,null,null,null,null,null,null,null,null,null,null,0,null,null,null,null,null,null,null,null,null,null,0,null,null,null,null,null,null,null,null,null,null,0,null,null,null,null,null,null,null,null,null,null,0,null,0]
[25,null,null,null,null,null,null,null,null,null,null,null,0,null,null,null,null,null,null,null,null,null,null,0,null,null,null,null,null,null,null,null,null,null,0,null,null,null,null,null,null,null,null,null,null,0,null,null,null,null,null,null,null,null,null,null,0,null,null,null,null,null,null,null,null,null,null,0,null,null,null,null,null,null,null,null,null,null,0,null,null,null,null,null,null,null,null,null,null,0,null,null,null,null,null,null,null,null,null,null,0,null,null,null,null,null,null,null,null,null,null,0,null,null,null,null,null,null,null,null,null,null,0,null,null,null,null,null,null,null,null,null,null,0,null,0]
[26,null,null,null,null,null,null,null,null,null,null,null,0,null,null,null,null,null,null,null,null,null,null,0,null,null,null,null,null,null,null,null,null,null,0,null,null,null,null,null,null,null,null,null,null,0,null,null,null,null,null,null,null,null,null,null,0,null,null,null,null,null,null,null,null,null,null,0,null,null,null,null,null,null,null,null,null,null,0,null,null,null,null,null,null,null,null,null,null,0,null,null,null,null,null,null,null,null,null,null,0,null,null,null,null,null,null,null,null,null,null,0,null,null,null,null,null,null,null,null,null,null,0,null,null,null,null,null,null,null,null,null,null,0,null,0]
[27,null,null,null,null,null,null,null,null,null,null,null,0,null,null,null,null,null,null,null,null,null,null,0,null,null,null,null,null,null,null,null,null,null,0,null,null,null,null,null,null,null,null,null,null,0,null,null,null,null,null,null,null,null,null,null,0,null,null,null,null,null,null,null,null,null,null,0,null,null,null,null,null,null,null,null,null,null,0,null,null,null,null,null,null,null,null,null,null,0,null,null,null,null,null,null,null,null,null,null,0,null,null,null,null,null,null,null,null,null,null,0,null,null,null,null,null,null,null,null,null,null,0,null,null,null,null,null,null,null,null,null,null,0,null,0]
[28,null,null,null,null,null,null,null,null,null,null,null,0,null,null,null,null,null,null,null,null,null,null,0,null,null,null,null,null,null,null,null,null,null,0,null,null,null,null,null,null,null,null,null,null,0,null,null,null,null,null,null,null,null,null,null,0,null,null,null,null,null,null,null,null,null,null,0,null,null,null,null,null,null,null,null,null,null,0,null,null,null,null,null,null,null,null,null,null,0,null,null,null,null,null,null,null,null,null,null,0,null,null,null,null,null,null,null,null,null,null,0,null,null,null,null,null,null,null,null,null,null,0,null,null,null,null,null,null,null,null,null,null,0,null,0]
[29,null,null,null,null,null,null,null,null,null,null,null,0,null,null,null,null,null,null,null,null,null,null,0,null,null,null,null,null,null,null,null,null,null,0,null,null,null,null,null,null,null,null,null,null,0,null,null,null,null,null,null,null,null,null,null,0,null,null,null,null,null,null,null,null,null,null,0,null,null,null,null,null,null,null,null,null,null,0,null,null,null,null,null,null,null,null,null,null,0,null,null,null,null,null,null,null,null,null,null,0,null,null,null,null,null,null,null,null,null,null,0,null,null,null,null,null,null,null,null,null,null,0,null,null,null,null,null,null,null,null,null,null,0,null,0]
[30,null,null,null,null,null,null,null,null,null,null,null,0,null,null,null,null,null,null,null,null,null,null,0,null,null,null,null,null,null,null,null,null,null,0,null,null,null,null,null,null,null,null,null,null,0,null,null,null,null,null,null,null,null,null,null,0,null,null,null,null,null,null,null,null,null,null,0,null,null,null,null,null,null,null,null,null,null,0,null,null,null,null,null,null,null,null,null,null,0,null,null,null,null,null,null,null,null,null,null,0,null,null,null,null,null,null,null,null,null,null,0,null,null,null,null,null,null,null,null,null,null,0,null,null,null,null,null,null,null,null,null,null,0,null,0]
[31,null,null,null,null,null,null,null,null,null,null,null,0,null,null,null,null,null,null,null,null,null,null,0,null,null,null,null,null,null,null,null,null,null,0,null,null,null,null,null,null,null,null,null,null,0,null,null,null,null,null,null,null,null,null,null,0,null,null,null,null,null,null,null,null,null,null,0,null,null,null,null,null,null,null,null,null,null,0,null,null,null,null,null,null,null,null,null,null,0,null,null,null,null,null,null,null,null,null,null,0,null,null,null,null,null,null,null,null,null,null,0,null,null,null,null,null,null,null,null,null,null,0,null,null,null,null,null,null,null,null,null,null,0,null,0]
[]
["Sum",null,{"$f":"SUM(C3:C33)","v":0},{"$f":"SUM(D3:D33)","v":0},0,0,0,0,0,0,0,0,{"$f":"SUM(C35:L35)","v":0},{"$f":"SUM(N3:N33)","v":0},0,0,0,0,0,0,0,0,0,{"$f":"SUM(N35:W35)","v":0},0,0,0,0,0,0,0,0,0,0,{"$f":"SUM(Y35:AH35)","v":0},0,0,0,0,0,0,0,0,0,0,{"$f":"SUM(AJ35:AS35)","v":0},0,0,0,0,0,0,0,0,0,0,{"$f":"SUM(AU35:BD35)","v":0},0,0,0,0,0,0,0,0,0,0,{"$f":"SUM(BF35:BO35)","v":0},0,0,0,0,0,0,0,0,0,0,{"$f":"SUM(BQ35:BZ35)","v":0},0,0,0,0,0,0,0,0,0,0,{"$f":"SUM(CB35:CK35)","v":0},0,0,0,0,0,0,0,0,0,0,{"$f":"SUM(CM35:CV35)","v":0},0,0,0,0,0,0,0,0,0,0,{"$f":"SUM(CX35:DG35)","v":0},0,0,0,0,0,0,0,0,0,0,{"$f":"SUM(DI35:DR35)","v":0},0,0,{"$f":"SUM(DV3:DV33)","v":0},0,0,0,0,0,0,0,{"$f":"SUM(DT35:EC35)","v":0},null,{"$f":"SUM(EF3:EF34)","v":0}]
[]
[]
[null,null,"Januar","Februar","Marts","April","Maj","Juni","Juli","August","September","Oktober","November","December"]
[null,null,{"$f":"ABS(M35)","v":0},{"$f":"ABS(X35)","v":0},{"$f":"ABS(AI35)","v":0},{"$f":"ABS(AT35)","v":0},{"$f":"ABS(BE35)","v":0},{"$f":"ABS(BP35)","v":0},{"$f":"ABS(CA35)","v":0},{"$f":"ABS(CL35)","v":0},{"$f":"ABS(CW35)","v":0},{"$f":"ABS(DH35)","v":0},{"$f":"ABS(DS35)","v":0},{"$f":"ABS(ED35)","v":0}]

{"sheet":"Ind AES","index":8,"n_rows":39,"n_cols":136,"rows_kept":39,"cut":false,"hidden":true,"merged":[]}
["Home",null,"Januar '1","Januar '2","Januar '3","Januar '4","Januar '5","Januar '6","Januar '7","Januar '8","Januar '9","Januar '10","SUM","Februar '1","Februar '2","Februar '3","Februar '4","Februar '5","Februar '6","Februar '7","Februar '8","Februar '9","Februar '10","SUM","Marts '1","Marts '2","Marts '3","Marts '4","Marts '5","Marts '6","Marts '7","Marts '8","Marts '9","Marts '10","SUM","April '1","April '2","April '3","April '4","April '5","April '6","April '7","April '8","April '9","April '10","SUM","Maj '1","Maj '2","Maj '3","Maj '4","Maj '5","Maj '6","Maj '7","Maj '8","Maj '9","Maj '10","SUM","Juni '1","Juni '2","Juni '3","Juni '4","Juni '5","Juni '6","Juni '7","Juni '8","Juni '9","Juni '10","SUM","Juli '1","Juli '2","Juli '3","Juli '4","Juli '5","Juli '6","Juli '7","Juli '8","Juli '9","Juli '10","SUM","August '1","August '2","August '3","August '4","August '5","August '6","August '7","August '8","August '9","August '10","SUM","September '1","September '2","September '3","September '4","September '5","September '6","September '7","September '8","September '9","September '10","SUM","Oktober '1","Oktober '2","Oktober '3","Oktober '4","Oktober '5","Oktober '6","Oktober '7","Oktober '8","Oktober '9","Oktober '10","SUM","November '1","November '2","November '3","November '4","November '5","November '6","November '7","November '8","November '9","November '10","SUM","December '1","December '2","December '3","December '4","December '5","December '6","December '7","December '8","December '9","December '10","SUM",null,"Sum"]
[]
[1,null,null,null,null,null,null,null,null,null,null,null,{"$f":"SUM(C3:L3)","v":0},null,null,null,null,null,null,null,null,null,null,{"$f":"SUM(N3:W3)","v":0},null,null,null,null,null,null,null,null,null,null,{"$f":"SUM(Y3:AH3)","v":0},null,null,null,null,null,null,null,null,null,null,{"$f":"SUM(AJ3:AS3)","v":0},null,null,null,null,null,null,null,null,null,null,{"$f":"SUM(AU3:BD3)","v":0},null,null,null,null,null,null,null,null,null,null,{"$f":"SUM(BF3:BO3)","v":0},null,null,null,null,null,null,null,null,null,null,{"$f":"SUM(BQ3:BZ3)","v":0},null,null,null,null,null,null,null,null,null,null,{"$f":"SUM(CB3:CK3)","v":0},null,null,null,null,null,null,null,null,null,null,{"$f":"SUM(CM3:CV3)","v":0},null,null,null,null,null,null,null,null,null,null,{"$f":"SUM(CX3:DG3)","v":0},null,null,null,null,null,null,null,null,null,null,{"$f":"SUM(DI3:DR3)","v":0},null,null,null,null,null,null,null,null,null,null,{"$f":"SUM(DT3:EC3)","v":0},null,{"$f":"SUM(ED3,DS3,DH3,CW3,CL3,CA3,BP3,BE3,AT3,AI3,X3,M3)","v":0}]
[2,null,null,null,null,null,null,null,null,null,null,null,{"$f":"SUM(C4:L4)","v":0},null,null,null,null,null,null,null,null,null,null,{"$f":"SUM(N4:W4)","v":0},null,null,null,null,null,null,null,null,null,null,{"$f":"SUM(Y4:AH4)","v":0},null,null,null,null,null,null,null,null,null,null,{"$f":"SUM(AJ4:AS4)","v":0},null,null,null,null,null,null,null,null,null,null,{"$f":"SUM(AU4:BD4)","v":0},null,null,null,null,null,null,null,null,null,null,{"$f":"SUM(BF4:BO4)","v":0},null,null,null,null,null,null,null,null,null,null,{"$f":"SUM(BQ4:BZ4)","v":0},null,null,null,null,null,null,null,null,null,null,{"$f":"SUM(CB4:CK4)","v":0},null,null,null,null,null,null,null,null,null,null,{"$f":"SUM(CM4:CV4)","v":0},null,null,null,null,null,null,null,null,null,null,{"$f":"SUM(CX4:DG4)","v":0},null,null,null,null,null,null,null,null,null,null,{"$f":"SUM(DI4:DR4)","v":0},null,null,null,null,null,null,null,null,null,null,{"$f":"SUM(DT4:EC4)","v":0},null,{"$f":"SUM(ED4,DS4,DH4,CW4,CL4,CA4,BP4,BE4,AT4,AI4,X4,M4)","v":0}]
[3,null,null,null,null,null,null,null,null,null,null,null,0,null,null,null,null,null,null,null,null,null,null,0,null,null,null,null,null,null,null,null,null,null,0,null,null,null,null,null,null,null,null,null,null,0,null,null,null,null,null,null,null,null,null,null,0,null,null,null,null,null,null,null,null,null,null,0,null,null,null,null,null,null,null,null,null,null,0,null,null,null,null,null,null,null,null,null,null,0,null,null,null,null,null,null,null,null,null,null,0,null,null,null,null,null,null,null,null,null,null,0,null,null,null,null,null,null,null,null,null,null,0,null,null,null,null,null,null,null,null,null,null,0,null,0]
[4,null,null,null,null,null,null,null,null,null,null,null,0,null,null,null,null,null,null,null,null,null,null,0,null,null,null,null,null,null,null,null,null,null,0,null,null,null,null,null,null,null,null,null,null,0,null,null,null,null,null,null,null,null,null,null,0,null,null,null,null,null,null,null,null,null,null,0,null,null,null,null,null,null,null,null,null,null,0,null,null,null,null,null,null,null,null,null,null,0,null,null,null,null,null,null,null,null,null,null,0,null,null,null,null,null,null,null,null,null,null,0,null,null,null,null,null,null,null,null,null,null,0,null,null,null,null,null,null,null,null,null,null,0,null,0]
[5,null,null,null,null,null,null,null,null,null,null,null,0,null,null,null,null,null,null,null,null,null,null,0,null,null,null,null,null,null,null,null,null,null,0,null,null,null,null,null,null,null,null,null,null,0,null,null,null,null,null,null,null,null,null,null,0,null,null,null,null,null,null,null,null,null,null,0,null,null,null,null,null,null,null,null,null,null,0,null,null,null,null,null,null,null,null,null,null,0,null,null,null,null,null,null,null,null,null,null,0,null,null,null,null,null,null,null,null,null,null,0,null,null,null,null,null,null,null,null,null,null,0,null,null,null,null,null,null,null,null,null,null,0,null,0]
[6,null,null,null,null,null,null,null,null,null,null,null,0,null,null,null,null,null,null,null,null,null,null,0,null,null,null,null,null,null,null,null,null,null,0,null,null,null,null,null,null,null,null,null,null,0,null,null,null,null,null,null,null,null,null,null,0,null,null,null,null,null,null,null,null,null,null,0,null,null,null,null,null,null,null,null,null,null,0,null,null,null,null,null,null,null,null,null,null,0,null,null,null,null,null,null,null,null,null,null,0,null,null,null,null,null,null,null,null,null,null,0,null,null,null,null,null,null,null,null,null,null,0,null,null,null,null,null,null,null,null,null,null,0,null,0]
[7,null,null,null,null,null,null,null,null,null,null,null,0,null,null,null,null,null,null,null,null,null,null,0,null,null,null,null,null,null,null,null,null,null,0,null,null,null,null,null,null,null,null,null,null,0,null,null,null,null,null,null,null,null,null,null,0,null,null,null,null,null,null,null,null,null,null,0,null,null,null,null,null,null,null,null,null,null,0,null,null,null,null,null,null,null,null,null,null,0,null,null,null,null,null,null,null,null,null,null,0,null,null,null,null,null,null,null,null,null,null,0,null,null,null,null,null,null,null,null,null,null,0,null,null,null,null,null,null,null,null,null,null,0,null,0]
[8,null,null,null,null,null,null,null,null,null,null,null,0,null,null,null,null,null,null,null,null,null,null,0,null,null,null,null,null,null,null,null,null,null,0,null,null,null,null,null,null,null,null,null,null,0,null,null,null,null,null,null,null,null,null,null,0,null,null,null,null,null,null,null,null,null,null,0,null,null,null,null,null,null,null,null,null,null,0,null,null,null,null,null,null,null,null,null,null,0,null,null,null,null,null,null,null,null,null,null,0,null,null,null,null,null,null,null,null,null,null,0,null,null,null,null,null,null,null,null,null,null,0,null,null,null,null,null,null,null,null,null,null,0,null,0]
[9,null,null,null,null,null,null,null,null,null,null,null,0,null,null,null,null,null,null,null,null,null,null,0,null,null,null,null,null,null,null,null,null,null,0,null,null,null,null,null,null,null,null,null,null,0,null,null,null,null,null,null,null,null,null,null,0,null,null,null,null,null,null,null,null,null,null,0,null,null,null,null,null,null,null,null,null,null,0,null,null,null,null,null,null,null,null,null,null,0,null,null,null,null,null,null,null,null,null,null,0,null,null,null,null,null,null,null,null,null,null,0,null,null,null,null,null,null,null,null,null,null,0,null,null,null,null,null,null,null,null,null,null,0,null,0]
[10,null,null,null,null,null,null,null,null,null,null,null,0,null,null,null,null,null,null,null,null,null,null,0,null,null,null,null,null,null,null,null,null,null,0,null,null,null,null,null,null,null,null,null,null,0,null,null,null,null,null,null,null,null,null,null,0,null,null,null,null,null,null,null,null,null,null,0,null,null,null,null,null,null,null,null,null,null,0,null,null,null,null,null,null,null,null,null,null,0,null,null,null,null,null,null,null,null,null,null,0,null,null,null,null,null,null,null,null,null,null,0,null,null,null,null,null,null,null,null,null,null,0,null,null,null,null,null,null,null,null,null,null,0,null,0]
[11,null,null,null,null,null,null,null,null,null,null,null,0,null,null,null,null,null,null,null,null,null,null,0,null,null,null,null,null,null,null,null,null,null,0,null,null,null,null,null,null,null,null,null,null,0,null,null,null,null,null,null,null,null,null,null,0,null,null,null,null,null,null,null,null,null,null,0,null,null,null,null,null,null,null,null,null,null,0,null,null,null,null,null,null,null,null,null,null,0,null,null,null,null,null,null,null,null,null,null,0,null,null,null,null,null,null,null,null,null,null,0,null,null,null,null,null,null,null,null,null,null,0,null,null,null,null,null,null,null,null,null,null,0,null,0]
[12,null,null,null,null,null,null,null,null,null,null,null,0,null,null,null,null,null,null,null,null,null,null,0,null,null,null,null,null,null,null,null,null,null,0,null,null,null,null,null,null,null,null,null,null,0,null,null,null,null,null,null,null,null,null,null,0,null,null,null,null,null,null,null,null,null,null,0,null,null,null,null,null,null,null,null,null,null,0,null,null,null,null,null,null,null,null,null,null,0,null,null,null,null,null,null,null,null,null,null,0,null,null,null,null,null,null,null,null,null,null,0,null,null,null,null,null,null,null,null,null,null,0,null,null,null,null,null,null,null,null,null,null,0,null,0]
[13,null,null,null,null,null,null,null,null,null,null,null,0,null,null,null,null,null,null,null,null,null,null,0,null,null,null,null,null,null,null,null,null,null,0,null,null,null,null,null,null,null,null,null,null,0,null,null,null,null,null,null,null,null,null,null,0,null,null,null,null,null,null,null,null,null,null,0,null,null,null,null,null,null,null,null,null,null,0,null,null,null,null,null,null,null,null,null,null,0,null,null,null,null,null,null,null,null,null,null,0,null,null,null,null,null,null,null,null,null,null,0,null,null,null,null,null,null,null,null,null,null,0,null,null,null,null,null,null,null,null,null,null,0,null,0]
[14,null,null,null,null,null,null,null,null,null,null,null,0,null,null,null,null,null,null,null,null,null,null,0,null,null,null,null,null,null,null,null,null,null,0,null,null,null,null,null,null,null,null,null,null,0,null,null,null,null,null,null,null,null,null,null,0,null,null,null,null,null,null,null,null,null,null,0,null,null,null,null,null,null,null,null,null,null,0,null,null,null,null,null,null,null,null,null,null,0,null,null,null,null,null,null,null,null,null,null,0,null,null,null,null,null,null,null,null,null,null,0,null,null,null,null,null,null,null,null,null,null,0,null,null,null,null,null,null,null,null,null,null,0,null,0]
[15,null,null,null,null,null,null,null,null,null,null,null,0,null,null,null,null,null,null,null,null,null,null,0,null,null,null,null,null,null,null,null,null,null,0,null,null,null,null,null,null,null,null,null,null,0,null,null,null,null,null,null,null,null,null,null,0,null,null,null,null,null,null,null,null,null,null,0,null,null,null,null,null,null,null,null,null,null,0,null,null,null,null,null,null,null,null,null,null,0,null,null,null,null,null,null,null,null,null,null,0,null,null,null,null,null,null,null,null,null,null,0,null,null,null,null,null,null,null,null,null,null,0,null,null,null,null,null,null,null,null,null,null,0,null,0]
[16,null,null,null,null,null,null,null,null,null,null,null,0,null,null,null,null,null,null,null,null,null,null,0,null,null,null,null,null,null,null,null,null,null,0,null,null,null,null,null,null,null,null,null,null,0,null,null,null,null,null,null,null,null,null,null,0,null,null,null,null,null,null,null,null,null,null,0,null,null,null,null,null,null,null,null,null,null,0,null,null,null,null,null,null,null,null,null,null,0,null,null,null,null,null,null,null,null,null,null,0,null,null,null,null,null,null,null,null,null,null,0,null,null,null,null,null,null,null,null,null,null,0,null,null,null,null,null,null,null,null,null,null,0,null,0]
[17,null,null,null,null,null,null,null,null,null,null,null,0,null,null,null,null,null,null,null,null,null,null,0,null,null,null,null,null,null,null,null,null,null,0,null,null,null,null,null,null,null,null,null,null,0,null,null,null,null,null,null,null,null,null,null,0,null,null,null,null,null,null,null,null,null,null,0,null,null,null,null,null,null,null,null,null,null,0,null,null,null,null,null,null,null,null,null,null,0,null,null,null,null,null,null,null,null,null,null,0,null,null,null,null,null,null,null,null,null,null,0,null,null,null,null,null,null,null,null,null,null,0,null,null,null,null,null,null,null,null,null,null,0,null,0]
[18,null,null,null,null,null,null,null,null,null,null,null,0,null,null,null,null,null,null,null,null,null,null,0,null,null,null,null,null,null,null,null,null,null,0,null,null,null,null,null,null,null,null,null,null,0,null,null,null,null,null,null,null,null,null,null,0,null,null,null,null,null,null,null,null,null,null,0,null,null,null,null,null,null,null,null,null,null,0,null,null,null,null,null,null,null,null,null,null,0,null,null,null,null,null,null,null,null,null,null,0,null,null,null,null,null,null,null,null,null,null,0,null,null,null,null,null,null,null,null,null,null,0,null,null,null,null,null,null,null,null,null,null,0,null,0]
[19,null,null,null,null,null,null,null,null,null,null,null,0,null,null,null,null,null,null,null,null,null,null,0,null,null,null,null,null,null,null,null,null,null,0,null,null,null,null,null,null,null,null,null,null,0,null,null,null,null,null,null,null,null,null,null,0,null,null,null,null,null,null,null,null,null,null,0,null,null,null,null,null,null,null,null,null,null,0,null,null,null,null,null,null,null,null,null,null,0,null,null,null,null,null,null,null,null,null,null,0,null,null,null,null,null,null,null,null,null,null,0,null,null,null,null,null,null,null,null,null,null,0,null,null,null,null,null,null,null,null,null,null,0,null,0]
[20,null,null,null,null,null,null,null,null,null,null,null,0,null,null,null,null,null,null,null,null,null,null,0,null,null,null,null,null,null,null,null,null,null,0,null,null,null,null,null,null,null,null,null,null,0,null,null,null,null,null,null,null,null,null,null,0,null,null,null,null,null,null,null,null,null,null,0,null,null,null,null,null,null,null,null,null,null,0,null,null,null,null,null,null,null,null,null,null,0,null,null,null,null,null,null,null,null,null,null,0,null,null,null,null,null,null,null,null,null,null,0,null,null,null,null,null,null,null,null,null,null,0,null,null,null,null,null,null,null,null,null,null,0,null,0]
[21,null,null,null,null,null,null,null,null,null,null,null,0,null,null,null,null,null,null,null,null,null,null,0,null,null,null,null,null,null,null,null,null,null,0,null,null,null,null,null,null,null,null,null,null,0,null,null,null,null,null,null,null,null,null,null,0,null,null,null,null,null,null,null,null,null,null,0,null,null,null,null,null,null,null,null,null,null,0,null,null,null,null,null,null,null,null,null,null,0,null,null,null,null,null,null,null,null,null,null,0,null,null,null,null,null,null,null,null,null,null,0,null,null,null,null,null,null,null,null,null,null,0,null,null,null,null,null,null,null,null,null,null,0,null,0]
[22,null,null,null,null,null,null,null,null,null,null,null,0,null,null,null,null,null,null,null,null,null,null,0,null,null,null,null,null,null,null,null,null,null,0,null,null,null,null,null,null,null,null,null,null,0,null,null,null,null,null,null,null,null,null,null,0,null,null,null,null,null,null,null,null,null,null,0,null,null,null,null,null,null,null,null,null,null,0,null,null,null,null,null,null,null,null,null,null,0,null,null,null,null,null,null,null,null,null,null,0,null,null,null,null,null,null,null,null,null,null,0,null,null,null,null,null,null,null,null,null,null,0,null,null,null,null,null,null,null,null,null,null,0,null,0]
[23,null,null,null,null,null,null,null,null,null,null,null,0,null,null,null,null,null,null,null,null,null,null,0,null,null,null,null,null,null,null,null,null,null,0,null,null,null,null,null,null,null,null,null,null,0,null,null,null,null,null,null,null,null,null,null,0,null,null,null,null,null,null,null,null,null,null,0,null,null,null,null,null,null,null,null,null,null,0,null,null,null,null,null,null,null,null,null,null,0,null,null,null,null,null,null,null,null,null,null,0,null,null,null,null,null,null,null,null,null,null,0,null,null,null,null,null,null,null,null,null,null,0,null,null,null,null,null,null,null,null,null,null,0,null,0]
[24,null,null,null,null,null,null,null,null,null,null,null,0,null,null,null,null,null,null,null,null,null,null,0,null,null,null,null,null,null,null,null,null,null,0,null,null,null,null,null,null,null,null,null,null,0,null,null,null,null,null,null,null,null,null,null,0,null,null,null,null,null,null,null,null,null,null,0,null,null,null,null,null,null,null,null,null,null,0,null,null,null,null,null,null,null,null,null,null,0,null,null,null,null,null,null,null,null,null,null,0,null,null,null,null,null,null,null,null,null,null,0,null,null,null,null,null,null,null,null,null,null,0,null,null,null,null,null,null,null,null,null,null,0,null,0]
[25,null,null,null,null,null,null,null,null,null,null,null,0,null,null,null,null,null,null,null,null,null,null,0,null,null,null,null,null,null,null,null,null,null,0,null,null,null,null,null,null,null,null,null,null,0,null,null,null,null,null,null,null,null,null,null,0,null,null,null,null,null,null,null,null,null,null,0,null,null,null,null,null,null,null,null,null,null,0,null,null,null,null,null,null,null,null,null,null,0,null,null,null,null,null,null,null,null,null,null,0,null,null,null,null,null,null,null,null,null,null,0,null,null,null,null,null,null,null,null,null,null,0,null,null,null,null,null,null,null,null,null,null,0,null,0]
[26,null,null,null,null,null,null,null,null,null,null,null,0,null,null,null,null,null,null,null,null,null,null,0,null,null,null,null,null,null,null,null,null,null,0,null,null,null,null,null,null,null,null,null,null,0,null,null,null,null,null,null,null,null,null,null,0,null,null,null,null,null,null,null,null,null,null,0,null,null,null,null,null,null,null,null,null,null,0,null,null,null,null,null,null,null,null,null,null,0,null,null,null,null,null,null,null,null,null,null,0,null,null,null,null,null,null,null,null,null,null,0,null,null,null,null,null,null,null,null,null,null,0,null,null,null,null,null,null,null,null,null,null,0,null,0]
[27,null,null,null,null,null,null,null,null,null,null,null,0,null,null,null,null,null,null,null,null,null,null,0,null,null,null,null,null,null,null,null,null,null,0,null,null,null,null,null,null,null,null,null,null,0,null,null,null,null,null,null,null,null,null,null,0,null,null,null,null,null,null,null,null,null,null,0,null,null,null,null,null,null,null,null,null,null,0,null,null,null,null,null,null,null,null,null,null,0,null,null,null,null,null,null,null,null,null,null,0,null,null,null,null,null,null,null,null,null,null,0,null,null,null,null,null,null,null,null,null,null,0,null,null,null,null,null,null,null,null,null,null,0,null,0]
[28,null,null,null,null,null,null,null,null,null,null,null,0,null,null,null,null,null,null,null,null,null,null,0,null,null,null,null,null,null,null,null,null,null,0,null,null,null,null,null,null,null,null,null,null,0,null,null,null,null,null,null,null,null,null,null,0,null,null,null,null,null,null,null,null,null,null,0,null,null,null,null,null,null,null,null,null,null,0,null,null,null,null,null,null,null,null,null,null,0,null,null,null,null,null,null,null,null,null,null,0,null,null,null,null,null,null,null,null,null,null,0,null,null,null,null,null,null,null,null,null,null,0,null,null,null,null,null,null,null,null,null,null,0,null,0]
[29,null,null,null,null,null,null,null,null,null,null,null,0,null,null,null,null,null,null,null,null,null,null,0,null,null,null,null,null,null,null,null,null,null,0,null,null,null,null,null,null,null,null,null,null,0,null,null,null,null,null,null,null,null,null,null,0,null,null,null,null,null,null,null,null,null,null,0,null,null,null,null,null,null,null,null,null,null,0,null,null,null,null,null,null,null,null,null,null,0,null,null,null,null,null,null,null,null,null,null,0,null,null,null,null,null,null,null,null,null,null,0,null,null,null,null,null,null,null,null,null,null,0,null,null,null,null,null,null,null,null,null,null,0,null,0]
[30,null,null,null,null,null,null,null,null,null,null,null,0,null,null,null,null,null,null,null,null,null,null,0,null,null,null,null,null,null,null,null,null,null,0,null,null,null,null,null,null,null,null,null,null,0,null,null,null,null,null,null,null,null,null,null,0,null,null,null,null,null,null,null,null,null,null,0,null,null,null,null,null,null,null,null,null,null,0,null,null,null,null,null,null,null,null,null,null,0,null,null,null,null,null,null,null,null,null,null,0,null,null,null,null,null,null,null,null,null,null,0,null,null,null,null,null,null,null,null,null,null,0,null,null,null,null,null,null,null,null,null,null,0,null,0]
[31,null,null,null,null,null,null,null,null,null,null,null,0,null,null,null,null,null,null,null,null,null,null,0,null,null,null,null,null,null,null,null,null,null,0,null,null,null,null,null,null,null,null,null,null,0,null,null,null,null,null,null,null,null,null,null,0,null,null,null,null,null,null,null,null,null,null,0,null,null,null,null,null,null,null,null,null,null,0,null,null,null,null,null,null,null,null,null,null,0,null,null,null,null,null,null,null,null,null,null,0,null,null,null,null,null,null,null,null,null,null,0,null,null,null,null,null,null,null,null,null,null,0,null,null,null,null,null,null,null,null,null,null,0,null,0]
[]
["Sum",null,{"$f":"SUM(C3:C33)","v":0},{"$f":"SUM(D3:D33)","v":0},0,0,0,0,0,0,0,0,{"$f":"SUM(C35:L35)","v":0},{"$f":"SUM(N3:N33)","v":0},0,0,0,0,0,0,0,0,0,{"$f":"SUM(N35:W35)","v":0},0,0,0,0,0,0,0,0,0,0,{"$f":"SUM(Y35:AH35)","v":0},0,0,0,0,0,0,0,0,0,0,{"$f":"SUM(AJ35:AS35)","v":0},0,0,0,0,0,0,0,0,0,0,{"$f":"SUM(AU35:BD35)","v":0},0,0,0,0,0,0,0,0,0,0,{"$f":"SUM(BF35:BO35)","v":0},0,0,0,0,0,0,0,0,0,0,{"$f":"SUM(BQ35:BZ35)","v":0},0,0,0,0,0,0,0,0,0,0,{"$f":"SUM(CB35:CK35)","v":0},0,0,0,0,0,0,0,0,0,0,{"$f":"SUM(CM35:CV35)","v":0},0,0,0,0,0,0,0,0,0,0,{"$f":"SUM(CX35:DG35)","v":0},0,0,0,0,0,0,0,0,0,0,{"$f":"SUM(DI35:DR35)","v":0},0,0,{"$f":"SUM(DV3:DV33)","v":0},0,0,0,0,0,0,0,{"$f":"SUM(DT35:EC35)","v":0},null,{"$f":"SUM(EF3:EF34)","v":0}]
[]
[]
[null,null,"Januar","Februar","Marts","April","Maj","Juni","Juli","August","September","Oktober","November","December"]
[null,null,{"$f":"ABS(M35)","v":0},{"$f":"ABS(X35)","v":0},{"$f":"ABS(AI35)","v":0},{"$f":"ABS(AT35)","v":0},{"$f":"ABS(BE35)","v":0},{"$f":"ABS(BP35)","v":0},{"$f":"ABS(CA35)","v":0},{"$f":"ABS(CL35)","v":0},{"$f":"ABS(CW35)","v":0},{"$f":"ABS(DH35)","v":0},{"$f":"ABS(DS35)","v":0},{"$f":"ABS(ED35)","v":0}]

{"sheet":"Mobil, data, internet, streamin","index":9,"n_rows":39,"n_cols":136,"rows_kept":39,"cut":false,"hidden":true,"merged":[]}
["Home",null,"Januar '1","Januar '2","Januar '3","Januar '4","Januar '5","Januar '6","Januar '7","Januar '8","Januar '9","Januar '10","SUM","Februar '1","Februar '2","Februar '3","Februar '4","Februar '5","Februar '6","Februar '7","Februar '8","Februar '9","Februar '10","SUM","Marts '1","Marts '2","Marts '3","Marts '4","Marts '5","Marts '6","Marts '7","Marts '8","Marts '9","Marts '10","SUM","April '1","April '2","April '3","April '4","April '5","April '6","April '7","April '8","April '9","April '10","SUM","Maj '1","Maj '2","Maj '3","Maj '4","Maj '5","Maj '6","Maj '7","Maj '8","Maj '9","Maj '10","SUM","Juni '1","Juni '2","Juni '3","Juni '4","Juni '5","Juni '6","Juni '7","Juni '8","Juni '9","Juni '10","SUM","Juli '1","Juli '2","Juli '3","Juli '4","Juli '5","Juli '6","Juli '7","Juli '8","Juli '9","Juli '10","SUM","August '1","August '2","August '3","August '4","August '5","August '6","August '7","August '8","August '9","August '10","SUM","September '1","September '2","September '3","September '4","September '5","September '6","September '7","September '8","September '9","September '10","SUM","Oktober '1","Oktober '2","Oktober '3","Oktober '4","Oktober '5","Oktober '6","Oktober '7","Oktober '8","Oktober '9","Oktober '10","SUM","November '1","November '2","November '3","November '4","November '5","November '6","November '7","November '8","November '9","November '10","SUM","December '1","December '2","December '3","December '4","December '5","December '6","December '7","December '8","December '9","December '10","SUM",null,"Sum"]
[null,null,"Mobil 3+\nKarina","Mobil CBB\nAllan","Internet\nBuegangen","Streaming\nNetflix","Streaming\nTV2",null,null,null,null,null,null,"Mobil 3+\nKarina","Mobil CBB\nAllan","Internet\nBuegangen","Streaming\nNetflix","Streaming\nTV2",null,null,null,null,null,null,"Mobil 3+\nKarina","Mobil CBB\nAllan","Internet\nBuegangen","Streaming\nNetflix","Streaming\nTV2",null,null,null,null,null,null,"Mobil 3+\nKarina","Mobil CBB\nAllan","Internet\nBuegangen","Streaming\nNetflix","Streaming\nTV2",null,null,null,null,null,null,"Mobil 3+\nKarina","Mobil CBB\nAllan","Internet\nBuegangen","Streaming\nNetflix","Streaming\nTV2"]
[1,null,null,null,null,null,null,null,null,null,null,null,{"$f":"SUM(C3:L3)","v":0},null,null,null,null,null,null,null,null,null,null,{"$f":"SUM(N3:W3)","v":0},null,null,null,null,null,null,null,null,null,null,{"$f":"SUM(Y3:AH3)","v":0},null,null,null,null,null,null,null,null,null,null,{"$f":"SUM(AJ3:AS3)","v":0},null,null,null,null,null,null,null,null,null,null,{"$f":"SUM(AU3:BD3)","v":0},null,null,null,null,null,null,null,null,null,null,{"$f":"SUM(BF3:BO3)","v":0},null,null,null,null,null,null,null,null,null,null,{"$f":"SUM(BQ3:BZ3)","v":0},null,null,null,null,null,null,null,null,null,null,{"$f":"SUM(CB3:CK3)","v":0},null,null,null,null,null,null,null,null,null,null,{"$f":"SUM(CM3:CV3)","v":0},null,null,null,null,null,null,null,null,null,null,{"$f":"SUM(CX3:DG3)","v":0},null,null,null,null,null,null,null,null,null,null,{"$f":"SUM(DI3:DR3)","v":0},null,null,null,null,null,null,null,null,null,null,{"$f":"SUM(DT3:EC3)","v":0},null,{"$f":"SUM(ED3,DS3,DH3,CW3,CL3,CA3,BP3,BE3,AT3,AI3,X3,M3)","v":0}]
[2,null,null,null,null,null,null,null,null,null,null,null,{"$f":"SUM(C4:L4)","v":0},null,null,null,null,null,null,null,null,null,null,{"$f":"SUM(N4:W4)","v":0},null,null,null,null,null,null,null,null,null,null,{"$f":"SUM(Y4:AH4)","v":0},null,null,null,null,null,null,null,null,null,null,{"$f":"SUM(AJ4:AS4)","v":0},null,null,null,null,null,null,null,null,null,null,{"$f":"SUM(AU4:BD4)","v":0},null,null,null,null,null,null,null,null,null,null,{"$f":"SUM(BF4:BO4)","v":0},null,null,null,null,null,null,null,null,null,null,{"$f":"SUM(BQ4:BZ4)","v":0},null,null,null,null,null,null,null,null,null,null,{"$f":"SUM(CB4:CK4)","v":0},null,null,null,null,null,null,null,null,null,null,{"$f":"SUM(CM4:CV4)","v":0},null,null,null,null,null,null,null,null,null,null,{"$f":"SUM(CX4:DG4)","v":0},null,null,null,null,null,null,null,null,null,null,{"$f":"SUM(DI4:DR4)","v":0},null,null,null,null,null,null,null,null,null,null,{"$f":"SUM(DT4:EC4)","v":0},null,{"$f":"SUM(ED4,DS4,DH4,CW4,CL4,CA4,BP4,BE4,AT4,AI4,X4,M4)","v":0}]
[3,null,null,null,null,null,null,null,null,null,null,null,0,null,null,null,null,null,null,null,null,null,null,0,null,null,null,null,null,null,null,null,null,null,0,null,null,null,null,null,null,null,null,null,null,0,null,null,null,null,null,null,null,null,null,null,0,null,null,null,null,null,null,null,null,null,null,0,null,null,null,null,null,null,null,null,null,null,0,null,null,null,null,null,null,null,null,null,null,0,null,null,null,null,null,null,null,null,null,null,0,null,null,null,null,null,null,null,null,null,null,0,null,null,null,null,null,null,null,null,null,null,0,null,null,null,null,null,null,null,null,null,null,0,null,0]
[4,null,null,null,null,null,null,null,null,null,null,null,0,null,null,null,null,null,null,null,null,null,null,0,null,null,null,null,null,null,null,null,null,null,0,null,null,null,null,null,null,null,null,null,null,0,null,null,null,null,null,null,null,null,null,null,0,null,null,null,null,null,null,null,null,null,null,0,null,null,null,null,null,null,null,null,null,null,0,null,null,null,null,null,null,null,null,null,null,0,null,null,null,null,null,null,null,null,null,null,0,null,null,null,null,null,null,null,null,null,null,0,null,null,null,null,null,null,null,null,null,null,0,null,null,null,null,null,null,null,null,null,null,0,null,0]
[5,null,null,null,null,null,null,null,null,null,null,null,0,null,null,null,null,null,null,null,null,null,null,0,null,null,null,null,null,null,null,null,null,null,0,null,null,null,null,null,null,null,null,null,null,0,null,null,null,null,null,null,null,null,null,null,0,null,null,null,null,null,null,null,null,null,null,0,null,null,null,null,null,null,null,null,null,null,0,null,null,null,null,null,null,null,null,null,null,0,null,null,null,null,null,null,null,null,null,null,0,null,null,null,null,null,null,null,null,null,null,0,null,null,null,null,null,null,null,null,null,null,0,null,null,null,null,null,null,null,null,null,null,0,null,0]
[6,null,null,null,null,null,null,null,null,null,null,null,0,null,null,null,null,null,null,null,null,null,null,0,null,null,null,null,null,null,null,null,null,null,0,null,null,null,null,null,null,null,null,null,null,0,null,null,null,null,null,null,null,null,null,null,0,null,null,null,null,null,null,null,null,null,null,0,null,null,null,null,null,null,null,null,null,null,0,null,null,null,null,null,null,null,null,null,null,0,null,null,null,null,null,null,null,null,null,null,0,null,null,null,null,null,null,null,null,null,null,0,null,null,null,null,null,null,null,null,null,null,0,null,null,null,null,null,null,null,null,null,null,0,null,0]
[7,null,null,null,null,null,null,null,null,null,null,null,0,null,null,null,null,null,null,null,null,null,null,0,null,null,null,null,null,null,null,null,null,null,0,null,null,null,null,null,null,null,null,null,null,0,null,null,null,null,null,null,null,null,null,null,0,null,null,null,null,null,null,null,null,null,null,0,null,null,null,null,null,null,null,null,null,null,0,null,null,null,null,null,null,null,null,null,null,0,null,null,null,null,null,null,null,null,null,null,0,null,null,null,null,null,null,null,null,null,null,0,null,null,null,null,null,null,null,null,null,null,0,null,null,null,null,null,null,null,null,null,null,0,null,0]
[8,null,null,null,null,null,null,null,null,null,null,null,0,null,null,null,null,null,null,null,null,null,null,0,null,null,null,null,null,null,null,null,null,null,0,null,null,null,null,null,null,null,null,null,null,0,null,null,null,null,null,null,null,null,null,null,0,null,null,null,null,null,null,null,null,null,null,0,null,null,null,null,null,null,null,null,null,null,0,null,null,null,null,null,null,null,null,null,null,0,null,null,null,null,null,null,null,null,null,null,0,null,null,null,null,null,null,null,null,null,null,0,null,null,null,null,null,null,null,null,null,null,0,null,null,null,null,null,null,null,null,null,null,0,null,0]
[9,null,null,null,null,null,null,null,null,null,null,null,0,null,null,null,null,null,null,null,null,null,null,0,null,null,null,null,null,null,null,null,null,null,0,null,null,null,null,null,null,null,null,null,null,0,null,null,null,null,null,null,null,null,null,null,0,null,null,null,null,null,null,null,null,null,null,0,null,null,null,null,null,null,null,null,null,null,0,null,null,null,null,null,null,null,null,null,null,0,null,null,null,null,null,null,null,null,null,null,0,null,null,null,null,null,null,null,null,null,null,0,null,null,null,null,null,null,null,null,null,null,0,null,null,null,null,null,null,null,null,null,null,0,null,0]
[10,null,null,null,null,null,null,null,null,null,null,null,0,null,null,null,null,null,null,null,null,null,null,0,null,null,null,null,null,null,null,null,null,null,0,null,null,null,null,null,null,null,null,null,null,0,null,null,null,null,null,null,null,null,null,null,0,null,null,null,null,null,null,null,null,null,null,0,null,null,null,null,null,null,null,null,null,null,0,null,null,null,null,null,null,null,null,null,null,0,null,null,null,null,null,null,null,null,null,null,0,null,null,null,null,null,null,null,null,null,null,0,null,null,null,null,null,null,null,null,null,null,0,null,null,null,null,null,null,null,null,null,null,0,null,0]
[11,null,null,null,null,null,null,null,null,null,null,null,0,null,null,null,null,null,null,null,null,null,null,0,null,null,null,null,null,null,null,null,null,null,0,null,null,null,null,null,null,null,null,null,null,0,null,null,null,null,null,null,null,null,null,null,0,null,null,null,null,null,null,null,null,null,null,0,null,null,null,null,null,null,null,null,null,null,0,null,null,null,null,null,null,null,null,null,null,0,null,null,null,null,null,null,null,null,null,null,0,null,null,null,null,null,null,null,null,null,null,0,null,null,null,null,null,null,null,null,null,null,0,null,null,null,null,null,null,null,null,null,null,0,null,0]
[12,null,null,null,null,null,null,null,null,null,null,null,0,null,null,null,null,null,null,null,null,null,null,0,null,null,null,null,null,null,null,null,null,null,0,null,null,null,null,null,null,null,null,null,null,0,null,null,null,null,null,null,null,null,null,null,0,null,null,null,null,null,null,null,null,null,null,0,null,null,null,null,null,null,null,null,null,null,0,null,null,null,null,null,null,null,null,null,null,0,null,null,null,null,null,null,null,null,null,null,0,null,null,null,null,null,null,null,null,null,null,0,null,null,null,null,null,null,null,null,null,null,0,null,null,null,null,null,null,null,null,null,null,0,null,0]
[13,null,null,null,null,null,null,null,null,null,null,null,0,null,null,null,null,null,null,null,null,null,null,0,null,null,null,null,null,null,null,null,null,null,0,null,null,null,null,null,null,null,null,null,null,0,null,null,null,null,null,null,null,null,null,null,0,null,null,null,null,null,null,null,null,null,null,0,null,null,null,null,null,null,null,null,null,null,0,null,null,null,null,null,null,null,null,null,null,0,null,null,null,null,null,null,null,null,null,null,0,null,null,null,null,null,null,null,null,null,null,0,null,null,null,null,null,null,null,null,null,null,0,null,null,null,null,null,null,null,null,null,null,0,null,0]
[14,null,null,null,null,null,null,null,null,null,null,null,0,null,null,null,null,null,null,null,null,null,null,0,null,null,null,null,null,null,null,null,null,null,0,null,null,null,null,null,null,null,null,null,null,0,null,null,null,null,null,null,null,null,null,null,0,null,null,null,null,null,null,null,null,null,null,0,null,null,null,null,null,null,null,null,null,null,0,null,null,null,null,null,null,null,null,null,null,0,null,null,null,null,null,null,null,null,null,null,0,null,null,null,null,null,null,null,null,null,null,0,null,null,null,null,null,null,null,null,null,null,0,null,null,null,null,null,null,null,null,null,null,0,null,0]
[15,null,null,null,null,null,null,null,null,null,null,null,0,null,null,null,null,null,null,null,null,null,null,0,null,null,null,null,null,null,null,null,null,null,0,null,null,null,null,null,null,null,null,null,null,0,null,null,null,null,null,null,null,null,null,null,0,null,null,null,null,null,null,null,null,null,null,0,null,null,null,null,null,null,null,null,null,null,0,null,null,null,null,null,null,null,null,null,null,0,null,null,null,null,null,null,null,null,null,null,0,null,null,null,null,null,null,null,null,null,null,0,null,null,null,null,null,null,null,null,null,null,0,null,null,null,null,null,null,null,null,null,null,0,null,0]
[16,null,null,null,null,null,null,null,null,null,null,null,0,null,null,null,null,null,null,null,null,null,null,0,null,null,null,null,null,null,null,null,null,null,0,null,null,null,null,null,null,null,null,null,null,0,null,null,null,null,null,null,null,null,null,null,0,null,null,null,null,null,null,null,null,null,null,0,null,null,null,null,null,null,null,null,null,null,0,null,null,null,null,null,null,null,null,null,null,0,null,null,null,null,null,null,null,null,null,null,0,null,null,null,null,null,null,null,null,null,null,0,null,null,null,null,null,null,null,null,null,null,0,null,null,null,null,null,null,null,null,null,null,0,null,0]
[17,null,null,null,null,null,null,null,null,null,null,null,0,null,null,null,null,null,null,null,null,null,null,0,null,null,null,null,null,null,null,null,null,null,0,null,null,null,null,null,null,null,null,null,null,0,null,null,null,null,null,null,null,null,null,null,0,null,null,null,null,null,null,null,null,null,null,0,null,null,null,null,null,null,null,null,null,null,0,null,null,null,null,null,null,null,null,null,null,0,null,null,null,null,null,null,null,null,null,null,0,null,null,null,null,null,null,null,null,null,null,0,null,null,null,null,null,null,null,null,null,null,0,null,null,null,null,null,null,null,null,null,null,0,null,0]
[18,null,null,null,null,null,null,null,null,null,null,null,0,null,null,null,null,null,null,null,null,null,null,0,null,null,null,null,null,null,null,null,null,null,0,null,null,null,null,null,null,null,null,null,null,0,null,null,null,null,null,null,null,null,null,null,0,null,null,null,null,null,null,null,null,null,null,0,null,null,null,null,null,null,null,null,null,null,0,null,null,null,null,null,null,null,null,null,null,0,null,null,null,null,null,null,null,null,null,null,0,null,null,null,null,null,null,null,null,null,null,0,null,null,null,null,null,null,null,null,null,null,0,null,null,null,null,null,null,null,null,null,null,0,null,0]
[19,null,null,null,null,null,null,null,null,null,null,null,0,null,null,null,null,null,null,null,null,null,null,0,null,null,null,null,null,null,null,null,null,null,0,null,null,null,null,null,null,null,null,null,null,0,null,null,null,null,null,null,null,null,null,null,0,null,null,null,null,null,null,null,null,null,null,0,null,null,null,null,null,null,null,null,null,null,0,null,null,null,null,null,null,null,null,null,null,0,null,null,null,null,null,null,null,null,null,null,0,null,null,null,null,null,null,null,null,null,null,0,null,null,null,null,null,null,null,null,null,null,0,null,null,null,null,null,null,null,null,null,null,0,null,0]
[20,null,null,null,null,null,null,null,null,null,null,null,0,null,null,null,null,null,null,null,null,null,null,0,null,null,null,null,null,null,null,null,null,null,0,null,null,null,null,null,null,null,null,null,null,0,null,null,null,null,null,null,null,null,null,null,0,null,null,null,null,null,null,null,null,null,null,0,null,null,null,null,null,null,null,null,null,null,0,null,null,null,null,null,null,null,null,null,null,0,null,null,null,null,null,null,null,null,null,null,0,null,null,null,null,null,null,null,null,null,null,0,null,null,null,null,null,null,null,null,null,null,0,null,null,null,null,null,null,null,null,null,null,0,null,0]
[21,null,null,null,null,null,null,null,null,null,null,null,0,null,null,null,null,null,null,null,null,null,null,0,null,null,null,null,null,null,null,null,null,null,0,null,null,null,null,null,null,null,null,null,null,0,null,null,null,null,null,null,null,null,null,null,0,null,null,null,null,null,null,null,null,null,null,0,null,null,null,null,null,null,null,null,null,null,0,null,null,null,null,null,null,null,null,null,null,0,null,null,null,null,null,null,null,null,null,null,0,null,null,null,null,null,null,null,null,null,null,0,null,null,null,null,null,null,null,null,null,null,0,null,null,null,null,null,null,null,null,null,null,0,null,0]
[22,null,null,null,null,null,null,null,null,null,null,null,0,null,null,null,null,null,null,null,null,null,null,0,null,null,null,null,null,null,null,null,null,null,0,null,null,null,null,null,null,null,null,null,null,0,null,null,null,null,null,null,null,null,null,null,0,null,null,null,null,null,null,null,null,null,null,0,null,null,null,null,null,null,null,null,null,null,0,null,null,null,null,null,null,null,null,null,null,0,null,null,null,null,null,null,null,null,null,null,0,null,null,null,null,null,null,null,null,null,null,0,null,null,null,null,null,null,null,null,null,null,0,null,null,null,null,null,null,null,null,null,null,0,null,0]
[23,null,null,null,null,null,null,null,null,null,null,null,0,null,null,null,null,null,null,null,null,null,null,0,null,null,null,null,null,null,null,null,null,null,0,null,null,null,null,null,null,null,null,null,null,0,null,null,null,null,null,null,null,null,null,null,0,null,null,null,null,null,null,null,null,null,null,0,null,null,null,null,null,null,null,null,null,null,0,null,null,null,null,null,null,null,null,null,null,0,null,null,null,null,null,null,null,null,null,null,0,null,null,null,null,null,null,null,null,null,null,0,null,null,null,null,null,null,null,null,null,null,0,null,null,null,null,null,null,null,null,null,null,0,null,0]
[24,null,null,null,null,null,null,null,null,null,null,null,0,null,null,null,null,null,null,null,null,null,null,0,null,null,null,null,null,null,null,null,null,null,0,null,null,null,-79,null,null,null,null,null,null,-79,null,null,null,null,null,null,null,null,null,null,0,null,null,null,null,null,null,null,null,null,null,0,null,null,null,null,null,null,null,null,null,null,0,null,null,null,null,null,null,null,null,null,null,0,null,null,null,null,null,null,null,null,null,null,0,null,null,null,null,null,null,null,null,null,null,0,null,null,null,null,null,null,null,null,null,null,0,null,null,null,null,null,null,null,null,null,null,0,null,-79]
[25,null,null,null,null,null,null,null,null,null,null,null,0,null,null,null,null,null,null,null,null,null,null,0,null,null,null,null,null,null,null,null,null,null,0,null,null,null,null,null,null,null,null,null,null,0,null,null,null,null,null,null,null,null,null,null,0,null,null,null,null,null,null,null,null,null,null,0,null,null,null,null,null,null,null,null,null,null,0,null,null,null,null,null,null,null,null,null,null,0,null,null,null,null,null,null,null,null,null,null,0,null,null,null,null,null,null,null,null,null,null,0,null,null,null,null,null,null,null,null,null,null,0,null,null,null,null,null,null,null,null,null,null,0,null,0]
[26,null,null,null,null,null,null,null,null,null,null,null,0,null,null,null,null,null,null,null,null,null,null,0,null,null,null,null,null,null,null,null,null,null,0,null,null,null,null,null,null,null,null,null,null,0,null,null,null,null,null,null,null,null,null,null,0,null,null,null,null,null,null,null,null,null,null,0,null,null,null,null,null,null,null,null,null,null,0,null,null,null,null,null,null,null,null,null,null,0,null,null,null,null,null,null,null,null,null,null,0,null,null,null,null,null,null,null,null,null,null,0,null,null,null,null,null,null,null,null,null,null,0,null,null,null,null,null,null,null,null,null,null,0,null,0]
[27,null,null,null,null,null,null,null,null,null,null,null,0,null,null,null,null,null,null,null,null,null,null,0,null,null,null,null,null,null,null,null,null,null,0,null,null,null,null,null,null,null,null,null,null,0,null,null,null,null,null,null,null,null,null,null,0,null,null,null,null,null,null,null,null,null,null,0,null,null,null,null,null,null,null,null,null,null,0,null,null,null,null,null,null,null,null,null,null,0,null,null,null,null,null,null,null,null,null,null,0,null,null,null,null,null,null,null,null,null,null,0,null,null,null,null,null,null,null,null,null,null,0,null,null,null,null,null,null,null,null,null,null,0,null,0]
[28,null,null,null,null,null,null,null,null,null,null,null,0,null,null,null,null,null,null,null,null,null,null,0,null,null,null,null,null,null,null,null,null,null,0,null,null,null,null,null,null,null,null,null,null,0,null,null,null,null,null,null,null,null,null,null,0,null,null,null,null,null,null,null,null,null,null,0,null,null,null,null,null,null,null,null,null,null,0,null,null,null,null,null,null,null,null,null,null,0,null,null,null,null,null,null,null,null,null,null,0,null,null,null,null,null,null,null,null,null,null,0,null,null,null,null,null,null,null,null,null,null,0,null,null,null,null,null,null,null,null,null,null,0,null,0]
[29,null,null,null,null,null,null,null,null,null,null,null,0,null,null,null,null,null,null,null,null,null,null,0,null,null,null,null,null,null,null,null,null,null,0,null,null,null,null,null,null,null,null,null,null,0,null,null,null,null,null,null,null,null,null,null,0,null,null,null,null,null,null,null,null,null,null,0,null,null,null,null,null,null,null,null,null,null,0,null,null,null,null,null,null,null,null,null,null,0,null,null,null,null,null,null,null,null,null,null,0,null,null,null,null,null,null,null,null,null,null,0,null,null,null,null,null,null,null,null,null,null,0,null,null,null,null,null,null,null,null,null,null,0,null,0]
[30,null,null,null,null,null,null,null,null,null,null,null,0,null,null,null,null,null,null,null,null,null,null,0,null,null,null,null,null,null,null,null,null,null,0,null,null,null,null,null,null,null,null,null,null,0,null,null,null,null,null,null,null,null,null,null,0,null,null,null,null,null,null,null,null,null,null,0,null,null,null,null,null,null,null,null,null,null,0,null,null,null,null,null,null,null,null,null,null,0,null,null,null,null,null,null,null,null,null,null,0,null,null,null,null,null,null,null,null,null,null,0,null,null,null,null,null,null,null,null,null,null,0,null,null,null,null,null,null,null,null,null,null,0,null,0]
[31,null,null,null,null,null,null,null,null,null,null,null,0,null,null,null,null,null,null,null,null,null,null,0,null,null,null,null,null,null,null,null,null,null,0,null,null,null,null,null,null,null,null,null,null,0,null,null,null,null,null,null,null,null,null,null,0,null,null,null,null,null,null,null,null,null,null,0,null,null,null,null,null,null,null,null,null,null,0,null,null,null,null,null,null,null,null,null,null,0,null,null,null,null,null,null,null,null,null,null,0,null,null,null,null,null,null,null,null,null,null,0,null,null,null,null,null,null,null,null,null,null,0,null,null,null,null,null,null,null,null,null,null,0,null,0]
[]
["Sum",null,{"$f":"SUM(C3:C33)","v":0},{"$f":"SUM(D3:D33)","v":0},0,0,0,0,0,0,0,0,{"$f":"SUM(C35:L35)","v":0},{"$f":"SUM(N3:N33)","v":0},0,0,0,0,0,0,0,0,0,{"$f":"SUM(N35:W35)","v":0},0,0,0,0,0,0,0,0,0,0,{"$f":"SUM(Y35:AH35)","v":0},0,0,0,-79,0,0,0,0,0,0,{"$f":"SUM(AJ35:AS35)","v":-79},0,0,0,0,0,0,0,0,0,0,{"$f":"SUM(AU35:BD35)","v":0},0,0,0,0,0,0,0,0,0,0,{"$f":"SUM(BF35:BO35)","v":0},0,0,0,0,0,0,0,0,0,0,{"$f":"SUM(BQ35:BZ35)","v":0},0,0,0,0,0,0,0,0,0,0,{"$f":"SUM(CB35:CK35)","v":0},0,0,0,0,0,0,0,0,0,0,{"$f":"SUM(CM35:CV35)","v":0},0,0,0,0,0,0,0,0,0,0,{"$f":"SUM(CX35:DG35)","v":0},0,0,0,0,0,0,0,0,0,0,{"$f":"SUM(DI35:DR35)","v":0},0,0,{"$f":"SUM(DV3:DV33)","v":0},0,0,0,0,0,0,0,{"$f":"SUM(DT35:EC35)","v":0},null,{"$f":"SUM(EF3:EF34)","v":-79}]
[]
[]
[null,null,"Januar","Februar","Marts","April","Maj","Juni","Juli","August","September","Oktober","November","December"]
[null,null,{"$f":"ABS(M35)","v":0},{"$f":"ABS(X35)","v":0},{"$f":"ABS(AI35)","v":0},{"$f":"ABS(AT35)","v":79},{"$f":"ABS(BE35)","v":0},{"$f":"ABS(BP35)","v":0},{"$f":"ABS(CA35)","v":0},{"$f":"ABS(CL35)","v":0},{"$f":"ABS(CW35)","v":0},{"$f":"ABS(DH35)","v":0},{"$f":"ABS(DS35)","v":0},{"$f":"ABS(ED35)","v":0}]

{"sheet":"Gæld til banker","index":10,"n_rows":39,"n_cols":136,"rows_kept":39,"cut":false,"hidden":true,"merged":[]}
["Home",null,"Januar '1","Januar '2","Januar '3","Januar '4","Januar '5","Januar '6","Januar '7","Januar '8","Januar '9","Januar '10","SUM","Februar '1","Februar '2","Februar '3","Februar '4","Februar '5","Februar '6","Februar '7","Februar '8","Februar '9","Februar '10","SUM","Marts '1","Marts '2","Marts '3","Marts '4","Marts '5","Marts '6","Marts '7","Marts '8","Marts '9","Marts '10","SUM","April '1","April '2","April '3","April '4","April '5","April '6","April '7","April '8","April '9","April '10","SUM","Maj '1","Maj '2","Maj '3","Maj '4","Maj '5","Maj '6","Maj '7","Maj '8","Maj '9","Maj '10","SUM","Juni '1","Juni '2","Juni '3","Juni '4","Juni '5","Juni '6","Juni '7","Juni '8","Juni '9","Juni '10","SUM","Juli '1","Juli '2","Juli '3","Juli '4","Juli '5","Juli '6","Juli '7","Juli '8","Juli '9","Juli '10","SUM","August '1","August '2","August '3","August '4","August '5","August '6","August '7","August '8","August '9","August '10","SUM","September '1","September '2","September '3","September '4","September '5","September '6","September '7","September '8","September '9","September '10","SUM","Oktober '1","Oktober '2","Oktober '3","Oktober '4","Oktober '5","Oktober '6","Oktober '7","Oktober '8","Oktober '9","Oktober '10","SUM","November '1","November '2","November '3","November '4","November '5","November '6","November '7","November '8","November '9","November '10","SUM","December '1","December '2","December '3","December '4","December '5","December '6","December '7","December '8","December '9","December '10","SUM",null,"Sum"]
[null,null,"danske bank\nAgerhaven","Nordea\nForbrugslån\nAllan",null,null,null,null,null,null,null,null,null,"danske bank\nAgerhaven","Nordea\nForbrugslån\nAllan",null,null,null,null,null,null,null,null,null,"danske bank\nAgerhaven","Nordea\nForbrugslån\nAllan",null,null,null,null,null,null,null,null,null,"danske bank\nAgerhaven","Nordea\nForbrugslån\nAllan",null,null,null,null,null,null,null,null,null,"danske bank\nAgerhaven","Nordea\nForbrugslån\nAllan"]
[1,null,null,null,null,null,null,null,null,null,null,null,{"$f":"SUM(C3:L3)","v":0},null,null,null,null,null,null,null,null,null,null,{"$f":"SUM(N3:W3)","v":0},null,null,null,null,null,null,null,null,null,null,{"$f":"SUM(Y3:AH3)","v":0},null,null,null,null,null,null,null,null,null,null,{"$f":"SUM(AJ3:AS3)","v":0},null,null,null,null,null,null,null,null,null,null,{"$f":"SUM(AU3:BD3)","v":0},null,null,null,null,null,null,null,null,null,null,{"$f":"SUM(BF3:BO3)","v":0},null,null,null,null,null,null,null,null,null,null,{"$f":"SUM(BQ3:BZ3)","v":0},null,null,null,null,null,null,null,null,null,null,{"$f":"SUM(CB3:CK3)","v":0},null,null,null,null,null,null,null,null,null,null,{"$f":"SUM(CM3:CV3)","v":0},null,null,null,null,null,null,null,null,null,null,{"$f":"SUM(CX3:DG3)","v":0},null,null,null,null,null,null,null,null,null,null,{"$f":"SUM(DI3:DR3)","v":0},null,null,null,null,null,null,null,null,null,null,{"$f":"SUM(DT3:EC3)","v":0},null,{"$f":"SUM(ED3,DS3,DH3,CW3,CL3,CA3,BP3,BE3,AT3,AI3,X3,M3)","v":0}]
[2,null,null,null,null,null,null,null,null,null,null,null,{"$f":"SUM(C4:L4)","v":0},null,null,null,null,null,null,null,null,null,null,{"$f":"SUM(N4:W4)","v":0},null,null,null,null,null,null,null,null,null,null,{"$f":"SUM(Y4:AH4)","v":0},null,null,null,null,null,null,null,null,null,null,{"$f":"SUM(AJ4:AS4)","v":0},null,null,null,null,null,null,null,null,null,null,{"$f":"SUM(AU4:BD4)","v":0},null,null,null,null,null,null,null,null,null,null,{"$f":"SUM(BF4:BO4)","v":0},null,null,null,null,null,null,null,null,null,null,{"$f":"SUM(BQ4:BZ4)","v":0},null,null,null,null,null,null,null,null,null,null,{"$f":"SUM(CB4:CK4)","v":0},null,null,null,null,null,null,null,null,null,null,{"$f":"SUM(CM4:CV4)","v":0},null,null,null,null,null,null,null,null,null,null,{"$f":"SUM(CX4:DG4)","v":0},null,null,null,null,null,null,null,null,null,null,{"$f":"SUM(DI4:DR4)","v":0},null,null,null,null,null,null,null,null,null,null,{"$f":"SUM(DT4:EC4)","v":0},null,{"$f":"SUM(ED4,DS4,DH4,CW4,CL4,CA4,BP4,BE4,AT4,AI4,X4,M4)","v":0}]
[3,null,null,null,null,null,null,null,null,null,null,null,0,null,null,null,null,null,null,null,null,null,null,0,null,null,null,null,null,null,null,null,null,null,0,null,null,null,null,null,null,null,null,null,null,0,null,null,null,null,null,null,null,null,null,null,0,null,null,null,null,null,null,null,null,null,null,0,null,null,null,null,null,null,null,null,null,null,0,null,null,null,null,null,null,null,null,null,null,0,null,null,null,null,null,null,null,null,null,null,0,null,null,null,null,null,null,null,null,null,null,0,null,null,null,null,null,null,null,null,null,null,0,null,null,null,null,null,null,null,null,null,null,0,null,0]
[4,null,null,null,null,null,null,null,null,null,null,null,0,null,null,null,null,null,null,null,null,null,null,0,null,null,null,null,null,null,null,null,null,null,0,null,null,null,null,null,null,null,null,null,null,0,null,null,null,null,null,null,null,null,null,null,0,null,null,null,null,null,null,null,null,null,null,0,null,null,null,null,null,null,null,null,null,null,0,null,null,null,null,null,null,null,null,null,null,0,null,null,null,null,null,null,null,null,null,null,0,null,null,null,null,null,null,null,null,null,null,0,null,null,null,null,null,null,null,null,null,null,0,null,null,null,null,null,null,null,null,null,null,0,null,0]
[5,null,null,null,null,null,null,null,null,null,null,null,0,null,null,null,null,null,null,null,null,null,null,0,null,null,null,null,null,null,null,null,null,null,0,null,null,null,null,null,null,null,null,null,null,0,null,null,null,null,null,null,null,null,null,null,0,null,null,null,null,null,null,null,null,null,null,0,null,null,null,null,null,null,null,null,null,null,0,null,null,null,null,null,null,null,null,null,null,0,null,null,null,null,null,null,null,null,null,null,0,null,null,null,null,null,null,null,null,null,null,0,null,null,null,null,null,null,null,null,null,null,0,null,null,null,null,null,null,null,null,null,null,0,null,0]
[6,null,null,null,null,null,null,null,null,null,null,null,0,null,null,null,null,null,null,null,null,null,null,0,null,null,null,null,null,null,null,null,null,null,0,null,null,null,null,null,null,null,null,null,null,0,null,null,null,null,null,null,null,null,null,null,0,null,null,null,null,null,null,null,null,null,null,0,null,null,null,null,null,null,null,null,null,null,0,null,null,null,null,null,null,null,null,null,null,0,null,null,null,null,null,null,null,null,null,null,0,null,null,null,null,null,null,null,null,null,null,0,null,null,null,null,null,null,null,null,null,null,0,null,null,null,null,null,null,null,null,null,null,0,null,0]
[7,null,null,null,null,null,null,null,null,null,null,null,0,null,null,null,null,null,null,null,null,null,null,0,null,null,null,null,null,null,null,null,null,null,0,null,null,null,null,null,null,null,null,null,null,0,null,null,null,null,null,null,null,null,null,null,0,null,null,null,null,null,null,null,null,null,null,0,null,null,null,null,null,null,null,null,null,null,0,null,null,null,null,null,null,null,null,null,null,0,null,null,null,null,null,null,null,null,null,null,0,null,null,null,null,null,null,null,null,null,null,0,null,null,null,null,null,null,null,null,null,null,0,null,null,null,null,null,null,null,null,null,null,0,null,0]
[8,null,null,null,null,null,null,null,null,null,null,null,0,null,null,null,null,null,null,null,null,null,null,0,null,null,null,null,null,null,null,null,null,null,0,null,null,null,null,null,null,null,null,null,null,0,null,null,null,null,null,null,null,null,null,null,0,null,null,null,null,null,null,null,null,null,null,0,null,null,null,null,null,null,null,null,null,null,0,null,null,null,null,null,null,null,null,null,null,0,null,null,null,null,null,null,null,null,null,null,0,null,null,null,null,null,null,null,null,null,null,0,null,null,null,null,null,null,null,null,null,null,0,null,null,null,null,null,null,null,null,null,null,0,null,0]
[9,null,null,null,null,null,null,null,null,null,null,null,0,null,null,null,null,null,null,null,null,null,null,0,null,null,null,null,null,null,null,null,null,null,0,null,null,null,null,null,null,null,null,null,null,0,null,null,null,null,null,null,null,null,null,null,0,null,null,null,null,null,null,null,null,null,null,0,null,null,null,null,null,null,null,null,null,null,0,null,null,null,null,null,null,null,null,null,null,0,null,null,null,null,null,null,null,null,null,null,0,null,null,null,null,null,null,null,null,null,null,0,null,null,null,null,null,null,null,null,null,null,0,null,null,null,null,null,null,null,null,null,null,0,null,0]
[10,null,null,null,null,null,null,null,null,null,null,null,0,null,null,null,null,null,null,null,null,null,null,0,null,null,null,null,null,null,null,null,null,null,0,null,null,null,null,null,null,null,null,null,null,0,null,null,null,null,null,null,null,null,null,null,0,null,null,null,null,null,null,null,null,null,null,0,null,null,null,null,null,null,null,null,null,null,0,null,null,null,null,null,null,null,null,null,null,0,null,null,null,null,null,null,null,null,null,null,0,null,null,null,null,null,null,null,null,null,null,0,null,null,null,null,null,null,null,null,null,null,0,null,null,null,null,null,null,null,null,null,null,0,null,0]
[11,null,null,null,null,null,null,null,null,null,null,null,0,null,null,null,null,null,null,null,null,null,null,0,null,null,null,null,null,null,null,null,null,null,0,null,null,null,null,null,null,null,null,null,null,0,null,null,null,null,null,null,null,null,null,null,0,null,null,null,null,null,null,null,null,null,null,0,null,null,null,null,null,null,null,null,null,null,0,null,null,null,null,null,null,null,null,null,null,0,null,null,null,null,null,null,null,null,null,null,0,null,null,null,null,null,null,null,null,null,null,0,null,null,null,null,null,null,null,null,null,null,0,null,null,null,null,null,null,null,null,null,null,0,null,0]
[12,null,null,null,null,null,null,null,null,null,null,null,0,null,null,null,null,null,null,null,null,null,null,0,null,null,null,null,null,null,null,null,null,null,0,null,null,null,null,null,null,null,null,null,null,0,null,null,null,null,null,null,null,null,null,null,0,null,null,null,null,null,null,null,null,null,null,0,null,null,null,null,null,null,null,null,null,null,0,null,null,null,null,null,null,null,null,null,null,0,null,null,null,null,null,null,null,null,null,null,0,null,null,null,null,null,null,null,null,null,null,0,null,null,null,null,null,null,null,null,null,null,0,null,null,null,null,null,null,null,null,null,null,0,null,0]
[13,null,null,null,null,null,null,null,null,null,null,null,0,null,null,null,null,null,null,null,null,null,null,0,null,null,null,null,null,null,null,null,null,null,0,null,null,null,null,null,null,null,null,null,null,0,null,null,null,null,null,null,null,null,null,null,0,null,null,null,null,null,null,null,null,null,null,0,null,null,null,null,null,null,null,null,null,null,0,null,null,null,null,null,null,null,null,null,null,0,null,null,null,null,null,null,null,null,null,null,0,null,null,null,null,null,null,null,null,null,null,0,null,null,null,null,null,null,null,null,null,null,0,null,null,null,null,null,null,null,null,null,null,0,null,0]
[14,null,null,null,null,null,null,null,null,null,null,null,0,null,null,null,null,null,null,null,null,null,null,0,null,null,null,null,null,null,null,null,null,null,0,null,null,null,null,null,null,null,null,null,null,0,null,null,null,null,null,null,null,null,null,null,0,null,null,null,null,null,null,null,null,null,null,0,null,null,null,null,null,null,null,null,null,null,0,null,null,null,null,null,null,null,null,null,null,0,null,null,null,null,null,null,null,null,null,null,0,null,null,null,null,null,null,null,null,null,null,0,null,null,null,null,null,null,null,null,null,null,0,null,null,null,null,null,null,null,null,null,null,0,null,0]
[15,null,null,null,null,null,null,null,null,null,null,null,0,null,null,null,null,null,null,null,null,null,null,0,null,null,null,null,null,null,null,null,null,null,0,null,null,null,null,null,null,null,null,null,null,0,null,null,null,null,null,null,null,null,null,null,0,null,null,null,null,null,null,null,null,null,null,0,null,null,null,null,null,null,null,null,null,null,0,null,null,null,null,null,null,null,null,null,null,0,null,null,null,null,null,null,null,null,null,null,0,null,null,null,null,null,null,null,null,null,null,0,null,null,null,null,null,null,null,null,null,null,0,null,null,null,null,null,null,null,null,null,null,0,null,0]
[16,null,null,null,null,null,null,null,null,null,null,null,0,null,null,null,null,null,null,null,null,null,null,0,null,null,null,null,null,null,null,null,null,null,0,null,null,null,null,null,null,null,null,null,null,0,null,null,null,null,null,null,null,null,null,null,0,null,null,null,null,null,null,null,null,null,null,0,null,null,null,null,null,null,null,null,null,null,0,null,null,null,null,null,null,null,null,null,null,0,null,null,null,null,null,null,null,null,null,null,0,null,null,null,null,null,null,null,null,null,null,0,null,null,null,null,null,null,null,null,null,null,0,null,null,null,null,null,null,null,null,null,null,0,null,0]
[17,null,null,null,null,null,null,null,null,null,null,null,0,null,null,null,null,null,null,null,null,null,null,0,null,null,null,null,null,null,null,null,null,null,0,null,null,null,null,null,null,null,null,null,null,0,null,null,null,null,null,null,null,null,null,null,0,null,null,null,null,null,null,null,null,null,null,0,null,null,null,null,null,null,null,null,null,null,0,null,null,null,null,null,null,null,null,null,null,0,null,null,null,null,null,null,null,null,null,null,0,null,null,null,null,null,null,null,null,null,null,0,null,null,null,null,null,null,null,null,null,null,0,null,null,null,null,null,null,null,null,null,null,0,null,0]
[18,null,null,null,null,null,null,null,null,null,null,null,0,null,null,null,null,null,null,null,null,null,null,0,null,null,null,null,null,null,null,null,null,null,0,null,null,null,null,null,null,null,null,null,null,0,null,null,null,null,null,null,null,null,null,null,0,null,null,null,null,null,null,null,null,null,null,0,null,null,null,null,null,null,null,null,null,null,0,null,null,null,null,null,null,null,null,null,null,0,null,null,null,null,null,null,null,null,null,null,0,null,null,null,null,null,null,null,null,null,null,0,null,null,null,null,null,null,null,null,null,null,0,null,null,null,null,null,null,null,null,null,null,0,null,0]
[19,null,null,null,null,null,null,null,null,null,null,null,0,null,null,null,null,null,null,null,null,null,null,0,null,null,null,null,null,null,null,null,null,null,0,null,null,null,null,null,null,null,null,null,null,0,null,null,null,null,null,null,null,null,null,null,0,null,null,null,null,null,null,null,null,null,null,0,null,null,null,null,null,null,null,null,null,null,0,null,null,null,null,null,null,null,null,null,null,0,null,null,null,null,null,null,null,null,null,null,0,null,null,null,null,null,null,null,null,null,null,0,null,null,null,null,null,null,null,null,null,null,0,null,null,null,null,null,null,null,null,null,null,0,null,0]
[20,null,null,null,null,null,null,null,null,null,null,null,0,null,null,null,null,null,null,null,null,null,null,0,null,null,null,null,null,null,null,null,null,null,0,null,null,null,null,null,null,null,null,null,null,0,null,null,null,null,null,null,null,null,null,null,0,null,null,null,null,null,null,null,null,null,null,0,null,null,null,null,null,null,null,null,null,null,0,null,null,null,null,null,null,null,null,null,null,0,null,null,null,null,null,null,null,null,null,null,0,null,null,null,null,null,null,null,null,null,null,0,null,null,null,null,null,null,null,null,null,null,0,null,null,null,null,null,null,null,null,null,null,0,null,0]
[21,null,null,null,null,null,null,null,null,null,null,null,0,null,null,null,null,null,null,null,null,null,null,0,null,null,null,null,null,null,null,null,null,null,0,null,null,null,null,null,null,null,null,null,null,0,null,null,null,null,null,null,null,null,null,null,0,null,null,null,null,null,null,null,null,null,null,0,null,null,null,null,null,null,null,null,null,null,0,null,null,null,null,null,null,null,null,null,null,0,null,null,null,null,null,null,null,null,null,null,0,null,null,null,null,null,null,null,null,null,null,0,null,null,null,null,null,null,null,null,null,null,0,null,null,null,null,null,null,null,null,null,null,0,null,0]
[22,null,null,null,null,null,null,null,null,null,null,null,0,null,null,null,null,null,null,null,null,null,null,0,null,null,null,null,null,null,null,null,null,null,0,null,null,null,null,null,null,null,null,null,null,0,null,null,null,null,null,null,null,null,null,null,0,null,null,null,null,null,null,null,null,null,null,0,null,null,null,null,null,null,null,null,null,null,0,null,null,null,null,null,null,null,null,null,null,0,null,null,null,null,null,null,null,null,null,null,0,null,null,null,null,null,null,null,null,null,null,0,null,null,null,null,null,null,null,null,null,null,0,null,null,null,null,null,null,null,null,null,null,0,null,0]
[23,null,null,null,null,null,null,null,null,null,null,null,0,null,null,null,null,null,null,null,null,null,null,0,null,null,null,null,null,null,null,null,null,null,0,null,null,null,null,null,null,null,null,null,null,0,null,null,null,null,null,null,null,null,null,null,0,null,null,null,null,null,null,null,null,null,null,0,null,null,null,null,null,null,null,null,null,null,0,null,null,null,null,null,null,null,null,null,null,0,null,null,null,null,null,null,null,null,null,null,0,null,null,null,null,null,null,null,null,null,null,0,null,null,null,null,null,null,null,null,null,null,0,null,null,null,null,null,null,null,null,null,null,0,null,0]
[24,null,null,null,null,null,null,null,null,null,null,null,0,null,null,null,null,null,null,null,null,null,null,0,null,null,null,null,null,null,null,null,null,null,0,null,null,null,null,null,null,null,null,null,null,0,null,null,null,null,null,null,null,null,null,null,0,null,null,null,null,null,null,null,null,null,null,0,null,null,null,null,null,null,null,null,null,null,0,null,null,null,null,null,null,null,null,null,null,0,null,null,null,null,null,null,null,null,null,null,0,null,null,null,null,null,null,null,null,null,null,0,null,null,null,null,null,null,null,null,null,null,0,null,null,null,null,null,null,null,null,null,null,0,null,0]
[25,null,null,null,null,null,null,null,null,null,null,null,0,null,null,null,null,null,null,null,null,null,null,0,null,null,null,null,null,null,null,null,null,null,0,null,null,null,null,null,null,null,null,null,null,0,null,null,null,null,null,null,null,null,null,null,0,null,null,null,null,null,null,null,null,null,null,0,null,null,null,null,null,null,null,null,null,null,0,null,null,null,null,null,null,null,null,null,null,0,null,null,null,null,null,null,null,null,null,null,0,null,null,null,null,null,null,null,null,null,null,0,null,null,null,null,null,null,null,null,null,null,0,null,null,null,null,null,null,null,null,null,null,0,null,0]
[26,null,null,null,null,null,null,null,null,null,null,null,0,null,null,null,null,null,null,null,null,null,null,0,null,null,null,null,null,null,null,null,null,null,0,null,null,null,null,null,null,null,null,null,null,0,null,null,null,null,null,null,null,null,null,null,0,null,null,null,null,null,null,null,null,null,null,0,null,null,null,null,null,null,null,null,null,null,0,null,null,null,null,null,null,null,null,null,null,0,null,null,null,null,null,null,null,null,null,null,0,null,null,null,null,null,null,null,null,null,null,0,null,null,null,null,null,null,null,null,null,null,0,null,null,null,null,null,null,null,null,null,null,0,null,0]
[27,null,null,null,null,null,null,null,null,null,null,null,0,null,null,null,null,null,null,null,null,null,null,0,null,null,null,null,null,null,null,null,null,null,0,null,null,null,null,null,null,null,null,null,null,0,null,null,null,null,null,null,null,null,null,null,0,null,null,null,null,null,null,null,null,null,null,0,null,null,null,null,null,null,null,null,null,null,0,null,null,null,null,null,null,null,null,null,null,0,null,null,null,null,null,null,null,null,null,null,0,null,null,null,null,null,null,null,null,null,null,0,null,null,null,null,null,null,null,null,null,null,0,null,null,null,null,null,null,null,null,null,null,0,null,0]
[28,null,null,null,null,null,null,null,null,null,null,null,0,null,null,null,null,null,null,null,null,null,null,0,null,null,null,null,null,null,null,null,null,null,0,null,null,null,null,null,null,null,null,null,null,0,null,null,null,null,null,null,null,null,null,null,0,null,null,null,null,null,null,null,null,null,null,0,null,null,null,null,null,null,null,null,null,null,0,null,null,null,null,null,null,null,null,null,null,0,null,null,null,null,null,null,null,null,null,null,0,null,null,null,null,null,null,null,null,null,null,0,null,null,null,null,null,null,null,null,null,null,0,null,null,null,null,null,null,null,null,null,null,0,null,0]
[29,null,null,null,null,null,null,null,null,null,null,null,0,null,null,null,null,null,null,null,null,null,null,0,null,null,null,null,null,null,null,null,null,null,0,null,null,null,null,null,null,null,null,null,null,0,null,null,null,null,null,null,null,null,null,null,0,null,null,null,null,null,null,null,null,null,null,0,null,null,null,null,null,null,null,null,null,null,0,null,null,null,null,null,null,null,null,null,null,0,null,null,null,null,null,null,null,null,null,null,0,null,null,null,null,null,null,null,null,null,null,0,null,null,null,null,null,null,null,null,null,null,0,null,null,null,null,null,null,null,null,null,null,0,null,0]
[30,null,null,null,null,null,null,null,null,null,null,null,0,null,null,null,null,null,null,null,null,null,null,0,null,null,null,null,null,null,null,null,null,null,0,-2100,null,null,null,null,null,null,null,null,null,-2100,null,null,null,null,null,null,null,null,null,null,0,null,null,null,null,null,null,null,null,null,null,0,null,null,null,null,null,null,null,null,null,null,0,null,null,null,null,null,null,null,null,null,null,0,null,null,null,null,null,null,null,null,null,null,0,null,null,null,null,null,null,null,null,null,null,0,null,null,null,null,null,null,null,null,null,null,0,null,null,null,null,null,null,null,null,null,null,0,null,-2100]
[31,null,null,null,null,null,null,null,null,null,null,null,0,null,null,null,null,null,null,null,null,null,null,0,null,null,null,null,null,null,null,null,null,null,0,null,null,null,null,null,null,null,null,null,null,0,null,null,null,null,null,null,null,null,null,null,0,null,null,null,null,null,null,null,null,null,null,0,null,null,null,null,null,null,null,null,null,null,0,null,null,null,null,null,null,null,null,null,null,0,null,null,null,null,null,null,null,null,null,null,0,null,null,null,null,null,null,null,null,null,null,0,null,null,null,null,null,null,null,null,null,null,0,null,null,null,null,null,null,null,null,null,null,0,null,0]
[]
["Sum",null,{"$f":"SUM(C3:C33)","v":0},{"$f":"SUM(D3:D33)","v":0},0,0,0,0,0,0,0,0,{"$f":"SUM(C35:L35)","v":0},{"$f":"SUM(N3:N33)","v":0},0,0,0,0,0,0,0,0,0,{"$f":"SUM(N35:W35)","v":0},0,0,0,0,0,0,0,0,0,0,{"$f":"SUM(Y35:AH35)","v":0},-2100,0,0,0,0,0,0,0,0,0,{"$f":"SUM(AJ35:AS35)","v":-2100},0,0,0,0,0,0,0,0,0,0,{"$f":"SUM(AU35:BD35)","v":0},0,0,0,0,0,0,0,0,0,0,{"$f":"SUM(BF35:BO35)","v":0},0,0,0,0,0,0,0,0,0,0,{"$f":"SUM(BQ35:BZ35)","v":0},0,0,0,0,0,0,0,0,0,0,{"$f":"SUM(CB35:CK35)","v":0},0,0,0,0,0,0,0,0,0,0,{"$f":"SUM(CM35:CV35)","v":0},0,0,0,0,0,0,0,0,0,0,{"$f":"SUM(CX35:DG35)","v":0},0,0,0,0,0,0,0,0,0,0,{"$f":"SUM(DI35:DR35)","v":0},0,0,{"$f":"SUM(DV3:DV33)","v":0},0,0,0,0,0,0,0,{"$f":"SUM(DT35:EC35)","v":0},null,{"$f":"SUM(EF3:EF34)","v":-2100}]
[]
[]
[null,null,"Januar","Februar","Marts","April","Maj","Juni","Juli","August","September","Oktober","November","December"]
[null,null,{"$f":"ABS(M35)","v":0},{"$f":"ABS(X35)","v":0},{"$f":"ABS(AI35)","v":0},{"$f":"ABS(AT35)","v":2100},{"$f":"ABS(BE35)","v":0},{"$f":"ABS(BP35)","v":0},{"$f":"ABS(CA35)","v":0},{"$f":"ABS(CL35)","v":0},{"$f":"ABS(CW35)","v":0},{"$f":"ABS(DH35)","v":0},{"$f":"ABS(DS35)","v":0},{"$f":"ABS(ED35)","v":0}]

{"sheet":"Fagforening-a_kasse-forsikringe","index":11,"n_rows":39,"n_cols":136,"rows_kept":39,"cut":false,"hidden":true,"merged":[]}
["Home",null,"Januar '1","Januar '2","Januar '3","Januar '4","Januar '5","Januar '6","Januar '7","Januar '8","Januar '9","Januar '10","SUM","Februar '1","Februar '2","Februar '3","Februar '4","Februar '5","Februar '6","Februar '7","Februar '8","Februar '9","Februar '10","SUM","Marts '1","Marts '2","Marts '3","Marts '4","Marts '5","Marts '6","Marts '7","Marts '8","Marts '9","Marts '10","SUM","April '1","April '2","April '3","April '4","April '5","April '6","April '7","April '8","April '9","April '10","SUM","Maj '1","Maj '2","Maj '3","Maj '4","Maj '5","Maj '6","Maj '7","Maj '8","Maj '9","Maj '10","SUM","Juni '1","Juni '2","Juni '3","Juni '4","Juni '5","Juni '6","Juni '7","Juni '8","Juni '9","Juni '10","SUM","Juli '1","Juli '2","Juli '3","Juli '4","Juli '5","Juli '6","Juli '7","Juli '8","Juli '9","Juli '10","SUM","August '1","August '2","August '3","August '4","August '5","August '6","August '7","August '8","August '9","August '10","SUM","September '1","September '2","September '3","September '4","September '5","September '6","September '7","September '8","September '9","September '10","SUM","Oktober '1","Oktober '2","Oktober '3","Oktober '4","Oktober '5","Oktober '6","Oktober '7","Oktober '8","Oktober '9","Oktober '10","SUM","November '1","November '2","November '3","November '4","November '5","November '6","November '7","November '8","November '9","November '10","SUM","December '1","December '2","December '3","December '4","December '5","December '6","December '7","December '8","December '9","December '10","SUM",null,"Sum"]
[null,null,"A-kasse Karina",null,null,null,null,null,null,null,null,null,null,"A-kasse Karina",null,null,null,null,null,null,null,null,null,null,"A-kasse Karina",null,null,null,null,null,null,null,null,null,null,"A-kasse Karina","Tryk forsikring\nLukning"]
[1,null,null,null,null,null,null,null,null,null,null,null,{"$f":"SUM(C3:L3)","v":0},null,null,null,null,null,null,null,null,null,null,{"$f":"SUM(N3:W3)","v":0},null,null,null,null,null,null,null,null,null,null,{"$f":"SUM(Y3:AH3)","v":0},null,null,null,null,null,null,null,null,null,null,{"$f":"SUM(AJ3:AS3)","v":0},null,null,null,null,null,null,null,null,null,null,{"$f":"SUM(AU3:BD3)","v":0},null,null,null,null,null,null,null,null,null,null,{"$f":"SUM(BF3:BO3)","v":0},null,null,null,null,null,null,null,null,null,null,{"$f":"SUM(BQ3:BZ3)","v":0},null,null,null,null,null,null,null,null,null,null,{"$f":"SUM(CB3:CK3)","v":0},null,null,null,null,null,null,null,null,null,null,{"$f":"SUM(CM3:CV3)","v":0},null,null,null,null,null,null,null,null,null,null,{"$f":"SUM(CX3:DG3)","v":0},null,null,null,null,null,null,null,null,null,null,{"$f":"SUM(DI3:DR3)","v":0},null,null,null,null,null,null,null,null,null,null,{"$f":"SUM(DT3:EC3)","v":0},null,{"$f":"SUM(ED3,DS3,DH3,CW3,CL3,CA3,BP3,BE3,AT3,AI3,X3,M3)","v":0}]
[2,null,null,null,null,null,null,null,null,null,null,null,{"$f":"SUM(C4:L4)","v":0},null,null,null,null,null,null,null,null,null,null,{"$f":"SUM(N4:W4)","v":0},null,null,null,null,null,null,null,null,null,null,{"$f":"SUM(Y4:AH4)","v":0},null,null,null,null,null,null,null,null,null,null,{"$f":"SUM(AJ4:AS4)","v":0},null,null,null,null,null,null,null,null,null,null,{"$f":"SUM(AU4:BD4)","v":0},null,null,null,null,null,null,null,null,null,null,{"$f":"SUM(BF4:BO4)","v":0},null,null,null,null,null,null,null,null,null,null,{"$f":"SUM(BQ4:BZ4)","v":0},null,null,null,null,null,null,null,null,null,null,{"$f":"SUM(CB4:CK4)","v":0},null,null,null,null,null,null,null,null,null,null,{"$f":"SUM(CM4:CV4)","v":0},null,null,null,null,null,null,null,null,null,null,{"$f":"SUM(CX4:DG4)","v":0},null,null,null,null,null,null,null,null,null,null,{"$f":"SUM(DI4:DR4)","v":0},null,null,null,null,null,null,null,null,null,null,{"$f":"SUM(DT4:EC4)","v":0},null,{"$f":"SUM(ED4,DS4,DH4,CW4,CL4,CA4,BP4,BE4,AT4,AI4,X4,M4)","v":0}]
[3,null,null,null,null,null,null,null,null,null,null,null,0,null,null,null,null,null,null,null,null,null,null,0,null,null,null,null,null,null,null,null,null,null,0,null,null,null,null,null,null,null,null,null,null,0,null,null,null,null,null,null,null,null,null,null,0,null,null,null,null,null,null,null,null,null,null,0,null,null,null,null,null,null,null,null,null,null,0,null,null,null,null,null,null,null,null,null,null,0,null,null,null,null,null,null,null,null,null,null,0,null,null,null,null,null,null,null,null,null,null,0,null,null,null,null,null,null,null,null,null,null,0,null,null,null,null,null,null,null,null,null,null,0,null,0]
[4,null,null,null,null,null,null,null,null,null,null,null,0,null,null,null,null,null,null,null,null,null,null,0,null,null,null,null,null,null,null,null,null,null,0,null,null,null,null,null,null,null,null,null,null,0,null,null,null,null,null,null,null,null,null,null,0,null,null,null,null,null,null,null,null,null,null,0,null,null,null,null,null,null,null,null,null,null,0,null,null,null,null,null,null,null,null,null,null,0,null,null,null,null,null,null,null,null,null,null,0,null,null,null,null,null,null,null,null,null,null,0,null,null,null,null,null,null,null,null,null,null,0,null,null,null,null,null,null,null,null,null,null,0,null,0]
[5,null,null,null,null,null,null,null,null,null,null,null,0,null,null,null,null,null,null,null,null,null,null,0,null,null,null,null,null,null,null,null,null,null,0,null,null,null,null,null,null,null,null,null,null,0,null,null,null,null,null,null,null,null,null,null,0,null,null,null,null,null,null,null,null,null,null,0,null,null,null,null,null,null,null,null,null,null,0,null,null,null,null,null,null,null,null,null,null,0,null,null,null,null,null,null,null,null,null,null,0,null,null,null,null,null,null,null,null,null,null,0,null,null,null,null,null,null,null,null,null,null,0,null,null,null,null,null,null,null,null,null,null,0,null,0]
[6,null,null,null,null,null,null,null,null,null,null,null,0,null,null,null,null,null,null,null,null,null,null,0,null,null,null,null,null,null,null,null,null,null,0,null,null,null,null,null,null,null,null,null,null,0,null,null,null,null,null,null,null,null,null,null,0,null,null,null,null,null,null,null,null,null,null,0,null,null,null,null,null,null,null,null,null,null,0,null,null,null,null,null,null,null,null,null,null,0,null,null,null,null,null,null,null,null,null,null,0,null,null,null,null,null,null,null,null,null,null,0,null,null,null,null,null,null,null,null,null,null,0,null,null,null,null,null,null,null,null,null,null,0,null,0]
[7,null,null,null,null,null,null,null,null,null,null,null,0,null,null,null,null,null,null,null,null,null,null,0,null,null,null,null,null,null,null,null,null,null,0,null,null,null,null,null,null,null,null,null,null,0,null,null,null,null,null,null,null,null,null,null,0,null,null,null,null,null,null,null,null,null,null,0,null,null,null,null,null,null,null,null,null,null,0,null,null,null,null,null,null,null,null,null,null,0,null,null,null,null,null,null,null,null,null,null,0,null,null,null,null,null,null,null,null,null,null,0,null,null,null,null,null,null,null,null,null,null,0,null,null,null,null,null,null,null,null,null,null,0,null,0]
[8,null,null,null,null,null,null,null,null,null,null,null,0,null,null,null,null,null,null,null,null,null,null,0,null,null,null,null,null,null,null,null,null,null,0,null,null,null,null,null,null,null,null,null,null,0,null,null,null,null,null,null,null,null,null,null,0,null,null,null,null,null,null,null,null,null,null,0,null,null,null,null,null,null,null,null,null,null,0,null,null,null,null,null,null,null,null,null,null,0,null,null,null,null,null,null,null,null,null,null,0,null,null,null,null,null,null,null,null,null,null,0,null,null,null,null,null,null,null,null,null,null,0,null,null,null,null,null,null,null,null,null,null,0,null,0]
[9,null,null,null,null,null,null,null,null,null,null,null,0,null,null,null,null,null,null,null,null,null,null,0,null,null,null,null,null,null,null,null,null,null,0,null,null,null,null,null,null,null,null,null,null,0,null,null,null,null,null,null,null,null,null,null,0,null,null,null,null,null,null,null,null,null,null,0,null,null,null,null,null,null,null,null,null,null,0,null,null,null,null,null,null,null,null,null,null,0,null,null,null,null,null,null,null,null,null,null,0,null,null,null,null,null,null,null,null,null,null,0,null,null,null,null,null,null,null,null,null,null,0,null,null,null,null,null,null,null,null,null,null,0,null,0]
[10,null,null,null,null,null,null,null,null,null,null,null,0,null,null,null,null,null,null,null,null,null,null,0,null,null,null,null,null,null,null,null,null,null,0,null,null,null,null,null,null,null,null,null,null,0,null,null,null,null,null,null,null,null,null,null,0,null,null,null,null,null,null,null,null,null,null,0,null,null,null,null,null,null,null,null,null,null,0,null,null,null,null,null,null,null,null,null,null,0,null,null,null,null,null,null,null,null,null,null,0,null,null,null,null,null,null,null,null,null,null,0,null,null,null,null,null,null,null,null,null,null,0,null,null,null,null,null,null,null,null,null,null,0,null,0]
[11,null,null,null,null,null,null,null,null,null,null,null,0,null,null,null,null,null,null,null,null,null,null,0,null,null,null,null,null,null,null,null,null,null,0,null,null,null,null,null,null,null,null,null,null,0,null,null,null,null,null,null,null,null,null,null,0,null,null,null,null,null,null,null,null,null,null,0,null,null,null,null,null,null,null,null,null,null,0,null,null,null,null,null,null,null,null,null,null,0,null,null,null,null,null,null,null,null,null,null,0,null,null,null,null,null,null,null,null,null,null,0,null,null,null,null,null,null,null,null,null,null,0,null,null,null,null,null,null,null,null,null,null,0,null,0]
[12,null,null,null,null,null,null,null,null,null,null,null,0,null,null,null,null,null,null,null,null,null,null,0,null,null,null,null,null,null,null,null,null,null,0,null,null,null,null,null,null,null,null,null,null,0,null,null,null,null,null,null,null,null,null,null,0,null,null,null,null,null,null,null,null,null,null,0,null,null,null,null,null,null,null,null,null,null,0,null,null,null,null,null,null,null,null,null,null,0,null,null,null,null,null,null,null,null,null,null,0,null,null,null,null,null,null,null,null,null,null,0,null,null,null,null,null,null,null,null,null,null,0,null,null,null,null,null,null,null,null,null,null,0,null,0]
[13,null,null,null,null,null,null,null,null,null,null,null,0,null,null,null,null,null,null,null,null,null,null,0,null,null,null,null,null,null,null,null,null,null,0,null,null,null,null,null,null,null,null,null,null,0,null,null,null,null,null,null,null,null,null,null,0,null,null,null,null,null,null,null,null,null,null,0,null,null,null,null,null,null,null,null,null,null,0,null,null,null,null,null,null,null,null,null,null,0,null,null,null,null,null,null,null,null,null,null,0,null,null,null,null,null,null,null,null,null,null,0,null,null,null,null,null,null,null,null,null,null,0,null,null,null,null,null,null,null,null,null,null,0,null,0]
[14,null,null,null,null,null,null,null,null,null,null,null,0,null,null,null,null,null,null,null,null,null,null,0,null,null,null,null,null,null,null,null,null,null,0,null,null,null,null,null,null,null,null,null,null,0,null,null,null,null,null,null,null,null,null,null,0,null,null,null,null,null,null,null,null,null,null,0,null,null,null,null,null,null,null,null,null,null,0,null,null,null,null,null,null,null,null,null,null,0,null,null,null,null,null,null,null,null,null,null,0,null,null,null,null,null,null,null,null,null,null,0,null,null,null,null,null,null,null,null,null,null,0,null,null,null,null,null,null,null,null,null,null,0,null,0]
[15,null,null,null,null,null,null,null,null,null,null,null,0,null,null,null,null,null,null,null,null,null,null,0,null,null,null,null,null,null,null,null,null,null,0,null,null,null,null,null,null,null,null,null,null,0,null,null,null,null,null,null,null,null,null,null,0,null,null,null,null,null,null,null,null,null,null,0,null,null,null,null,null,null,null,null,null,null,0,null,null,null,null,null,null,null,null,null,null,0,null,null,null,null,null,null,null,null,null,null,0,null,null,null,null,null,null,null,null,null,null,0,null,null,null,null,null,null,null,null,null,null,0,null,null,null,null,null,null,null,null,null,null,0,null,0]
[16,null,null,null,null,null,null,null,null,null,null,null,0,null,null,null,null,null,null,null,null,null,null,0,null,null,null,null,null,null,null,null,null,null,0,null,null,null,null,null,null,null,null,null,null,0,null,null,null,null,null,null,null,null,null,null,0,null,null,null,null,null,null,null,null,null,null,0,null,null,null,null,null,null,null,null,null,null,0,null,null,null,null,null,null,null,null,null,null,0,null,null,null,null,null,null,null,null,null,null,0,null,null,null,null,null,null,null,null,null,null,0,null,null,null,null,null,null,null,null,null,null,0,null,null,null,null,null,null,null,null,null,null,0,null,0]
[17,null,null,null,null,null,null,null,null,null,null,null,0,null,null,null,null,null,null,null,null,null,null,0,null,null,null,null,null,null,null,null,null,null,0,null,null,null,null,null,null,null,null,null,null,0,null,null,null,null,null,null,null,null,null,null,0,null,null,null,null,null,null,null,null,null,null,0,null,null,null,null,null,null,null,null,null,null,0,null,null,null,null,null,null,null,null,null,null,0,null,null,null,null,null,null,null,null,null,null,0,null,null,null,null,null,null,null,null,null,null,0,null,null,null,null,null,null,null,null,null,null,0,null,null,null,null,null,null,null,null,null,null,0,null,0]
[18,null,null,null,null,null,null,null,null,null,null,null,0,null,null,null,null,null,null,null,null,null,null,0,null,null,null,null,null,null,null,null,null,null,0,null,null,null,null,null,null,null,null,null,null,0,null,null,null,null,null,null,null,null,null,null,0,null,null,null,null,null,null,null,null,null,null,0,null,null,null,null,null,null,null,null,null,null,0,null,null,null,null,null,null,null,null,null,null,0,null,null,null,null,null,null,null,null,null,null,0,null,null,null,null,null,null,null,null,null,null,0,null,null,null,null,null,null,null,null,null,null,0,null,null,null,null,null,null,null,null,null,null,0,null,0]
[19,null,null,null,null,null,null,null,null,null,null,null,0,null,null,null,null,null,null,null,null,null,null,0,null,null,null,null,null,null,null,null,null,null,0,null,null,null,null,null,null,null,null,null,null,0,null,null,null,null,null,null,null,null,null,null,0,null,null,null,null,null,null,null,null,null,null,0,null,null,null,null,null,null,null,null,null,null,0,null,null,null,null,null,null,null,null,null,null,0,null,null,null,null,null,null,null,null,null,null,0,null,null,null,null,null,null,null,null,null,null,0,null,null,null,null,null,null,null,null,null,null,0,null,null,null,null,null,null,null,null,null,null,0,null,0]
[20,null,null,null,null,null,null,null,null,null,null,null,0,null,null,null,null,null,null,null,null,null,null,0,null,null,null,null,null,null,null,null,null,null,0,null,null,null,null,null,null,null,null,null,null,0,null,null,null,null,null,null,null,null,null,null,0,null,null,null,null,null,null,null,null,null,null,0,null,null,null,null,null,null,null,null,null,null,0,null,null,null,null,null,null,null,null,null,null,0,null,null,null,null,null,null,null,null,null,null,0,null,null,null,null,null,null,null,null,null,null,0,null,null,null,null,null,null,null,null,null,null,0,null,null,null,null,null,null,null,null,null,null,0,null,0]
[21,null,null,null,null,null,null,null,null,null,null,null,0,null,null,null,null,null,null,null,null,null,null,0,null,null,null,null,null,null,null,null,null,null,0,null,null,null,null,null,null,null,null,null,null,0,null,null,null,null,null,null,null,null,null,null,0,null,null,null,null,null,null,null,null,null,null,0,null,null,null,null,null,null,null,null,null,null,0,null,null,null,null,null,null,null,null,null,null,0,null,null,null,null,null,null,null,null,null,null,0,null,null,null,null,null,null,null,null,null,null,0,null,null,null,null,null,null,null,null,null,null,0,null,null,null,null,null,null,null,null,null,null,0,null,0]
[22,null,null,null,null,null,null,null,null,null,null,null,0,null,null,null,null,null,null,null,null,null,null,0,null,null,null,null,null,null,null,null,null,null,0,null,null,null,null,null,null,null,null,null,null,0,null,null,null,null,null,null,null,null,null,null,0,null,null,null,null,null,null,null,null,null,null,0,null,null,null,null,null,null,null,null,null,null,0,null,null,null,null,null,null,null,null,null,null,0,null,null,null,null,null,null,null,null,null,null,0,null,null,null,null,null,null,null,null,null,null,0,null,null,null,null,null,null,null,null,null,null,0,null,null,null,null,null,null,null,null,null,null,0,null,0]
[23,null,null,null,null,null,null,null,null,null,null,null,0,null,null,null,null,null,null,null,null,null,null,0,null,null,null,null,null,null,null,null,null,null,0,null,null,null,null,null,null,null,null,null,null,0,null,null,null,null,null,null,null,null,null,null,0,null,null,null,null,null,null,null,null,null,null,0,null,null,null,null,null,null,null,null,null,null,0,null,null,null,null,null,null,null,null,null,null,0,null,null,null,null,null,null,null,null,null,null,0,null,null,null,null,null,null,null,null,null,null,0,null,null,null,null,null,null,null,null,null,null,0,null,null,null,null,null,null,null,null,null,null,0,null,0]
[24,null,null,null,null,null,null,null,null,null,null,null,0,null,null,null,null,null,null,null,null,null,null,0,null,null,null,null,null,null,null,null,null,null,0,null,null,null,null,null,null,null,null,null,null,0,null,null,null,null,null,null,null,null,null,null,0,null,null,null,null,null,null,null,null,null,null,0,null,null,null,null,null,null,null,null,null,null,0,null,null,null,null,null,null,null,null,null,null,0,null,null,null,null,null,null,null,null,null,null,0,null,null,null,null,null,null,null,null,null,null,0,null,null,null,null,null,null,null,null,null,null,0,null,null,null,null,null,null,null,null,null,null,0,null,0]
[25,null,null,null,null,null,null,null,null,null,null,null,0,null,null,null,null,null,null,null,null,null,null,0,null,null,null,null,null,null,null,null,null,null,0,null,null,null,null,null,null,null,null,null,null,0,null,null,null,null,null,null,null,null,null,null,0,null,null,null,null,null,null,null,null,null,null,0,null,null,null,null,null,null,null,null,null,null,0,null,null,null,null,null,null,null,null,null,null,0,null,null,null,null,null,null,null,null,null,null,0,null,null,null,null,null,null,null,null,null,null,0,null,null,null,null,null,null,null,null,null,null,0,null,null,null,null,null,null,null,null,null,null,0,null,0]
[26,null,null,null,null,null,null,null,null,null,null,null,0,null,null,null,null,null,null,null,null,null,null,0,null,null,null,null,null,null,null,null,null,null,0,null,null,null,null,null,null,null,null,null,null,0,null,null,null,null,null,null,null,null,null,null,0,null,null,null,null,null,null,null,null,null,null,0,null,null,null,null,null,null,null,null,null,null,0,null,null,null,null,null,null,null,null,null,null,0,null,null,null,null,null,null,null,null,null,null,0,null,null,null,null,null,null,null,null,null,null,0,null,null,null,null,null,null,null,null,null,null,0,null,null,null,null,null,null,null,null,null,null,0,null,0]
[27,null,null,null,null,null,null,null,null,null,null,null,0,null,null,null,null,null,null,null,null,null,null,0,null,null,null,null,null,null,null,null,null,null,0,null,null,null,null,null,null,null,null,null,null,0,null,null,null,null,null,null,null,null,null,null,0,null,null,null,null,null,null,null,null,null,null,0,null,null,null,null,null,null,null,null,null,null,0,null,null,null,null,null,null,null,null,null,null,0,null,null,null,null,null,null,null,null,null,null,0,null,null,null,null,null,null,null,null,null,null,0,null,null,null,null,null,null,null,null,null,null,0,null,null,null,null,null,null,null,null,null,null,0,null,0]
[28,null,null,null,null,null,null,null,null,null,null,null,0,null,null,null,null,null,null,null,null,null,null,0,null,null,null,null,null,null,null,null,null,null,0,null,null,null,null,null,null,null,null,null,null,0,null,null,null,null,null,null,null,null,null,null,0,null,null,null,null,null,null,null,null,null,null,0,null,null,null,null,null,null,null,null,null,null,0,null,null,null,null,null,null,null,null,null,null,0,null,null,null,null,null,null,null,null,null,null,0,null,null,null,null,null,null,null,null,null,null,0,null,null,null,null,null,null,null,null,null,null,0,null,null,null,null,null,null,null,null,null,null,0,null,0]
[29,null,null,null,null,null,null,null,null,null,null,null,0,null,null,null,null,null,null,null,null,null,null,0,null,null,null,null,null,null,null,null,null,null,0,null,null,null,null,null,null,null,null,null,null,0,null,null,null,null,null,null,null,null,null,null,0,null,null,null,null,null,null,null,null,null,null,0,null,null,null,null,null,null,null,null,null,null,0,null,null,null,null,null,null,null,null,null,null,0,null,null,null,null,null,null,null,null,null,null,0,null,null,null,null,null,null,null,null,null,null,0,null,null,null,null,null,null,null,null,null,null,0,null,null,null,null,null,null,null,null,null,null,0,null,0]
[30,null,null,null,null,null,null,null,null,null,null,null,0,null,null,null,null,null,null,null,null,null,null,0,null,null,null,null,null,null,null,null,null,null,0,null,null,null,null,null,null,null,null,null,null,0,null,null,null,null,null,null,null,null,null,null,0,null,null,null,null,null,null,null,null,null,null,0,null,null,null,null,null,null,null,null,null,null,0,null,null,null,null,null,null,null,null,null,null,0,null,null,null,null,null,null,null,null,null,null,0,null,null,null,null,null,null,null,null,null,null,0,null,null,null,null,null,null,null,null,null,null,0,null,null,null,null,null,null,null,null,null,null,0,null,0]
[31,null,null,null,null,null,null,null,null,null,null,null,0,null,null,null,null,null,null,null,null,null,null,0,null,null,null,null,null,null,null,null,null,null,0,null,null,null,null,null,null,null,null,null,null,0,null,null,null,null,null,null,null,null,null,null,0,null,null,null,null,null,null,null,null,null,null,0,null,null,null,null,null,null,null,null,null,null,0,null,null,null,null,null,null,null,null,null,null,0,null,null,null,null,null,null,null,null,null,null,0,null,null,null,null,null,null,null,null,null,null,0,null,null,null,null,null,null,null,null,null,null,0,null,null,null,null,null,null,null,null,null,null,0,null,0]
[]
["Sum",null,{"$f":"SUM(C3:C33)","v":0},{"$f":"SUM(D3:D33)","v":0},0,0,0,0,0,0,0,0,{"$f":"SUM(C35:L35)","v":0},{"$f":"SUM(N3:N33)","v":0},0,0,0,0,0,0,0,0,0,{"$f":"SUM(N35:W35)","v":0},0,0,0,0,0,0,0,0,0,0,{"$f":"SUM(Y35:AH35)","v":0},0,0,0,0,0,0,0,0,0,0,{"$f":"SUM(AJ35:AS35)","v":0},0,0,0,0,0,0,0,0,0,0,{"$f":"SUM(AU35:BD35)","v":0},0,0,0,0,0,0,0,0,0,0,{"$f":"SUM(BF35:BO35)","v":0},0,0,0,0,0,0,0,0,0,0,{"$f":"SUM(BQ35:BZ35)","v":0},0,0,0,0,0,0,0,0,0,0,{"$f":"SUM(CB35:CK35)","v":0},0,0,0,0,0,0,0,0,0,0,{"$f":"SUM(CM35:CV35)","v":0},0,0,0,0,0,0,0,0,0,0,{"$f":"SUM(CX35:DG35)","v":0},0,0,0,0,0,0,0,0,0,0,{"$f":"SUM(DI35:DR35)","v":0},0,0,{"$f":"SUM(DV3:DV33)","v":0},0,0,0,0,0,0,0,{"$f":"SUM(DT35:EC35)","v":0},null,{"$f":"SUM(EF3:EF34)","v":0}]
[]
[]
[null,null,"Januar","Februar","Marts","April","Maj","Juni","Juli","August","September","Oktober","November","December"]
[null,null,{"$f":"ABS(M35)","v":0},{"$f":"ABS(X35)","v":0},{"$f":"ABS(AI35)","v":0},{"$f":"ABS(AT35)","v":0},{"$f":"ABS(BE35)","v":0},{"$f":"ABS(BP35)","v":0},{"$f":"ABS(CA35)","v":0},{"$f":"ABS(CL35)","v":0},{"$f":"ABS(CW35)","v":0},{"$f":"ABS(DH35)","v":0},{"$f":"ABS(DS35)","v":0},{"$f":"ABS(ED35)","v":0}]

{"sheet":"Afbetaling-Lån-kredit","index":12,"n_rows":39,"n_cols":136,"rows_kept":39,"cut":false,"hidden":true,"merged":[]}
["Home",null,"Januar '1","Januar '2","Januar '3","Januar '4","Januar '5","Januar '6","Januar '7","Januar '8","Januar '9","Januar '10","SUM","Februar '1","Februar '2","Februar '3","Februar '4","Februar '5","Februar '6","Februar '7","Februar '8","Februar '9","Februar '10","SUM","Marts '1","Marts '2","Marts '3","Marts '4","Marts '5","Marts '6","Marts '7","Marts '8","Marts '9","Marts '10","SUM","April '1","April '2","April '3","April '4","April '5","April '6","April '7","April '8","April '9","April '10","SUM","Maj '1","Maj '2","Maj '3","Maj '4","Maj '5","Maj '6","Maj '7","Maj '8","Maj '9","Maj '10","SUM","Juni '1","Juni '2","Juni '3","Juni '4","Juni '5","Juni '6","Juni '7","Juni '8","Juni '9","Juni '10","SUM","Juli '1","Juli '2","Juli '3","Juli '4","Juli '5","Juli '6","Juli '7","Juli '8","Juli '9","Juli '10","SUM","August '1","August '2","August '3","August '4","August '5","August '6","August '7","August '8","August '9","August '10","SUM","September '1","September '2","September '3","September '4","September '5","September '6","September '7","September '8","September '9","September '10","SUM","Oktober '1","Oktober '2","Oktober '3","Oktober '4","Oktober '5","Oktober '6","Oktober '7","Oktober '8","Oktober '9","Oktober '10","SUM","November '1","November '2","November '3","November '4","November '5","November '6","November '7","November '8","November '9","November '10","SUM","December '1","December '2","December '3","December '4","December '5","December '6","December '7","December '8","December '9","December '10","SUM",null,"Sum"]
[null,null,"Santander\nAFTALENR 916831342\nBil","Santander\nAFTALENR 906046398\nBryst",null,null,null,null,null,null,null,null,null,"Santander\nAFTALENR 916831342\nBil","Santander\nAFTALENR 906046398\nBryst",null,null,null,null,null,null,null,null,null,"Santander\nAFTALENR 916831342\nBil","Santander\nAFTALENR 906046398\nBryst",null,null,null,null,null,null,null,null,null,"Santander\nAFTALENR 916831342\nBil","Santander\nAFTALENR 906046398\nBryst"]
[1,null,null,null,null,null,null,null,null,null,null,null,{"$f":"SUM(C3:L3)","v":0},null,null,null,null,null,null,null,null,null,null,{"$f":"SUM(N3:W3)","v":0},null,null,null,null,null,null,null,null,null,null,{"$f":"SUM(Y3:AH3)","v":0},null,null,null,null,null,null,null,null,null,null,{"$f":"SUM(AJ3:AS3)","v":0},null,null,null,null,null,null,null,null,null,null,{"$f":"SUM(AU3:BD3)","v":0},null,null,null,null,null,null,null,null,null,null,{"$f":"SUM(BF3:BO3)","v":0},null,null,null,null,null,null,null,null,null,null,{"$f":"SUM(BQ3:BZ3)","v":0},null,null,null,null,null,null,null,null,null,null,{"$f":"SUM(CB3:CK3)","v":0},null,null,null,null,null,null,null,null,null,null,{"$f":"SUM(CM3:CV3)","v":0},null,null,null,null,null,null,null,null,null,null,{"$f":"SUM(CX3:DG3)","v":0},null,null,null,null,null,null,null,null,null,null,{"$f":"SUM(DI3:DR3)","v":0},null,null,null,null,null,null,null,null,null,null,{"$f":"SUM(DT3:EC3)","v":0},null,{"$f":"SUM(ED3,DS3,DH3,CW3,CL3,CA3,BP3,BE3,AT3,AI3,X3,M3)","v":0}]
[2,null,null,null,null,null,null,null,null,null,null,null,{"$f":"SUM(C4:L4)","v":0},null,null,null,null,null,null,null,null,null,null,{"$f":"SUM(N4:W4)","v":0},null,null,null,null,null,null,null,null,null,null,{"$f":"SUM(Y4:AH4)","v":0},null,null,null,null,null,null,null,null,null,null,{"$f":"SUM(AJ4:AS4)","v":0},null,null,null,null,null,null,null,null,null,null,{"$f":"SUM(AU4:BD4)","v":0},null,null,null,null,null,null,null,null,null,null,{"$f":"SUM(BF4:BO4)","v":0},null,null,null,null,null,null,null,null,null,null,{"$f":"SUM(BQ4:BZ4)","v":0},null,null,null,null,null,null,null,null,null,null,{"$f":"SUM(CB4:CK4)","v":0},null,null,null,null,null,null,null,null,null,null,{"$f":"SUM(CM4:CV4)","v":0},null,null,null,null,null,null,null,null,null,null,{"$f":"SUM(CX4:DG4)","v":0},null,null,null,null,null,null,null,null,null,null,{"$f":"SUM(DI4:DR4)","v":0},null,null,null,null,null,null,null,null,null,null,{"$f":"SUM(DT4:EC4)","v":0},null,{"$f":"SUM(ED4,DS4,DH4,CW4,CL4,CA4,BP4,BE4,AT4,AI4,X4,M4)","v":0}]
[3,null,null,null,null,null,null,null,null,null,null,null,0,null,null,null,null,null,null,null,null,null,null,0,null,null,null,null,null,null,null,null,null,null,0,null,null,null,null,null,null,null,null,null,null,0,null,null,null,null,null,null,null,null,null,null,0,null,null,null,null,null,null,null,null,null,null,0,null,null,null,null,null,null,null,null,null,null,0,null,null,null,null,null,null,null,null,null,null,0,null,null,null,null,null,null,null,null,null,null,0,null,null,null,null,null,null,null,null,null,null,0,null,null,null,null,null,null,null,null,null,null,0,null,null,null,null,null,null,null,null,null,null,0,null,0]
[4,null,null,null,null,null,null,null,null,null,null,null,0,null,null,null,null,null,null,null,null,null,null,0,null,null,null,null,null,null,null,null,null,null,0,null,null,null,null,null,null,null,null,null,null,0,null,null,null,null,null,null,null,null,null,null,0,null,null,null,null,null,null,null,null,null,null,0,null,null,null,null,null,null,null,null,null,null,0,null,null,null,null,null,null,null,null,null,null,0,null,null,null,null,null,null,null,null,null,null,0,null,null,null,null,null,null,null,null,null,null,0,null,null,null,null,null,null,null,null,null,null,0,null,null,null,null,null,null,null,null,null,null,0,null,0]
[5,null,null,null,null,null,null,null,null,null,null,null,0,null,null,null,null,null,null,null,null,null,null,0,null,null,null,null,null,null,null,null,null,null,0,null,null,null,null,null,null,null,null,null,null,0,null,null,null,null,null,null,null,null,null,null,0,null,null,null,null,null,null,null,null,null,null,0,null,null,null,null,null,null,null,null,null,null,0,null,null,null,null,null,null,null,null,null,null,0,null,null,null,null,null,null,null,null,null,null,0,null,null,null,null,null,null,null,null,null,null,0,null,null,null,null,null,null,null,null,null,null,0,null,null,null,null,null,null,null,null,null,null,0,null,0]
[6,null,null,null,null,null,null,null,null,null,null,null,0,null,null,null,null,null,null,null,null,null,null,0,null,null,null,null,null,null,null,null,null,null,0,null,null,null,null,null,null,null,null,null,null,0,null,null,null,null,null,null,null,null,null,null,0,null,null,null,null,null,null,null,null,null,null,0,null,null,null,null,null,null,null,null,null,null,0,null,null,null,null,null,null,null,null,null,null,0,null,null,null,null,null,null,null,null,null,null,0,null,null,null,null,null,null,null,null,null,null,0,null,null,null,null,null,null,null,null,null,null,0,null,null,null,null,null,null,null,null,null,null,0,null,0]
[7,null,null,null,null,null,null,null,null,null,null,null,0,null,null,null,null,null,null,null,null,null,null,0,null,null,null,null,null,null,null,null,null,null,0,null,null,null,null,null,null,null,null,null,null,0,null,null,null,null,null,null,null,null,null,null,0,null,null,null,null,null,null,null,null,null,null,0,null,null,null,null,null,null,null,null,null,null,0,null,null,null,null,null,null,null,null,null,null,0,null,null,null,null,null,null,null,null,null,null,0,null,null,null,null,null,null,null,null,null,null,0,null,null,null,null,null,null,null,null,null,null,0,null,null,null,null,null,null,null,null,null,null,0,null,0]
[8,null,null,null,null,null,null,null,null,null,null,null,0,null,null,null,null,null,null,null,null,null,null,0,null,null,null,null,null,null,null,null,null,null,0,null,null,null,null,null,null,null,null,null,null,0,null,null,null,null,null,null,null,null,null,null,0,null,null,null,null,null,null,null,null,null,null,0,null,null,null,null,null,null,null,null,null,null,0,null,null,null,null,null,null,null,null,null,null,0,null,null,null,null,null,null,null,null,null,null,0,null,null,null,null,null,null,null,null,null,null,0,null,null,null,null,null,null,null,null,null,null,0,null,null,null,null,null,null,null,null,null,null,0,null,0]
[9,null,null,null,null,null,null,null,null,null,null,null,0,null,null,null,null,null,null,null,null,null,null,0,null,null,null,null,null,null,null,null,null,null,0,null,null,null,null,null,null,null,null,null,null,0,null,null,null,null,null,null,null,null,null,null,0,null,null,null,null,null,null,null,null,null,null,0,null,null,null,null,null,null,null,null,null,null,0,null,null,null,null,null,null,null,null,null,null,0,null,null,null,null,null,null,null,null,null,null,0,null,null,null,null,null,null,null,null,null,null,0,null,null,null,null,null,null,null,null,null,null,0,null,null,null,null,null,null,null,null,null,null,0,null,0]
[10,null,null,null,null,null,null,null,null,null,null,null,0,null,null,null,null,null,null,null,null,null,null,0,null,null,null,null,null,null,null,null,null,null,0,null,null,null,null,null,null,null,null,null,null,0,null,null,null,null,null,null,null,null,null,null,0,null,null,null,null,null,null,null,null,null,null,0,null,null,null,null,null,null,null,null,null,null,0,null,null,null,null,null,null,null,null,null,null,0,null,null,null,null,null,null,null,null,null,null,0,null,null,null,null,null,null,null,null,null,null,0,null,null,null,null,null,null,null,null,null,null,0,null,null,null,null,null,null,null,null,null,null,0,null,0]
[11,null,null,null,null,null,null,null,null,null,null,null,0,null,null,null,null,null,null,null,null,null,null,0,null,null,null,null,null,null,null,null,null,null,0,null,null,null,null,null,null,null,null,null,null,0,null,null,null,null,null,null,null,null,null,null,0,null,null,null,null,null,null,null,null,null,null,0,null,null,null,null,null,null,null,null,null,null,0,null,null,null,null,null,null,null,null,null,null,0,null,null,null,null,null,null,null,null,null,null,0,null,null,null,null,null,null,null,null,null,null,0,null,null,null,null,null,null,null,null,null,null,0,null,null,null,null,null,null,null,null,null,null,0,null,0]
[12,null,null,null,null,null,null,null,null,null,null,null,0,null,null,null,null,null,null,null,null,null,null,0,null,null,null,null,null,null,null,null,null,null,0,null,null,null,null,null,null,null,null,null,null,0,null,null,null,null,null,null,null,null,null,null,0,null,null,null,null,null,null,null,null,null,null,0,null,null,null,null,null,null,null,null,null,null,0,null,null,null,null,null,null,null,null,null,null,0,null,null,null,null,null,null,null,null,null,null,0,null,null,null,null,null,null,null,null,null,null,0,null,null,null,null,null,null,null,null,null,null,0,null,null,null,null,null,null,null,null,null,null,0,null,0]
[13,null,null,null,null,null,null,null,null,null,null,null,0,null,null,null,null,null,null,null,null,null,null,0,null,null,null,null,null,null,null,null,null,null,0,null,null,null,null,null,null,null,null,null,null,0,null,null,null,null,null,null,null,null,null,null,0,null,null,null,null,null,null,null,null,null,null,0,null,null,null,null,null,null,null,null,null,null,0,null,null,null,null,null,null,null,null,null,null,0,null,null,null,null,null,null,null,null,null,null,0,null,null,null,null,null,null,null,null,null,null,0,null,null,null,null,null,null,null,null,null,null,0,null,null,null,null,null,null,null,null,null,null,0,null,0]
[14,null,null,null,null,null,null,null,null,null,null,null,0,null,null,null,null,null,null,null,null,null,null,0,null,null,null,null,null,null,null,null,null,null,0,null,null,null,null,null,null,null,null,null,null,0,null,null,null,null,null,null,null,null,null,null,0,null,null,null,null,null,null,null,null,null,null,0,null,null,null,null,null,null,null,null,null,null,0,null,null,null,null,null,null,null,null,null,null,0,null,null,null,null,null,null,null,null,null,null,0,null,null,null,null,null,null,null,null,null,null,0,null,null,null,null,null,null,null,null,null,null,0,null,null,null,null,null,null,null,null,null,null,0,null,0]
[15,null,null,null,null,null,null,null,null,null,null,null,0,null,null,null,null,null,null,null,null,null,null,0,null,null,null,null,null,null,null,null,null,null,0,null,null,null,null,null,null,null,null,null,null,0,null,null,null,null,null,null,null,null,null,null,0,null,null,null,null,null,null,null,null,null,null,0,null,null,null,null,null,null,null,null,null,null,0,null,null,null,null,null,null,null,null,null,null,0,null,null,null,null,null,null,null,null,null,null,0,null,null,null,null,null,null,null,null,null,null,0,null,null,null,null,null,null,null,null,null,null,0,null,null,null,null,null,null,null,null,null,null,0,null,0]
[16,null,null,null,null,null,null,null,null,null,null,null,0,null,null,null,null,null,null,null,null,null,null,0,null,null,null,null,null,null,null,null,null,null,0,null,null,null,null,null,null,null,null,null,null,0,null,null,null,null,null,null,null,null,null,null,0,null,null,null,null,null,null,null,null,null,null,0,null,null,null,null,null,null,null,null,null,null,0,null,null,null,null,null,null,null,null,null,null,0,null,null,null,null,null,null,null,null,null,null,0,null,null,null,null,null,null,null,null,null,null,0,null,null,null,null,null,null,null,null,null,null,0,null,null,null,null,null,null,null,null,null,null,0,null,0]
[17,null,null,null,null,null,null,null,null,null,null,null,0,null,null,null,null,null,null,null,null,null,null,0,null,null,null,null,null,null,null,null,null,null,0,null,null,null,null,null,null,null,null,null,null,0,null,null,null,null,null,null,null,null,null,null,0,null,null,null,null,null,null,null,null,null,null,0,null,null,null,null,null,null,null,null,null,null,0,null,null,null,null,null,null,null,null,null,null,0,null,null,null,null,null,null,null,null,null,null,0,null,null,null,null,null,null,null,null,null,null,0,null,null,null,null,null,null,null,null,null,null,0,null,null,null,null,null,null,null,null,null,null,0,null,0]
[18,null,null,null,null,null,null,null,null,null,null,null,0,null,null,null,null,null,null,null,null,null,null,0,null,null,null,null,null,null,null,null,null,null,0,null,null,null,null,null,null,null,null,null,null,0,null,null,null,null,null,null,null,null,null,null,0,null,null,null,null,null,null,null,null,null,null,0,null,null,null,null,null,null,null,null,null,null,0,null,null,null,null,null,null,null,null,null,null,0,null,null,null,null,null,null,null,null,null,null,0,null,null,null,null,null,null,null,null,null,null,0,null,null,null,null,null,null,null,null,null,null,0,null,null,null,null,null,null,null,null,null,null,0,null,0]
[19,null,null,null,null,null,null,null,null,null,null,null,0,null,null,null,null,null,null,null,null,null,null,0,null,null,null,null,null,null,null,null,null,null,0,null,null,null,null,null,null,null,null,null,null,0,null,null,null,null,null,null,null,null,null,null,0,null,null,null,null,null,null,null,null,null,null,0,null,null,null,null,null,null,null,null,null,null,0,null,null,null,null,null,null,null,null,null,null,0,null,null,null,null,null,null,null,null,null,null,0,null,null,null,null,null,null,null,null,null,null,0,null,null,null,null,null,null,null,null,null,null,0,null,null,null,null,null,null,null,null,null,null,0,null,0]
[20,null,null,null,null,null,null,null,null,null,null,null,0,null,null,null,null,null,null,null,null,null,null,0,null,null,null,null,null,null,null,null,null,null,0,null,null,null,null,null,null,null,null,null,null,0,null,null,null,null,null,null,null,null,null,null,0,null,null,null,null,null,null,null,null,null,null,0,null,null,null,null,null,null,null,null,null,null,0,null,null,null,null,null,null,null,null,null,null,0,null,null,null,null,null,null,null,null,null,null,0,null,null,null,null,null,null,null,null,null,null,0,null,null,null,null,null,null,null,null,null,null,0,null,null,null,null,null,null,null,null,null,null,0,null,0]
[21,null,null,null,null,null,null,null,null,null,null,null,0,null,null,null,null,null,null,null,null,null,null,0,null,null,null,null,null,null,null,null,null,null,0,null,null,null,null,null,null,null,null,null,null,0,null,null,null,null,null,null,null,null,null,null,0,null,null,null,null,null,null,null,null,null,null,0,null,null,null,null,null,null,null,null,null,null,0,null,null,null,null,null,null,null,null,null,null,0,null,null,null,null,null,null,null,null,null,null,0,null,null,null,null,null,null,null,null,null,null,0,null,null,null,null,null,null,null,null,null,null,0,null,null,null,null,null,null,null,null,null,null,0,null,0]
[22,null,null,null,null,null,null,null,null,null,null,null,0,null,null,null,null,null,null,null,null,null,null,0,null,null,null,null,null,null,null,null,null,null,0,null,null,null,null,null,null,null,null,null,null,0,null,null,null,null,null,null,null,null,null,null,0,null,null,null,null,null,null,null,null,null,null,0,null,null,null,null,null,null,null,null,null,null,0,null,null,null,null,null,null,null,null,null,null,0,null,null,null,null,null,null,null,null,null,null,0,null,null,null,null,null,null,null,null,null,null,0,null,null,null,null,null,null,null,null,null,null,0,null,null,null,null,null,null,null,null,null,null,0,null,0]
[23,null,null,null,null,null,null,null,null,null,null,null,0,null,null,null,null,null,null,null,null,null,null,0,null,null,null,null,null,null,null,null,null,null,0,null,null,null,null,null,null,null,null,null,null,0,null,null,null,null,null,null,null,null,null,null,0,null,null,null,null,null,null,null,null,null,null,0,null,null,null,null,null,null,null,null,null,null,0,null,null,null,null,null,null,null,null,null,null,0,null,null,null,null,null,null,null,null,null,null,0,null,null,null,null,null,null,null,null,null,null,0,null,null,null,null,null,null,null,null,null,null,0,null,null,null,null,null,null,null,null,null,null,0,null,0]
[24,null,null,null,null,null,null,null,null,null,null,null,0,null,null,null,null,null,null,null,null,null,null,0,null,null,null,null,null,null,null,null,null,null,0,null,null,null,null,null,null,null,null,null,null,0,null,null,null,null,null,null,null,null,null,null,0,null,null,null,null,null,null,null,null,null,null,0,null,null,null,null,null,null,null,null,null,null,0,null,null,null,null,null,null,null,null,null,null,0,null,null,null,null,null,null,null,null,null,null,0,null,null,null,null,null,null,null,null,null,null,0,null,null,null,null,null,null,null,null,null,null,0,null,null,null,null,null,null,null,null,null,null,0,null,0]
[25,null,null,null,null,null,null,null,null,null,null,null,0,null,null,null,null,null,null,null,null,null,null,0,null,null,null,null,null,null,null,null,null,null,0,null,null,null,null,null,null,null,null,null,null,0,null,null,null,null,null,null,null,null,null,null,0,null,null,null,null,null,null,null,null,null,null,0,null,null,null,null,null,null,null,null,null,null,0,null,null,null,null,null,null,null,null,null,null,0,null,null,null,null,null,null,null,null,null,null,0,null,null,null,null,null,null,null,null,null,null,0,null,null,null,null,null,null,null,null,null,null,0,null,null,null,null,null,null,null,null,null,null,0,null,0]
[26,null,null,null,null,null,null,null,null,null,null,null,0,null,null,null,null,null,null,null,null,null,null,0,null,null,null,null,null,null,null,null,null,null,0,null,null,null,null,null,null,null,null,null,null,0,null,null,null,null,null,null,null,null,null,null,0,null,null,null,null,null,null,null,null,null,null,0,null,null,null,null,null,null,null,null,null,null,0,null,null,null,null,null,null,null,null,null,null,0,null,null,null,null,null,null,null,null,null,null,0,null,null,null,null,null,null,null,null,null,null,0,null,null,null,null,null,null,null,null,null,null,0,null,null,null,null,null,null,null,null,null,null,0,null,0]
[27,null,null,null,null,null,null,null,null,null,null,null,0,null,null,null,null,null,null,null,null,null,null,0,null,null,null,null,null,null,null,null,null,null,0,null,null,null,null,null,null,null,null,null,null,0,null,null,null,null,null,null,null,null,null,null,0,null,null,null,null,null,null,null,null,null,null,0,null,null,null,null,null,null,null,null,null,null,0,null,null,null,null,null,null,null,null,null,null,0,null,null,null,null,null,null,null,null,null,null,0,null,null,null,null,null,null,null,null,null,null,0,null,null,null,null,null,null,null,null,null,null,0,null,null,null,null,null,null,null,null,null,null,0,null,0]
[28,null,null,null,null,null,null,null,null,null,null,null,0,null,null,null,null,null,null,null,null,null,null,0,null,null,null,null,null,null,null,null,null,null,0,null,null,null,null,null,null,null,null,null,null,0,null,null,null,null,null,null,null,null,null,null,0,null,null,null,null,null,null,null,null,null,null,0,null,null,null,null,null,null,null,null,null,null,0,null,null,null,null,null,null,null,null,null,null,0,null,null,null,null,null,null,null,null,null,null,0,null,null,null,null,null,null,null,null,null,null,0,null,null,null,null,null,null,null,null,null,null,0,null,null,null,null,null,null,null,null,null,null,0,null,0]
[29,null,null,null,null,null,null,null,null,null,null,null,0,null,null,null,null,null,null,null,null,null,null,0,null,null,null,null,null,null,null,null,null,null,0,null,null,null,null,null,null,null,null,null,null,0,null,null,null,null,null,null,null,null,null,null,0,null,null,null,null,null,null,null,null,null,null,0,null,null,null,null,null,null,null,null,null,null,0,null,null,null,null,null,null,null,null,null,null,0,null,null,null,null,null,null,null,null,null,null,0,null,null,null,null,null,null,null,null,null,null,0,null,null,null,null,null,null,null,null,null,null,0,null,null,null,null,null,null,null,null,null,null,0,null,0]
[30,null,null,null,null,null,null,null,null,null,null,null,0,null,null,null,null,null,null,null,null,null,null,0,null,null,null,null,null,null,null,null,null,null,0,null,null,null,null,null,null,null,null,null,null,0,null,null,null,null,null,null,null,null,null,null,0,null,null,null,null,null,null,null,null,null,null,0,null,null,null,null,null,null,null,null,null,null,0,null,null,null,null,null,null,null,null,null,null,0,null,null,null,null,null,null,null,null,null,null,0,null,null,null,null,null,null,null,null,null,null,0,null,null,null,null,null,null,null,null,null,null,0,null,null,null,null,null,null,null,null,null,null,0,null,0]
[31,null,null,null,null,null,null,null,null,null,null,null,0,null,null,null,null,null,null,null,null,null,null,0,null,null,null,null,null,null,null,null,null,null,0,null,null,null,null,null,null,null,null,null,null,0,null,null,null,null,null,null,null,null,null,null,0,null,null,null,null,null,null,null,null,null,null,0,null,null,null,null,null,null,null,null,null,null,0,null,null,null,null,null,null,null,null,null,null,0,null,null,null,null,null,null,null,null,null,null,0,null,null,null,null,null,null,null,null,null,null,0,null,null,null,null,null,null,null,null,null,null,0,null,null,null,null,null,null,null,null,null,null,0,null,0]
[]
["Sum",null,{"$f":"SUM(C3:C33)","v":0},{"$f":"SUM(D3:D33)","v":0},0,0,0,0,0,0,0,0,{"$f":"SUM(C35:L35)","v":0},{"$f":"SUM(N3:N33)","v":0},0,0,0,0,0,0,0,0,0,{"$f":"SUM(N35:W35)","v":0},0,0,0,0,0,0,0,0,0,0,{"$f":"SUM(Y35:AH35)","v":0},0,0,0,0,0,0,0,0,0,0,{"$f":"SUM(AJ35:AS35)","v":0},0,0,0,0,0,0,0,0,0,0,{"$f":"SUM(AU35:BD35)","v":0},0,0,0,0,0,0,0,0,0,0,{"$f":"SUM(BF35:BO35)","v":0},0,0,0,0,0,0,0,0,0,0,{"$f":"SUM(BQ35:BZ35)","v":0},0,0,0,0,0,0,0,0,0,0,{"$f":"SUM(CB35:CK35)","v":0},0,0,0,0,0,0,0,0,0,0,{"$f":"SUM(CM35:CV35)","v":0},0,0,0,0,0,0,0,0,0,0,{"$f":"SUM(CX35:DG35)","v":0},0,0,0,0,0,0,0,0,0,0,{"$f":"SUM(DI35:DR35)","v":0},0,0,{"$f":"SUM(DV3:DV33)","v":0},0,0,0,0,0,0,0,{"$f":"SUM(DT35:EC35)","v":0},null,{"$f":"SUM(EF3:EF34)","v":0}]
[]
[]
[null,null,"Januar","Februar","Marts","April","Maj","Juni","Juli","August","September","Oktober","November","December"]
[null,null,{"$f":"ABS(M35)","v":0},{"$f":"ABS(X35)","v":0},{"$f":"ABS(AI35)","v":0},{"$f":"ABS(AT35)","v":0},{"$f":"ABS(BE35)","v":0},{"$f":"ABS(BP35)","v":0},{"$f":"ABS(CA35)","v":0},{"$f":"ABS(CL35)","v":0},{"$f":"ABS(CW35)","v":0},{"$f":"ABS(DH35)","v":0},{"$f":"ABS(DS35)","v":0},{"$f":"ABS(ED35)","v":0}]

{"sheet":"Transport","index":13,"n_rows":39,"n_cols":136,"rows_kept":39,"cut":false,"hidden":true,"merged":[]}
["Home",null,"Januar '1","Januar '2","Januar '3","Januar '4","Januar '5","Januar '6","Januar '7","Januar '8","Januar '9","Januar '10","SUM","Februar '1","Februar '2","Februar '3","Februar '4","Februar '5","Februar '6","Februar '7","Februar '8","Februar '9","Februar '10","SUM","Marts '1","Marts '2","Marts '3","Marts '4","Marts '5","Marts '6","Marts '7","Marts '8","Marts '9","Marts '10","SUM","April '1","April '2","April '3","April '4","April '5","April '6","April '7","April '8","April '9","April '10","SUM","Maj '1","Maj '2","Maj '3","Maj '4","Maj '5","Maj '6","Maj '7","Maj '8","Maj '9","Maj '10","SUM","Juni '1","Juni '2","Juni '3","Juni '4","Juni '5","Juni '6","Juni '7","Juni '8","Juni '9","Juni '10","SUM","Juli '1","Juli '2","Juli '3","Juli '4","Juli '5","Juli '6","Juli '7","Juli '8","Juli '9","Juli '10","SUM","August '1","August '2","August '3","August '4","August '5","August '6","August '7","August '8","August '9","August '10","SUM","September '1","September '2","September '3","September '4","September '5","September '6","September '7","September '8","September '9","September '10","SUM","Oktober '1","Oktober '2","Oktober '3","Oktober '4","Oktober '5","Oktober '6","Oktober '7","Oktober '8","Oktober '9","Oktober '10","SUM","November '1","November '2","November '3","November '4","November '5","November '6","November '7","November '8","November '9","November '10","SUM","December '1","December '2","December '3","December '4","December '5","December '6","December '7","December '8","December '9","December '10","SUM",null,"Sum"]
[null,null,"Div billetter","Rejsekort","Pendlerkort\nAllan","Pendlerkort\nKarina",null,null,null,null,null,null,null,"Div billetter","Rejsekort","Pendlerkort\nAllan","Pendlerkort\nKarina","WC",null,null,null,null,null,null,"Div billetter","Rejsekort","Pendlerkort\nAllan","Pendlerkort\nKarina","WC","Rejsegaranti",null,null,null,null,null,"Div billetter","Rejsekort","Pendlerkort\nAllan","Pendlerkort\nKarina","WC",null,null,null,null,null,null,"Div billetter","Rejsekort","Pendlerkort\nAllan","Pendlerkort\nKarina","WC"]
[1,null,null,null,null,null,null,null,null,null,null,null,{"$f":"SUM(C3:L3)","v":0},null,null,null,null,null,null,null,null,null,null,{"$f":"SUM(N3:W3)","v":0},null,null,null,null,null,null,null,null,null,null,{"$f":"SUM(Y3:AH3)","v":0},null,null,null,null,null,null,null,null,null,null,{"$f":"SUM(AJ3:AS3)","v":0},null,null,null,null,null,null,null,null,null,null,{"$f":"SUM(AU3:BD3)","v":0},null,null,null,null,null,null,null,null,null,null,{"$f":"SUM(BF3:BO3)","v":0},null,null,null,null,null,null,null,null,null,null,{"$f":"SUM(BQ3:BZ3)","v":0},null,null,null,null,null,null,null,null,null,null,{"$f":"SUM(CB3:CK3)","v":0},null,null,null,null,null,null,null,null,null,null,{"$f":"SUM(CM3:CV3)","v":0},null,null,null,null,null,null,null,null,null,null,{"$f":"SUM(CX3:DG3)","v":0},null,null,null,null,null,null,null,null,null,null,{"$f":"SUM(DI3:DR3)","v":0},null,null,null,null,null,null,null,null,null,null,{"$f":"SUM(DT3:EC3)","v":0},null,{"$f":"SUM(ED3,DS3,DH3,CW3,CL3,CA3,BP3,BE3,AT3,AI3,X3,M3)","v":0}]
[2,null,null,null,null,null,null,null,null,null,null,null,{"$f":"SUM(C4:L4)","v":0},null,null,null,null,null,null,null,null,null,null,{"$f":"SUM(N4:W4)","v":0},null,null,null,null,null,null,null,null,null,null,{"$f":"SUM(Y4:AH4)","v":0},null,null,null,null,null,null,null,null,null,null,{"$f":"SUM(AJ4:AS4)","v":0},null,null,null,null,null,null,null,null,null,null,{"$f":"SUM(AU4:BD4)","v":0},null,null,null,null,null,null,null,null,null,null,{"$f":"SUM(BF4:BO4)","v":0},null,null,null,null,null,null,null,null,null,null,{"$f":"SUM(BQ4:BZ4)","v":0},null,null,null,null,null,null,null,null,null,null,{"$f":"SUM(CB4:CK4)","v":0},null,null,null,null,null,null,null,null,null,null,{"$f":"SUM(CM4:CV4)","v":0},null,null,null,null,null,null,null,null,null,null,{"$f":"SUM(CX4:DG4)","v":0},null,null,null,null,null,null,null,null,null,null,{"$f":"SUM(DI4:DR4)","v":0},null,null,null,null,null,null,null,null,null,null,{"$f":"SUM(DT4:EC4)","v":0},null,{"$f":"SUM(ED4,DS4,DH4,CW4,CL4,CA4,BP4,BE4,AT4,AI4,X4,M4)","v":0}]
[3,null,null,null,null,null,null,null,null,null,null,null,0,null,null,null,null,null,null,null,null,null,null,0,null,null,null,null,null,null,null,null,null,null,0,null,null,null,null,null,null,null,null,null,null,0,null,null,null,null,null,null,null,null,null,null,0,null,null,null,null,null,null,null,null,null,null,0,null,null,null,null,null,null,null,null,null,null,0,null,null,null,null,null,null,null,null,null,null,0,null,null,null,null,null,null,null,null,null,null,0,null,null,null,null,null,null,null,null,null,null,0,null,null,null,null,null,null,null,null,null,null,0,null,null,null,null,null,null,null,null,null,null,0,null,0]
[4,null,null,null,null,null,null,null,null,null,null,null,0,null,null,null,null,null,null,null,null,null,null,0,null,null,null,null,null,null,null,null,null,null,0,null,null,null,null,null,null,null,null,null,null,0,null,null,null,null,null,null,null,null,null,null,0,null,null,null,null,null,null,null,null,null,null,0,null,null,null,null,null,null,null,null,null,null,0,null,null,null,null,null,null,null,null,null,null,0,null,null,null,null,null,null,null,null,null,null,0,null,null,null,null,null,null,null,null,null,null,0,null,null,null,null,null,null,null,null,null,null,0,null,null,null,null,null,null,null,null,null,null,0,null,0]
[5,null,null,null,null,null,null,null,null,null,null,null,0,null,null,null,null,null,null,null,null,null,null,0,null,null,null,null,null,null,null,null,null,null,0,null,null,null,null,null,null,null,null,null,null,0,null,null,null,null,null,null,null,null,null,null,0,null,null,null,null,null,null,null,null,null,null,0,null,null,null,null,null,null,null,null,null,null,0,null,null,null,null,null,null,null,null,null,null,0,null,null,null,null,null,null,null,null,null,null,0,null,null,null,null,null,null,null,null,null,null,0,null,null,null,null,null,null,null,null,null,null,0,null,null,null,null,null,null,null,null,null,null,0,null,0]
[6,null,null,null,null,null,null,null,null,null,null,null,0,null,null,null,null,null,null,null,null,null,null,0,null,null,null,null,null,null,null,null,null,null,0,null,null,null,null,null,null,null,null,null,null,0,null,null,null,null,null,null,null,null,null,null,0,null,null,null,null,null,null,null,null,null,null,0,null,null,null,null,null,null,null,null,null,null,0,null,null,null,null,null,null,null,null,null,null,0,null,null,null,null,null,null,null,null,null,null,0,null,null,null,null,null,null,null,null,null,null,0,null,null,null,null,null,null,null,null,null,null,0,null,null,null,null,null,null,null,null,null,null,0,null,0]
[7,null,null,null,null,null,null,null,null,null,null,null,0,null,null,null,null,null,null,null,null,null,null,0,null,null,null,null,null,null,null,null,null,null,0,null,null,null,null,null,null,null,null,null,null,0,null,null,null,null,null,null,null,null,null,null,0,null,null,null,null,null,null,null,null,null,null,0,null,null,null,null,null,null,null,null,null,null,0,null,null,null,null,null,null,null,null,null,null,0,null,null,null,null,null,null,null,null,null,null,0,null,null,null,null,null,null,null,null,null,null,0,null,null,null,null,null,null,null,null,null,null,0,null,null,null,null,null,null,null,null,null,null,0,null,0]
[8,null,null,null,null,null,null,null,null,null,null,null,0,null,null,null,null,null,null,null,null,null,null,0,null,null,null,null,null,null,null,null,null,null,0,null,null,null,null,null,null,null,null,null,null,0,null,null,null,null,null,null,null,null,null,null,0,null,null,null,null,null,null,null,null,null,null,0,null,null,null,null,null,null,null,null,null,null,0,null,null,null,null,null,null,null,null,null,null,0,null,null,null,null,null,null,null,null,null,null,0,null,null,null,null,null,null,null,null,null,null,0,null,null,null,null,null,null,null,null,null,null,0,null,null,null,null,null,null,null,null,null,null,0,null,0]
[9,null,null,null,null,null,null,null,null,null,null,null,0,null,null,null,null,null,null,null,null,null,null,0,null,null,null,null,null,null,null,null,null,null,0,null,null,null,null,null,null,null,null,null,null,0,null,null,null,null,null,null,null,null,null,null,0,null,null,null,null,null,null,null,null,null,null,0,null,null,null,null,null,null,null,null,null,null,0,null,null,null,null,null,null,null,null,null,null,0,null,null,null,null,null,null,null,null,null,null,0,null,null,null,null,null,null,null,null,null,null,0,null,null,null,null,null,null,null,null,null,null,0,null,null,null,null,null,null,null,null,null,null,0,null,0]
[10,null,null,null,null,null,null,null,null,null,null,null,0,null,null,null,null,null,null,null,null,null,null,0,null,null,null,null,null,null,null,null,null,null,0,null,null,null,null,null,null,null,null,null,null,0,null,null,null,null,null,null,null,null,null,null,0,null,null,null,null,null,null,null,null,null,null,0,null,null,null,null,null,null,null,null,null,null,0,null,null,null,null,null,null,null,null,null,null,0,null,null,null,null,null,null,null,null,null,null,0,null,null,null,null,null,null,null,null,null,null,0,null,null,null,null,null,null,null,null,null,null,0,null,null,null,null,null,null,null,null,null,null,0,null,0]
[11,null,null,null,null,null,null,null,null,null,null,null,0,null,null,null,null,null,null,null,null,null,null,0,null,null,null,null,null,null,null,null,null,null,0,null,null,null,null,null,null,null,null,null,null,0,null,null,null,null,null,null,null,null,null,null,0,null,null,null,null,null,null,null,null,null,null,0,null,null,null,null,null,null,null,null,null,null,0,null,null,null,null,null,null,null,null,null,null,0,null,null,null,null,null,null,null,null,null,null,0,null,null,null,null,null,null,null,null,null,null,0,null,null,null,null,null,null,null,null,null,null,0,null,null,null,null,null,null,null,null,null,null,0,null,0]
[12,null,null,null,null,null,null,null,null,null,null,null,0,null,null,null,null,null,null,null,null,null,null,0,null,null,null,null,null,null,null,null,null,null,0,null,null,null,null,null,null,null,null,null,null,0,null,null,null,null,null,null,null,null,null,null,0,null,null,null,null,null,null,null,null,null,null,0,null,null,null,null,null,null,null,null,null,null,0,null,null,null,null,null,null,null,null,null,null,0,null,null,null,null,null,null,null,null,null,null,0,null,null,null,null,null,null,null,null,null,null,0,null,null,null,null,null,null,null,null,null,null,0,null,null,null,null,null,null,null,null,null,null,0,null,0]
[13,null,null,null,null,null,null,null,null,null,null,null,0,null,null,null,null,null,null,null,null,null,null,0,null,null,null,null,null,null,null,null,null,null,0,null,null,null,null,null,null,null,null,null,null,0,null,null,null,null,null,null,null,null,null,null,0,null,null,null,null,null,null,null,null,null,null,0,null,null,null,null,null,null,null,null,null,null,0,null,null,null,null,null,null,null,null,null,null,0,null,null,null,null,null,null,null,null,null,null,0,null,null,null,null,null,null,null,null,null,null,0,null,null,null,null,null,null,null,null,null,null,0,null,null,null,null,null,null,null,null,null,null,0,null,0]
[14,null,null,null,null,null,null,null,null,null,null,null,0,null,null,null,null,null,null,null,null,null,null,0,null,null,null,null,null,null,null,null,null,null,0,null,null,null,null,null,null,null,null,null,null,0,null,null,null,null,null,null,null,null,null,null,0,null,null,null,null,null,null,null,null,null,null,0,null,null,null,null,null,null,null,null,null,null,0,null,null,null,null,null,null,null,null,null,null,0,null,null,null,null,null,null,null,null,null,null,0,null,null,null,null,null,null,null,null,null,null,0,null,null,null,null,null,null,null,null,null,null,0,null,null,null,null,null,null,null,null,null,null,0,null,0]
[15,null,null,null,null,null,null,null,null,null,null,null,0,null,null,null,null,null,null,null,null,null,null,0,null,null,null,null,null,null,null,null,null,null,0,null,null,null,null,null,null,null,null,null,null,0,null,null,null,null,null,null,null,null,null,null,0,null,null,null,null,null,null,null,null,null,null,0,null,null,null,null,null,null,null,null,null,null,0,null,null,null,null,null,null,null,null,null,null,0,null,null,null,null,null,null,null,null,null,null,0,null,null,null,null,null,null,null,null,null,null,0,null,null,null,null,null,null,null,null,null,null,0,null,null,null,null,null,null,null,null,null,null,0,null,0]
[16,null,null,null,null,null,null,null,null,null,null,null,0,null,null,null,null,null,null,null,null,null,null,0,null,null,null,null,null,null,null,null,null,null,0,null,null,null,null,null,null,null,null,null,null,0,null,null,null,null,null,null,null,null,null,null,0,null,null,null,null,null,null,null,null,null,null,0,null,null,null,null,null,null,null,null,null,null,0,null,null,null,null,null,null,null,null,null,null,0,null,null,null,null,null,null,null,null,null,null,0,null,null,null,null,null,null,null,null,null,null,0,null,null,null,null,null,null,null,null,null,null,0,null,null,null,null,null,null,null,null,null,null,0,null,0]
[17,null,null,null,null,null,null,null,null,null,null,null,0,null,null,null,null,null,null,null,null,null,null,0,null,null,null,null,null,null,null,null,null,null,0,null,null,null,null,null,null,null,null,null,null,0,null,null,null,null,null,null,null,null,null,null,0,null,null,null,null,null,null,null,null,null,null,0,null,null,null,null,null,null,null,null,null,null,0,null,null,null,null,null,null,null,null,null,null,0,null,null,null,null,null,null,null,null,null,null,0,null,null,null,null,null,null,null,null,null,null,0,null,null,null,null,null,null,null,null,null,null,0,null,null,null,null,null,null,null,null,null,null,0,null,0]
[18,null,null,null,null,null,null,null,null,null,null,null,0,null,null,null,null,null,null,null,null,null,null,0,null,null,null,null,null,null,null,null,null,null,0,null,null,null,null,null,null,null,null,null,null,0,null,null,null,null,null,null,null,null,null,null,0,null,null,null,null,null,null,null,null,null,null,0,null,null,null,null,null,null,null,null,null,null,0,null,null,null,null,null,null,null,null,null,null,0,null,null,null,null,null,null,null,null,null,null,0,null,null,null,null,null,null,null,null,null,null,0,null,null,null,null,null,null,null,null,null,null,0,null,null,null,null,null,null,null,null,null,null,0,null,0]
[19,null,null,null,null,null,null,null,null,null,null,null,0,null,null,null,null,null,null,null,null,null,null,0,null,null,null,null,null,null,null,null,null,null,0,null,null,null,null,null,null,null,null,null,null,0,null,null,null,null,null,null,null,null,null,null,0,null,null,null,null,null,null,null,null,null,null,0,null,null,null,null,null,null,null,null,null,null,0,null,null,null,null,null,null,null,null,null,null,0,null,null,null,null,null,null,null,null,null,null,0,null,null,null,null,null,null,null,null,null,null,0,null,null,null,null,null,null,null,null,null,null,0,null,null,null,null,null,null,null,null,null,null,0,null,0]
[20,null,null,null,null,null,null,null,null,null,null,null,0,null,null,null,null,null,null,null,null,null,null,0,null,null,null,null,null,null,null,null,null,null,0,null,null,null,null,null,null,null,null,null,null,0,null,null,null,null,null,null,null,null,null,null,0,null,null,null,null,null,null,null,null,null,null,0,null,null,null,null,null,null,null,null,null,null,0,null,null,null,null,null,null,null,null,null,null,0,null,null,null,null,null,null,null,null,null,null,0,null,null,null,null,null,null,null,null,null,null,0,null,null,null,null,null,null,null,null,null,null,0,null,null,null,null,null,null,null,null,null,null,0,null,0]
[21,null,null,null,null,null,null,null,null,null,null,null,0,null,null,null,null,null,null,null,null,null,null,0,null,null,null,null,null,null,null,null,null,null,0,null,null,null,null,null,null,null,null,null,null,0,null,null,null,null,null,null,null,null,null,null,0,null,null,null,null,null,null,null,null,null,null,0,null,null,null,null,null,null,null,null,null,null,0,null,null,null,null,null,null,null,null,null,null,0,null,null,null,null,null,null,null,null,null,null,0,null,null,null,null,null,null,null,null,null,null,0,null,null,null,null,null,null,null,null,null,null,0,null,null,null,null,null,null,null,null,null,null,0,null,0]
[22,null,null,null,null,null,null,null,null,null,null,null,0,null,null,null,null,null,null,null,null,null,null,0,null,null,null,null,null,null,null,null,null,null,0,null,null,null,null,null,null,null,null,null,null,0,null,null,null,null,null,null,null,null,null,null,0,null,null,null,null,null,null,null,null,null,null,0,null,null,null,null,null,null,null,null,null,null,0,null,null,null,null,null,null,null,null,null,null,0,null,null,null,null,null,null,null,null,null,null,0,null,null,null,null,null,null,null,null,null,null,0,null,null,null,null,null,null,null,null,null,null,0,null,null,null,null,null,null,null,null,null,null,0,null,0]
[23,null,null,null,null,null,null,null,null,null,null,null,0,null,null,null,null,null,null,null,null,null,null,0,null,null,null,null,null,null,null,null,null,null,0,null,null,null,null,null,null,null,null,null,null,0,null,null,null,null,null,null,null,null,null,null,0,null,null,null,null,null,null,null,null,null,null,0,null,null,null,null,null,null,null,null,null,null,0,null,null,null,null,null,null,null,null,null,null,0,null,null,null,null,null,null,null,null,null,null,0,null,null,null,null,null,null,null,null,null,null,0,null,null,null,null,null,null,null,null,null,null,0,null,null,null,null,null,null,null,null,null,null,0,null,0]
[24,null,null,null,null,null,null,null,null,null,null,null,0,null,null,null,null,null,null,null,null,null,null,0,null,null,null,null,null,null,null,null,null,null,0,null,null,null,null,null,null,null,null,null,null,0,null,null,null,null,null,null,null,null,null,null,0,null,null,null,null,null,null,null,null,null,null,0,null,null,null,null,null,null,null,null,null,null,0,null,null,null,null,null,null,null,null,null,null,0,null,null,null,null,null,null,null,null,null,null,0,null,null,null,null,null,null,null,null,null,null,0,null,null,null,null,null,null,null,null,null,null,0,null,null,null,null,null,null,null,null,null,null,0,null,0]
[25,null,null,null,null,null,null,null,null,null,null,null,0,null,null,null,null,null,null,null,null,null,null,0,null,null,null,null,null,null,null,null,null,null,0,null,null,null,null,null,null,null,null,null,null,0,null,null,null,null,null,null,null,null,null,null,0,null,null,null,null,null,null,null,null,null,null,0,null,null,null,null,null,null,null,null,null,null,0,null,null,null,null,null,null,null,null,null,null,0,null,null,null,null,null,null,null,null,null,null,0,null,null,null,null,null,null,null,null,null,null,0,null,null,null,null,null,null,null,null,null,null,0,null,null,null,null,null,null,null,null,null,null,0,null,0]
[26,null,null,null,null,null,null,null,null,null,null,null,0,null,null,null,null,null,null,null,null,null,null,0,null,null,null,null,null,null,null,null,null,null,0,null,null,null,null,null,null,null,null,null,null,0,null,null,null,null,null,null,null,null,null,null,0,null,null,null,null,null,null,null,null,null,null,0,null,null,null,null,null,null,null,null,null,null,0,null,null,null,null,null,null,null,null,null,null,0,null,null,null,null,null,null,null,null,null,null,0,null,null,null,null,null,null,null,null,null,null,0,null,null,null,null,null,null,null,null,null,null,0,null,null,null,null,null,null,null,null,null,null,0,null,0]
[27,null,null,null,null,null,null,null,null,null,null,null,0,null,null,null,null,null,null,null,null,null,null,0,null,null,null,null,null,null,null,null,null,null,0,null,null,null,null,null,null,null,null,null,null,0,null,null,null,null,null,null,null,null,null,null,0,null,null,null,null,null,null,null,null,null,null,0,null,null,null,null,null,null,null,null,null,null,0,null,null,null,null,null,null,null,null,null,null,0,null,null,null,null,null,null,null,null,null,null,0,null,null,null,null,null,null,null,null,null,null,0,null,null,null,null,null,null,null,null,null,null,0,null,null,null,null,null,null,null,null,null,null,0,null,0]
[28,null,null,null,null,null,null,null,null,null,null,null,0,null,null,null,null,null,null,null,null,null,null,0,null,null,null,null,null,null,null,null,null,null,0,null,null,null,null,null,null,null,null,null,null,0,null,null,null,null,null,null,null,null,null,null,0,null,null,null,null,null,null,null,null,null,null,0,null,null,null,null,null,null,null,null,null,null,0,null,null,null,null,null,null,null,null,null,null,0,null,null,null,null,null,null,null,null,null,null,0,null,null,null,null,null,null,null,null,null,null,0,null,null,null,null,null,null,null,null,null,null,0,null,null,null,null,null,null,null,null,null,null,0,null,0]
[29,null,null,null,null,null,null,null,null,null,null,null,0,null,null,null,null,null,null,null,null,null,null,0,null,null,null,null,null,null,null,null,null,null,0,null,null,null,null,null,null,null,null,null,null,0,null,null,null,null,null,null,null,null,null,null,0,null,null,null,null,null,null,null,null,null,null,0,null,null,null,null,null,null,null,null,null,null,0,null,null,null,null,null,null,null,null,null,null,0,null,null,null,null,null,null,null,null,null,null,0,null,null,null,null,null,null,null,null,null,null,0,null,null,null,null,null,null,null,null,null,null,0,null,null,null,null,null,null,null,null,null,null,0,null,0]
[30,null,null,null,null,null,null,null,null,null,null,null,0,null,null,null,null,null,null,null,null,null,null,0,null,null,null,null,null,null,null,null,null,null,0,null,null,null,null,null,null,null,null,null,null,0,null,null,null,null,null,null,null,null,null,null,0,null,null,null,null,null,null,null,null,null,null,0,null,null,null,null,null,null,null,null,null,null,0,null,null,null,null,null,null,null,null,null,null,0,null,null,null,null,null,null,null,null,null,null,0,null,null,null,null,null,null,null,null,null,null,0,null,null,null,null,null,null,null,null,null,null,0,null,null,null,null,null,null,null,null,null,null,0,null,0]
[31,null,null,null,null,null,null,null,null,null,null,null,0,null,null,null,null,null,null,null,null,null,null,0,null,null,null,null,null,null,null,null,null,null,0,null,null,null,null,null,null,null,null,null,null,0,null,null,null,null,null,null,null,null,null,null,0,null,null,null,null,null,null,null,null,null,null,0,null,null,null,null,null,null,null,null,null,null,0,null,null,null,null,null,null,null,null,null,null,0,null,null,null,null,null,null,null,null,null,null,0,null,null,null,null,null,null,null,null,null,null,0,null,null,null,null,null,null,null,null,null,null,0,null,null,null,null,null,null,null,null,null,null,0,null,0]
[]
["Sum",null,{"$f":"SUM(C3:C33)","v":0},{"$f":"SUM(D3:D33)","v":0},0,0,0,0,0,0,0,0,{"$f":"SUM(C35:L35)","v":0},{"$f":"SUM(N3:N33)","v":0},0,0,0,0,0,0,0,0,0,{"$f":"SUM(N35:W35)","v":0},0,0,0,0,0,0,0,0,0,0,{"$f":"SUM(Y35:AH35)","v":0},0,0,0,0,0,0,0,0,0,0,{"$f":"SUM(AJ35:AS35)","v":0},0,0,0,0,0,0,0,0,0,0,{"$f":"SUM(AU35:BD35)","v":0},0,0,0,0,0,0,0,0,0,0,{"$f":"SUM(BF35:BO35)","v":0},0,0,0,0,0,0,0,0,0,0,{"$f":"SUM(BQ35:BZ35)","v":0},0,0,0,0,0,0,0,0,0,0,{"$f":"SUM(CB35:CK35)","v":0},0,0,0,0,0,0,0,0,0,0,{"$f":"SUM(CM35:CV35)","v":0},0,0,0,0,0,0,0,0,0,0,{"$f":"SUM(CX35:DG35)","v":0},0,0,0,0,0,0,0,0,0,0,{"$f":"SUM(DI35:DR35)","v":0},0,0,{"$f":"SUM(DV3:DV33)","v":0},0,0,0,0,0,0,0,{"$f":"SUM(DT35:EC35)","v":0},null,{"$f":"SUM(EF3:EF34)","v":0}]
[]
[]
[null,null,"Januar","Februar","Marts","April","Maj","Juni","Juli","August","September","Oktober","November","December"]
[null,null,{"$f":"ABS(M35)","v":0},{"$f":"ABS(X35)","v":0},{"$f":"ABS(AI35)","v":0},{"$f":"ABS(AT35)","v":0},{"$f":"ABS(BE35)","v":0},{"$f":"ABS(BP35)","v":0},{"$f":"ABS(CA35)","v":0},{"$f":"ABS(CL35)","v":0},{"$f":"ABS(CW35)","v":0},{"$f":"ABS(DH35)","v":0},{"$f":"ABS(DS35)","v":0},{"$f":"ABS(ED35)","v":0}]

{"sheet":"Buegangen","index":14,"n_rows":39,"n_cols":136,"rows_kept":39,"cut":false,"hidden":true,"merged":[]}
["Home",null,"Januar '1","Januar '2","Januar '3","Januar '4","Januar '5","Januar '6","Januar '7","Januar '8","Januar '9","Januar '10","SUM","Februar '1","Februar '2","Februar '3","Februar '4","Februar '5","Februar '6","Februar '7","Februar '8","Februar '9","Februar '10","SUM","Marts '1","Marts '2","Marts '3","Marts '4","Marts '5","Marts '6","Marts '7","Marts '8","Marts '9","Marts '10","SUM","April '1","April '2","April '3","April '4","April '5","April '6","April '7","April '8","April '9","April '10","SUM","Maj '1","Maj '2","Maj '3","Maj '4","Maj '5","Maj '6","Maj '7","Maj '8","Maj '9","Maj '10","SUM","Juni '1","Juni '2","Juni '3","Juni '4","Juni '5","Juni '6","Juni '7","Juni '8","Juni '9","Juni '10","SUM","Juli '1","Juli '2","Juli '3","Juli '4","Juli '5","Juli '6","Juli '7","Juli '8","Juli '9","Juli '10","SUM","August '1","August '2","August '3","August '4","August '5","August '6","August '7","August '8","August '9","August '10","SUM","September '1","September '2","September '3","September '4","September '5","September '6","September '7","September '8","September '9","September '10","SUM","Oktober '1","Oktober '2","Oktober '3","Oktober '4","Oktober '5","Oktober '6","Oktober '7","Oktober '8","Oktober '9","Oktober '10","SUM","November '1","November '2","November '3","November '4","November '5","November '6","November '7","November '8","November '9","November '10","SUM","December '1","December '2","December '3","December '4","December '5","December '6","December '7","December '8","December '9","December '10","SUM",null,"Sum"]
[null,null,"Husleje\nGoldschmidt",null,null,null,null,null,null,null,null,null,null,"Husleje\nGoldschmidt",null,null,null,null,null,null,null,null,null,null,"Husleje\nGoldschmidt","Strøm\nVindstød",null,null,null,null,null,null,null,null,null,"Husleje\nGoldschmidt",null,null,null,null,null,null,null,null,null,null,"Husleje\nGoldschmidt",null,null,null,null,null,null,null,null,null,null,"Husleje\nGoldschmidt",null,null,null,null,null,null,null,null,null,null,"Husleje\nGoldschmidt",null,null,null,null,null,null,null,null,null,null,"Husleje\nGoldschmidt",null,null,null,null,null,null,null,null,null,null,"Husleje\nGoldschmidt",null,null,null,null,null,null,null,null,null,null,"Husleje\nGoldschmidt",null,null,null,null,null,null,null,null,null,null,"Husleje\nGoldschmidt",null,null,null,null,null,null,null,null,null,null,"Husleje\nGoldschmidt"]
[1,null,null,null,null,null,null,null,null,null,null,null,{"$f":"SUM(C3:L3)","v":0},null,null,null,null,null,null,null,null,null,null,{"$f":"SUM(N3:W3)","v":0},null,null,null,null,null,null,null,null,null,null,{"$f":"SUM(Y3:AH3)","v":0},null,null,null,null,null,null,null,null,null,null,{"$f":"SUM(AJ3:AS3)","v":0},null,null,null,null,null,null,null,null,null,null,{"$f":"SUM(AU3:BD3)","v":0},null,null,null,null,null,null,null,null,null,null,{"$f":"SUM(BF3:BO3)","v":0},null,null,null,null,null,null,null,null,null,null,{"$f":"SUM(BQ3:BZ3)","v":0},null,null,null,null,null,null,null,null,null,null,{"$f":"SUM(CB3:CK3)","v":0},null,null,null,null,null,null,null,null,null,null,{"$f":"SUM(CM3:CV3)","v":0},null,null,null,null,null,null,null,null,null,null,{"$f":"SUM(CX3:DG3)","v":0},null,null,null,null,null,null,null,null,null,null,{"$f":"SUM(DI3:DR3)","v":0},null,null,null,null,null,null,null,null,null,null,{"$f":"SUM(DT3:EC3)","v":0},null,{"$f":"SUM(ED3,DS3,DH3,CW3,CL3,CA3,BP3,BE3,AT3,AI3,X3,M3)","v":0}]
[2,null,null,null,null,null,null,null,null,null,null,null,{"$f":"SUM(C4:L4)","v":0},null,null,null,null,null,null,null,null,null,null,{"$f":"SUM(N4:W4)","v":0},null,null,null,null,null,null,null,null,null,null,{"$f":"SUM(Y4:AH4)","v":0},null,null,null,null,null,null,null,null,null,null,{"$f":"SUM(AJ4:AS4)","v":0},null,null,null,null,null,null,null,null,null,null,{"$f":"SUM(AU4:BD4)","v":0},null,null,null,null,null,null,null,null,null,null,{"$f":"SUM(BF4:BO4)","v":0},null,null,null,null,null,null,null,null,null,null,{"$f":"SUM(BQ4:BZ4)","v":0},null,null,null,null,null,null,null,null,null,null,{"$f":"SUM(CB4:CK4)","v":0},null,null,null,null,null,null,null,null,null,null,{"$f":"SUM(CM4:CV4)","v":0},null,null,null,null,null,null,null,null,null,null,{"$f":"SUM(CX4:DG4)","v":0},null,null,null,null,null,null,null,null,null,null,{"$f":"SUM(DI4:DR4)","v":0},null,null,null,null,null,null,null,null,null,null,{"$f":"SUM(DT4:EC4)","v":0},null,{"$f":"SUM(ED4,DS4,DH4,CW4,CL4,CA4,BP4,BE4,AT4,AI4,X4,M4)","v":0}]
[3,null,null,null,null,null,null,null,null,null,null,null,0,null,null,null,null,null,null,null,null,null,null,0,null,null,null,null,null,null,null,null,null,null,0,null,null,null,null,null,null,null,null,null,null,0,null,null,null,null,null,null,null,null,null,null,0,null,null,null,null,null,null,null,null,null,null,0,null,null,null,null,null,null,null,null,null,null,0,null,null,null,null,null,null,null,null,null,null,0,null,null,null,null,null,null,null,null,null,null,0,null,null,null,null,null,null,null,null,null,null,0,null,null,null,null,null,null,null,null,null,null,0,null,null,null,null,null,null,null,null,null,null,0,null,0]
[4,null,null,null,null,null,null,null,null,null,null,null,0,null,null,null,null,null,null,null,null,null,null,0,null,null,null,null,null,null,null,null,null,null,0,null,null,null,null,null,null,null,null,null,null,0,null,null,null,null,null,null,null,null,null,null,0,null,null,null,null,null,null,null,null,null,null,0,null,null,null,null,null,null,null,null,null,null,0,null,null,null,null,null,null,null,null,null,null,0,null,null,null,null,null,null,null,null,null,null,0,null,null,null,null,null,null,null,null,null,null,0,null,null,null,null,null,null,null,null,null,null,0,null,null,null,null,null,null,null,null,null,null,0,null,0]
[5,null,null,null,null,null,null,null,null,null,null,null,0,null,null,null,null,null,null,null,null,null,null,0,null,null,null,null,null,null,null,null,null,null,0,null,null,null,null,null,null,null,null,null,null,0,null,null,null,null,null,null,null,null,null,null,0,null,null,null,null,null,null,null,null,null,null,0,null,null,null,null,null,null,null,null,null,null,0,null,null,null,null,null,null,null,null,null,null,0,null,null,null,null,null,null,null,null,null,null,0,null,null,null,null,null,null,null,null,null,null,0,null,null,null,null,null,null,null,null,null,null,0,null,null,null,null,null,null,null,null,null,null,0,null,0]
[6,null,null,null,null,null,null,null,null,null,null,null,0,null,null,null,null,null,null,null,null,null,null,0,null,null,null,null,null,null,null,null,null,null,0,null,null,null,null,null,null,null,null,null,null,0,null,null,null,null,null,null,null,null,null,null,0,null,null,null,null,null,null,null,null,null,null,0,null,null,null,null,null,null,null,null,null,null,0,null,null,null,null,null,null,null,null,null,null,0,null,null,null,null,null,null,null,null,null,null,0,null,null,null,null,null,null,null,null,null,null,0,null,null,null,null,null,null,null,null,null,null,0,null,null,null,null,null,null,null,null,null,null,0,null,0]
[7,null,null,null,null,null,null,null,null,null,null,null,0,null,null,null,null,null,null,null,null,null,null,0,null,null,null,null,null,null,null,null,null,null,0,null,null,null,null,null,null,null,null,null,null,0,null,null,null,null,null,null,null,null,null,null,0,null,null,null,null,null,null,null,null,null,null,0,null,null,null,null,null,null,null,null,null,null,0,null,null,null,null,null,null,null,null,null,null,0,null,null,null,null,null,null,null,null,null,null,0,null,null,null,null,null,null,null,null,null,null,0,null,null,null,null,null,null,null,null,null,null,0,null,null,null,null,null,null,null,null,null,null,0,null,0]
[8,null,null,null,null,null,null,null,null,null,null,null,0,null,null,null,null,null,null,null,null,null,null,0,null,null,null,null,null,null,null,null,null,null,0,null,null,null,null,null,null,null,null,null,null,0,null,null,null,null,null,null,null,null,null,null,0,null,null,null,null,null,null,null,null,null,null,0,null,null,null,null,null,null,null,null,null,null,0,null,null,null,null,null,null,null,null,null,null,0,null,null,null,null,null,null,null,null,null,null,0,null,null,null,null,null,null,null,null,null,null,0,null,null,null,null,null,null,null,null,null,null,0,null,null,null,null,null,null,null,null,null,null,0,null,0]
[9,null,null,null,null,null,null,null,null,null,null,null,0,null,null,null,null,null,null,null,null,null,null,0,null,null,null,null,null,null,null,null,null,null,0,null,null,null,null,null,null,null,null,null,null,0,null,null,null,null,null,null,null,null,null,null,0,null,null,null,null,null,null,null,null,null,null,0,null,null,null,null,null,null,null,null,null,null,0,null,null,null,null,null,null,null,null,null,null,0,null,null,null,null,null,null,null,null,null,null,0,null,null,null,null,null,null,null,null,null,null,0,null,null,null,null,null,null,null,null,null,null,0,null,null,null,null,null,null,null,null,null,null,0,null,0]
[10,null,null,null,null,null,null,null,null,null,null,null,0,null,null,null,null,null,null,null,null,null,null,0,null,null,null,null,null,null,null,null,null,null,0,null,null,null,null,null,null,null,null,null,null,0,null,null,null,null,null,null,null,null,null,null,0,null,null,null,null,null,null,null,null,null,null,0,null,null,null,null,null,null,null,null,null,null,0,null,null,null,null,null,null,null,null,null,null,0,null,null,null,null,null,null,null,null,null,null,0,null,null,null,null,null,null,null,null,null,null,0,null,null,null,null,null,null,null,null,null,null,0,null,null,null,null,null,null,null,null,null,null,0,null,0]
[11,null,null,null,null,null,null,null,null,null,null,null,0,null,null,null,null,null,null,null,null,null,null,0,null,null,null,null,null,null,null,null,null,null,0,null,null,null,null,null,null,null,null,null,null,0,null,null,null,null,null,null,null,null,null,null,0,null,null,null,null,null,null,null,null,null,null,0,null,null,null,null,null,null,null,null,null,null,0,null,null,null,null,null,null,null,null,null,null,0,null,null,null,null,null,null,null,null,null,null,0,null,null,null,null,null,null,null,null,null,null,0,null,null,null,null,null,null,null,null,null,null,0,null,null,null,null,null,null,null,null,null,null,0,null,0]
[12,null,null,null,null,null,null,null,null,null,null,null,0,null,null,null,null,null,null,null,null,null,null,0,null,null,null,null,null,null,null,null,null,null,0,null,null,null,null,null,null,null,null,null,null,0,null,null,null,null,null,null,null,null,null,null,0,null,null,null,null,null,null,null,null,null,null,0,null,null,null,null,null,null,null,null,null,null,0,null,null,null,null,null,null,null,null,null,null,0,null,null,null,null,null,null,null,null,null,null,0,null,null,null,null,null,null,null,null,null,null,0,null,null,null,null,null,null,null,null,null,null,0,null,null,null,null,null,null,null,null,null,null,0,null,0]
[13,null,null,null,null,null,null,null,null,null,null,null,0,null,null,null,null,null,null,null,null,null,null,0,null,null,null,null,null,null,null,null,null,null,0,null,null,null,null,null,null,null,null,null,null,0,null,null,null,null,null,null,null,null,null,null,0,null,null,null,null,null,null,null,null,null,null,0,null,null,null,null,null,null,null,null,null,null,0,null,null,null,null,null,null,null,null,null,null,0,null,null,null,null,null,null,null,null,null,null,0,null,null,null,null,null,null,null,null,null,null,0,null,null,null,null,null,null,null,null,null,null,0,null,null,null,null,null,null,null,null,null,null,0,null,0]
[14,null,null,null,null,null,null,null,null,null,null,null,0,null,null,null,null,null,null,null,null,null,null,0,null,null,null,null,null,null,null,null,null,null,0,null,null,null,null,null,null,null,null,null,null,0,null,null,null,null,null,null,null,null,null,null,0,null,null,null,null,null,null,null,null,null,null,0,null,null,null,null,null,null,null,null,null,null,0,null,null,null,null,null,null,null,null,null,null,0,null,null,null,null,null,null,null,null,null,null,0,null,null,null,null,null,null,null,null,null,null,0,null,null,null,null,null,null,null,null,null,null,0,null,null,null,null,null,null,null,null,null,null,0,null,0]
[15,null,null,null,null,null,null,null,null,null,null,null,0,null,null,null,null,null,null,null,null,null,null,0,null,null,null,null,null,null,null,null,null,null,0,null,null,null,null,null,null,null,null,null,null,0,null,null,null,null,null,null,null,null,null,null,0,null,null,null,null,null,null,null,null,null,null,0,null,null,null,null,null,null,null,null,null,null,0,null,null,null,null,null,null,null,null,null,null,0,null,null,null,null,null,null,null,null,null,null,0,null,null,null,null,null,null,null,null,null,null,0,null,null,null,null,null,null,null,null,null,null,0,null,null,null,null,null,null,null,null,null,null,0,null,0]
[16,null,null,null,null,null,null,null,null,null,null,null,0,null,null,null,null,null,null,null,null,null,null,0,null,null,null,null,null,null,null,null,null,null,0,null,null,null,null,null,null,null,null,null,null,0,null,null,null,null,null,null,null,null,null,null,0,null,null,null,null,null,null,null,null,null,null,0,null,null,null,null,null,null,null,null,null,null,0,null,null,null,null,null,null,null,null,null,null,0,null,null,null,null,null,null,null,null,null,null,0,null,null,null,null,null,null,null,null,null,null,0,null,null,null,null,null,null,null,null,null,null,0,null,null,null,null,null,null,null,null,null,null,0,null,0]
[17,null,null,null,null,null,null,null,null,null,null,null,0,null,null,null,null,null,null,null,null,null,null,0,null,null,null,null,null,null,null,null,null,null,0,null,null,null,null,null,null,null,null,null,null,0,null,null,null,null,null,null,null,null,null,null,0,null,null,null,null,null,null,null,null,null,null,0,null,null,null,null,null,null,null,null,null,null,0,null,null,null,null,null,null,null,null,null,null,0,null,null,null,null,null,null,null,null,null,null,0,null,null,null,null,null,null,null,null,null,null,0,null,null,null,null,null,null,null,null,null,null,0,null,null,null,null,null,null,null,null,null,null,0,null,0]
[18,null,null,null,null,null,null,null,null,null,null,null,0,null,null,null,null,null,null,null,null,null,null,0,null,null,null,null,null,null,null,null,null,null,0,null,null,null,null,null,null,null,null,null,null,0,null,null,null,null,null,null,null,null,null,null,0,null,null,null,null,null,null,null,null,null,null,0,null,null,null,null,null,null,null,null,null,null,0,null,null,null,null,null,null,null,null,null,null,0,null,null,null,null,null,null,null,null,null,null,0,null,null,null,null,null,null,null,null,null,null,0,null,null,null,null,null,null,null,null,null,null,0,null,null,null,null,null,null,null,null,null,null,0,null,0]
[19,null,null,null,null,null,null,null,null,null,null,null,0,null,null,null,null,null,null,null,null,null,null,0,null,null,null,null,null,null,null,null,null,null,0,null,null,null,null,null,null,null,null,null,null,0,null,null,null,null,null,null,null,null,null,null,0,null,null,null,null,null,null,null,null,null,null,0,null,null,null,null,null,null,null,null,null,null,0,null,null,null,null,null,null,null,null,null,null,0,null,null,null,null,null,null,null,null,null,null,0,null,null,null,null,null,null,null,null,null,null,0,null,null,null,null,null,null,null,null,null,null,0,null,null,null,null,null,null,null,null,null,null,0,null,0]
[20,null,null,null,null,null,null,null,null,null,null,null,0,null,null,null,null,null,null,null,null,null,null,0,null,null,null,null,null,null,null,null,null,null,0,null,null,null,null,null,null,null,null,null,null,0,null,null,null,null,null,null,null,null,null,null,0,null,null,null,null,null,null,null,null,null,null,0,null,null,null,null,null,null,null,null,null,null,0,null,null,null,null,null,null,null,null,null,null,0,null,null,null,null,null,null,null,null,null,null,0,null,null,null,null,null,null,null,null,null,null,0,null,null,null,null,null,null,null,null,null,null,0,null,null,null,null,null,null,null,null,null,null,0,null,0]
[21,null,null,null,null,null,null,null,null,null,null,null,0,null,null,null,null,null,null,null,null,null,null,0,null,null,null,null,null,null,null,null,null,null,0,null,null,null,null,null,null,null,null,null,null,0,null,null,null,null,null,null,null,null,null,null,0,null,null,null,null,null,null,null,null,null,null,0,null,null,null,null,null,null,null,null,null,null,0,null,null,null,null,null,null,null,null,null,null,0,null,null,null,null,null,null,null,null,null,null,0,null,null,null,null,null,null,null,null,null,null,0,null,null,null,null,null,null,null,null,null,null,0,null,null,null,null,null,null,null,null,null,null,0,null,0]
[22,null,null,null,null,null,null,null,null,null,null,null,0,null,null,null,null,null,null,null,null,null,null,0,null,null,null,null,null,null,null,null,null,null,0,null,null,null,null,null,null,null,null,null,null,0,null,null,null,null,null,null,null,null,null,null,0,null,null,null,null,null,null,null,null,null,null,0,null,null,null,null,null,null,null,null,null,null,0,null,null,null,null,null,null,null,null,null,null,0,null,null,null,null,null,null,null,null,null,null,0,null,null,null,null,null,null,null,null,null,null,0,null,null,null,null,null,null,null,null,null,null,0,null,null,null,null,null,null,null,null,null,null,0,null,0]
[23,null,null,null,null,null,null,null,null,null,null,null,0,null,null,null,null,null,null,null,null,null,null,0,null,null,null,null,null,null,null,null,null,null,0,null,null,null,null,null,null,null,null,null,null,0,null,null,null,null,null,null,null,null,null,null,0,null,null,null,null,null,null,null,null,null,null,0,null,null,null,null,null,null,null,null,null,null,0,null,null,null,null,null,null,null,null,null,null,0,null,null,null,null,null,null,null,null,null,null,0,null,null,null,null,null,null,null,null,null,null,0,null,null,null,null,null,null,null,null,null,null,0,null,null,null,null,null,null,null,null,null,null,0,null,0]
[24,null,null,null,null,null,null,null,null,null,null,null,0,null,null,null,null,null,null,null,null,null,null,0,null,null,null,null,null,null,null,null,null,null,0,null,null,null,null,null,null,null,null,null,null,0,null,null,null,null,null,null,null,null,null,null,0,null,null,null,null,null,null,null,null,null,null,0,null,null,null,null,null,null,null,null,null,null,0,null,null,null,null,null,null,null,null,null,null,0,null,null,null,null,null,null,null,null,null,null,0,null,null,null,null,null,null,null,null,null,null,0,null,null,null,null,null,null,null,null,null,null,0,null,null,null,null,null,null,null,null,null,null,0,null,0]
[25,null,null,null,null,null,null,null,null,null,null,null,0,null,null,null,null,null,null,null,null,null,null,0,null,null,null,null,null,null,null,null,null,null,0,null,null,null,null,null,null,null,null,null,null,0,null,null,null,null,null,null,null,null,null,null,0,null,null,null,null,null,null,null,null,null,null,0,null,null,null,null,null,null,null,null,null,null,0,null,null,null,null,null,null,null,null,null,null,0,null,null,null,null,null,null,null,null,null,null,0,null,null,null,null,null,null,null,null,null,null,0,null,null,null,null,null,null,null,null,null,null,0,null,null,null,null,null,null,null,null,null,null,0,null,0]
[26,null,null,null,null,null,null,null,null,null,null,null,0,null,null,null,null,null,null,null,null,null,null,0,null,null,null,null,null,null,null,null,null,null,0,null,null,null,null,null,null,null,null,null,null,0,null,null,null,null,null,null,null,null,null,null,0,null,null,null,null,null,null,null,null,null,null,0,null,null,null,null,null,null,null,null,null,null,0,null,null,null,null,null,null,null,null,null,null,0,null,null,null,null,null,null,null,null,null,null,0,null,null,null,null,null,null,null,null,null,null,0,null,null,null,null,null,null,null,null,null,null,0,null,null,null,null,null,null,null,null,null,null,0,null,0]
[27,null,null,null,null,null,null,null,null,null,null,null,0,null,null,null,null,null,null,null,null,null,null,0,null,null,null,null,null,null,null,null,null,null,0,null,null,null,null,null,null,null,null,null,null,0,null,null,null,null,null,null,null,null,null,null,0,null,null,null,null,null,null,null,null,null,null,0,null,null,null,null,null,null,null,null,null,null,0,null,null,null,null,null,null,null,null,null,null,0,null,null,null,null,null,null,null,null,null,null,0,null,null,null,null,null,null,null,null,null,null,0,null,null,null,null,null,null,null,null,null,null,0,null,null,null,null,null,null,null,null,null,null,0,null,0]
[28,null,null,null,null,null,null,null,null,null,null,null,0,null,null,null,null,null,null,null,null,null,null,0,null,null,null,null,null,null,null,null,null,null,0,null,null,null,null,null,null,null,null,null,null,0,null,null,null,null,null,null,null,null,null,null,0,null,null,null,null,null,null,null,null,null,null,0,null,null,null,null,null,null,null,null,null,null,0,null,null,null,null,null,null,null,null,null,null,0,null,null,null,null,null,null,null,null,null,null,0,null,null,null,null,null,null,null,null,null,null,0,null,null,null,null,null,null,null,null,null,null,0,null,null,null,null,null,null,null,null,null,null,0,null,0]
[29,null,null,null,null,null,null,null,null,null,null,null,0,null,null,null,null,null,null,null,null,null,null,0,null,null,null,null,null,null,null,null,null,null,0,null,null,null,null,null,null,null,null,null,null,0,null,null,null,null,null,null,null,null,null,null,0,null,null,null,null,null,null,null,null,null,null,0,null,null,null,null,null,null,null,null,null,null,0,null,null,null,null,null,null,null,null,null,null,0,null,null,null,null,null,null,null,null,null,null,0,null,null,null,null,null,null,null,null,null,null,0,null,null,null,null,null,null,null,null,null,null,0,null,null,null,null,null,null,null,null,null,null,0,null,0]
[30,null,null,null,null,null,null,null,null,null,null,null,0,null,null,null,null,null,null,null,null,null,null,0,null,null,null,null,null,null,null,null,null,null,0,null,null,null,null,null,null,null,null,null,null,0,null,null,null,null,null,null,null,null,null,null,0,null,null,null,null,null,null,null,null,null,null,0,null,null,null,null,null,null,null,null,null,null,0,null,null,null,null,null,null,null,null,null,null,0,null,null,null,null,null,null,null,null,null,null,0,null,null,null,null,null,null,null,null,null,null,0,null,null,null,null,null,null,null,null,null,null,0,null,null,null,null,null,null,null,null,null,null,0,null,0]
[31,null,null,null,null,null,null,null,null,null,null,null,0,null,null,null,null,null,null,null,null,null,null,0,null,null,null,null,null,null,null,null,null,null,0,null,null,null,null,null,null,null,null,null,null,0,null,null,null,null,null,null,null,null,null,null,0,null,null,null,null,null,null,null,null,null,null,0,null,null,null,null,null,null,null,null,null,null,0,null,null,null,null,null,null,null,null,null,null,0,null,null,null,null,null,null,null,null,null,null,0,null,null,null,null,null,null,null,null,null,null,0,null,null,null,null,null,null,null,null,null,null,0,null,null,null,null,null,null,null,null,null,null,0,null,0]
[]
["Sum",null,{"$f":"SUM(C3:C33)","v":0},{"$f":"SUM(D3:D33)","v":0},0,0,0,0,0,0,0,0,{"$f":"SUM(C35:L35)","v":0},{"$f":"SUM(N3:N33)","v":0},0,0,0,0,0,0,0,0,0,{"$f":"SUM(N35:W35)","v":0},0,0,0,0,0,0,0,0,0,0,{"$f":"SUM(Y35:AH35)","v":0},0,0,0,0,0,0,0,0,0,0,{"$f":"SUM(AJ35:AS35)","v":0},0,0,0,0,0,0,0,0,0,0,{"$f":"SUM(AU35:BD35)","v":0},0,0,0,0,0,0,0,0,0,0,{"$f":"SUM(BF35:BO35)","v":0},0,0,0,0,0,0,0,0,0,0,{"$f":"SUM(BQ35:BZ35)","v":0},0,0,0,0,0,0,0,0,0,0,{"$f":"SUM(CB35:CK35)","v":0},0,0,0,0,0,0,0,0,0,0,{"$f":"SUM(CM35:CV35)","v":0},0,0,0,0,0,0,0,0,0,0,{"$f":"SUM(CX35:DG35)","v":0},0,0,0,0,0,0,0,0,0,0,{"$f":"SUM(DI35:DR35)","v":0},0,0,{"$f":"SUM(DV3:DV33)","v":0},0,0,0,0,0,0,0,{"$f":"SUM(DT35:EC35)","v":0},null,{"$f":"SUM(EF3:EF34)","v":0}]
[]
[]
[null,null,"Januar","Februar","Marts","April","Maj","Juni","Juli","August","September","Oktober","November","December"]
[null,null,{"$f":"ABS(M35)","v":0},{"$f":"ABS(X35)","v":0},{"$f":"ABS(AI35)","v":0},{"$f":"ABS(AT35)","v":0},{"$f":"ABS(BE35)","v":0},{"$f":"ABS(BP35)","v":0},{"$f":"ABS(CA35)","v":0},{"$f":"ABS(CL35)","v":0},{"$f":"ABS(CW35)","v":0},{"$f":"ABS(DH35)","v":0},{"$f":"ABS(DS35)","v":0},{"$f":"ABS(ED35)","v":0}]

{"sheet":"Ark2","index":15,"n_rows":0,"n_cols":0,"rows_kept":0,"cut":false,"hidden":true,"merged":[]}

{"sheet":"Ark3","index":16,"n_rows":12,"n_cols":1,"rows_kept":12,"cut":false,"hidden":true,"merged":[]}
["Januar"]
["Februar"]
["Marts"]
["April"]
["Maj"]
["Juni"]
["Juli"]
["August"]
["September"]
["Oktober"]
["November"]
["December"]